Period,Cost Centre,Responsible Unit,Service Division Categorisation,ServiceAreaCategorisation,Nominal,Narrative,Expense Sub Type,Expense Type,Value,Invoice Date,Cap/Rev,Supplier Name,,,,,,,,,,,,,,,,,,,,,,,,,,,,,,,,,,,,,,USR_DATA
1,100020,AD Resources,SupS DOF,Non Distributed Costs (NDC),3996,(DO NOT USE) Contract Payments,Conversion,Supplies and Services,"2,000.00",01-Apr-17,R,CODING INTERNATIONAL LTD,,,,,,,,,,,,,,,,,,,,,,,,,,,,,,,,,,,,,,
1,100020,AD Resources,SupS DOF,Non Distributed Costs (NDC),0075,Agency Staff - Off Contract,Direct EmployeeExpenses-Agency,Employees,"1,808.00",18-Apr-17,R,HAYS SPECIALIST RECRUITM'T LTD,,,,,,,,,,,,,,,,,,,,,,,,,,,,,,,,,,,,,,
1,100020,AD Resources,SupS DOF,Non Distributed Costs (NDC),0075,Agency Staff - Off Contract,Direct EmployeeExpenses-Agency,Employees,"2,260.00",01-Apr-17,R,HAYS SPECIALIST RECRUITM'T LTD,,,,,,,,,,,,,,,,,,,,,,,,,,,,,,,,,,,,,,
1,100020,AD Resources,SupS DOF,Non Distributed Costs (NDC),0075,Agency Staff - Off Contract,Direct EmployeeExpenses-Agency,Employees,"2,260.00",01-Apr-17,R,HAYS SPECIALIST RECRUITM'T LTD,,,,,,,,,,,,,,,,,,,,,,,,,,,,,,,,,,,,,,
1,100020,AD Resources,SupS DOF,Non Distributed Costs (NDC),3414,Consultants,Services,Supplies and Services,"3,482.50",01-Apr-17,R,ADVANCED BUSINESS SOLUTIONS,,,,,,,,,,,,,,,,,,,,,,,,,,,,,,,,,,,,,,
1,100051,Corporate Accountancy,SupS Corporate Finance,Non Distributed Costs (NDC),3804,Subscriptions,Grants and Subscriptions,Supplies and Services,"8,100.00",01-Apr-17,R,CIPFA,,,,,,,,,,,,,,,,,,,,,,,,,,,,,,,,,,,,,,
1,100051,Corporate Accountancy,SupS Corporate Finance,Non Distributed Costs (NDC),3405,External Audit Fees,Services,Supplies and Services,"8,500.00",01-Apr-17,R,ERNST & YOUNG LLP,,,,,,,,,,,,,,,,,,,,,,,,,,,,,,,,,,,,,,
1,100070,Business Planning,SupS Strategic Finance,Non Distributed Costs (NDC),3400,Fees,Services,Supplies and Services,"2,250.00",01-Apr-17,R,Garth Denham Associates Ltd,,,,,,,,,,,,,,,,,,,,,,,,,,,,,,,,,,,,,,
1,100071,Financial Information System,SupS Strategic Finance,Non Distributed Costs (NDC),3522,IT Support Costs,Comms and Computing,Supplies and Services,531,01-Apr-17,R,ADVANCED BUSINESS SOLUTIONS,,,,,,,,,,,,,,,,,,,,,,,,,,,,,,,,,,,,,,
1,100090,Pensions,SupS Pensions,Non Distributed Costs (NDC),3400,Fees,Services,Supplies and Services,"38,123.00",01-Apr-17,R,WANDSWORTH CORPORATION,,,,,,,,,,,,,,,,,,,,,,,,,,,,,,,,,,,,,,
1,100101,Local Strategic Partnership,SupS Comm and Member Servic,Non Distributed Costs (NDC),3414,Consultants,Services,Supplies and Services,"1,750.00",01-Apr-17,R,REDACTED,,,,,,,,,,,,,,,,,,,,,,,,,,,,,,,,,,,,,,
1,100103,Voluntary Sector Coordination,Grants - Voluntary Groups,Central Services to the Public,3806,Grants,Grants and Subscriptions,Supplies and Services,"12,500.00",07-Apr-17,R,MERTON COMMUNITY TRANSPORT,,,,,,,,,,,,,,,,,,,,,,,,,,,,,,,,,,,,,,
1,100103,Voluntary Sector Coordination,Grants - Voluntary Groups,Central Services to the Public,3806,Grants,Grants and Subscriptions,Supplies and Services,"26,882.50",07-Apr-17,R,SPRINGFIELD LAW CENTRE LTD,,,,,,,,,,,,,,,,,,,,,,,,,,,,,,,,,,,,,,
1,100103,Voluntary Sector Coordination,Grants - Voluntary Groups,Central Services to the Public,3806,Grants,Grants and Subscriptions,Supplies and Services,"28,017.00",07-Apr-17,R,SOUTH WEST LONDON LAW CENTRES,,,,,,,,,,,,,,,,,,,,,,,,,,,,,,,,,,,,,,
1,100103,Voluntary Sector Coordination,Grants - Voluntary Groups,Central Services to the Public,3806,Grants,Grants and Subscriptions,Supplies and Services,"40,000.00",07-Apr-17,R,MERTON CIL,,,,,,,,,,,,,,,,,,,,,,,,,,,,,,,,,,,,,,
1,100103,Voluntary Sector Coordination,Grants - Voluntary Groups,Central Services to the Public,3804,Subscriptions,Grants and Subscriptions,Supplies and Services,"45,213.00",05-Apr-17,R,LONDON COUNCILS,,,,,,,,,,,,,,,,,,,,,,,,,,,,,,,,,,,,,,
1,100103,Voluntary Sector Coordination,Grants - Voluntary Groups,Central Services to the Public,3806,Grants,Grants and Subscriptions,Supplies and Services,"62,742.00",07-Apr-17,R,MERTON VOLUNTARY SERV COUNCIL,,,,,,,,,,,,,,,,,,,,,,,,,,,,,,,,,,,,,,
1,100103,Voluntary Sector Coordination,Grants - Voluntary Groups,Central Services to the Public,3806,Grants,Grants and Subscriptions,Supplies and Services,"170,949.00",07-Apr-17,R,CITIZENS ADVICE MERTON & LAMBETH,,,,,,,,,,,,,,,,,,,,,,,,,,,,,,,,,,,,,,
1,100150,Insurance Premiums & Funding,SupS  Risk and Insurance,Non Distributed Costs (NDC),3436,Insurance Premiums,Services,Supplies and Services,"4,331.25",14-Apr-17,R,JLT SPECIALTY LIMITED,,,,,,,,,,,,,,,,,,,,,,,,,,,,,,,,,,,,,,
1,100150,Insurance Premiums & Funding,SupS  Risk and Insurance,Non Distributed Costs (NDC),3436,Insurance Premiums,Services,Supplies and Services,"11,845.25",25-Apr-17,R,JLT SPECIALTY LIMITED,,,,,,,,,,,,,,,,,,,,,,,,,,,,,,,,,,,,,,
1,100150,Insurance Premiums & Funding,SupS  Risk and Insurance,Non Distributed Costs (NDC),3521,IT licences - Applications,Comms and Computing,Supplies and Services,"12,399.00",01-Apr-17,R,JC APPLICATIONS DEVELOPMENT,,,,,,,,,,,,,,,,,,,,,,,,,,,,,,,,,,,,,,
1,100150,Insurance Premiums & Funding,SupS  Risk and Insurance,Non Distributed Costs (NDC),3436,Insurance Premiums,Services,Supplies and Services,"23,100.00",25-Apr-17,R,JLT SPECIALTY LIMITED,,,,,,,,,,,,,,,,,,,,,,,,,,,,,,,,,,,,,,
1,100150,Insurance Premiums & Funding,SupS  Risk and Insurance,Non Distributed Costs (NDC),3436,Insurance Premiums,Services,Supplies and Services,"37,400.00",27-Apr-17,R,JLT SPECIALTY LIMITED,,,,,,,,,,,,,,,,,,,,,,,,,,,,,,,,,,,,,,
1,100150,Insurance Premiums & Funding,SupS  Risk and Insurance,Non Distributed Costs (NDC),3436,Insurance Premiums,Services,Supplies and Services,"84,150.00",06-Apr-17,R,JLT SPECIALTY LIMITED,,,,,,,,,,,,,,,,,,,,,,,,,,,,,,,,,,,,,,
1,100150,Insurance Premiums & Funding,SupS  Risk and Insurance,Non Distributed Costs (NDC),3436,Insurance Premiums,Services,Supplies and Services,"84,150.00",06-Apr-17,R,JLT SPECIALTY LIMITED,,,,,,,,,,,,,,,,,,,,,,,,,,,,,,,,,,,,,,
1,100150,Insurance Premiums & Funding,SupS  Risk and Insurance,Non Distributed Costs (NDC),3436,Insurance Premiums,Services,Supplies and Services,"253,951.67",25-Apr-17,R,JLT SPECIALTY LIMITED,,,,,,,,,,,,,,,,,,,,,,,,,,,,,,,,,,,,,,
1,100300,AD Business Improvement,SupS IT,Non Distributed Costs (NDC),0160,Recruitment Costs,Indirect Employee Expenses,Employees,"1,600.00",01-Apr-17,R,JGP RES'RCG LTD-JOBS GO PUBLIC,,,,,,,,,,,,,,,,,,,,,,,,,,,,,,,,,,,,,,
1,100330,Business Systems,SupS IT,Non Distributed Costs (NDC),3521,IT licences - Applications,Comms and Computing,Supplies and Services,"6,000.00",01-Apr-17,R,FIBONACCI LTD,,,,,,,,,,,,,,,,,,,,,,,,,,,,,,,,,,,,,,
1,100330,Business Systems,SupS IT,Non Distributed Costs (NDC),3522,IT Support Costs,Comms and Computing,Supplies and Services,"5,040.00",07-Apr-17,R,SERVELEC SYNERGY LTD,,,,,,,,,,,,,,,,,,,,,,,,,,,,,,,,,,,,,,
1,100330,Business Systems,SupS IT,Non Distributed Costs (NDC),0070,Agency Staff - Corp Contract,Direct EmployeeExpenses-Agency,Employees,"5,040.14",01-Apr-17,R,Be Spatial Ltd,,,,,,,,,,,,,,,,,,,,,,,,,,,,,,,,,,,,,,
1,100330,Business Systems,SupS IT,Non Distributed Costs (NDC),3522,IT Support Costs,Comms and Computing,Supplies and Services,"16,774.00",07-Apr-17,R,SERVELEC SYNERGY LTD,,,,,,,,,,,,,,,,,,,,,,,,,,,,,,,,,,,,,,
1,100350,Customer Contact,SupS IT,Non Distributed Costs (NDC),0075,Agency Staff - Off Contract,Direct EmployeeExpenses-Agency,Employees,"3,300.00",01-Apr-17,R,MILESTONES COMMUNICATIONS LTD,,,,,,,,,,,,,,,,,,,,,,,,,,,,,,,,,,,,,,
1,100351,SCIS,SupS IT,Non Distributed Costs (NDC),3414,Consultants,Services,Supplies and Services,741.33,01-Apr-17,R,INTERQUEST GROUP UK LIMITED,,,,,,,,,,,,,,,,,,,,,,,,,,,,,,,,,,,,,,
1,100351,SCIS,SupS IT,Non Distributed Costs (NDC),3414,Consultants,Services,Supplies and Services,"1,220.17",01-Apr-17,R,INTERQUEST GROUP UK LIMITED,,,,,,,,,,,,,,,,,,,,,,,,,,,,,,,,,,,,,,
1,100351,SCIS,SupS IT,Non Distributed Costs (NDC),3414,Consultants,Services,Supplies and Services,"1,719.92",26-Apr-17,R,INTERQUEST GROUP UK LIMITED,,,,,,,,,,,,,,,,,,,,,,,,,,,,,,,,,,,,,,
1,100351,SCIS,SupS IT,Non Distributed Costs (NDC),0075,Agency Staff - Off Contract,Direct EmployeeExpenses-Agency,Employees,"1,800.00",19-Apr-17,R,NUMBER 10 INTERIM LTD,,,,,,,,,,,,,,,,,,,,,,,,,,,,,,,,,,,,,,
1,100351,SCIS,SupS IT,Non Distributed Costs (NDC),3414,Consultants,Services,Supplies and Services,"2,216.75",01-Apr-17,R,INTERQUEST GROUP UK LIMITED,,,,,,,,,,,,,,,,,,,,,,,,,,,,,,,,,,,,,,
1,100351,SCIS,SupS IT,Non Distributed Costs (NDC),0075,Agency Staff - Off Contract,Direct EmployeeExpenses-Agency,Employees,"2,250.00",01-Apr-17,R,NUMBER 10 INTERIM LTD,,,,,,,,,,,,,,,,,,,,,,,,,,,,,,,,,,,,,,
1,100351,SCIS,SupS IT,Non Distributed Costs (NDC),0075,Agency Staff - Off Contract,Direct EmployeeExpenses-Agency,Employees,"2,250.00",04-Apr-17,R,NUMBER 10 INTERIM LTD,,,,,,,,,,,,,,,,,,,,,,,,,,,,,,,,,,,,,,
1,100351,SCIS,SupS IT,Non Distributed Costs (NDC),0075,Agency Staff - Off Contract,Direct EmployeeExpenses-Agency,Employees,"2,250.00",01-Apr-17,R,NUMBER 10 INTERIM LTD,,,,,,,,,,,,,,,,,,,,,,,,,,,,,,,,,,,,,,
1,100351,SCIS,SupS IT,Non Distributed Costs (NDC),0075,Agency Staff - Off Contract,Direct EmployeeExpenses-Agency,Employees,"2,250.00",18-Apr-17,R,NUMBER 10 INTERIM LTD,,,,,,,,,,,,,,,,,,,,,,,,,,,,,,,,,,,,,,
1,100351,SCIS,SupS IT,Non Distributed Costs (NDC),3414,Consultants,Services,Supplies and Services,"2,552.55",26-Apr-17,R,INTERQUEST GROUP UK LIMITED,,,,,,,,,,,,,,,,,,,,,,,,,,,,,,,,,,,,,,
1,100351,SCIS,SupS IT,Non Distributed Costs (NDC),0070,Agency Staff - Corp Contract,Direct EmployeeExpenses-Agency,Employees,"2,625.00",02-Apr-17,R,HAMPTON'S RESOURCING,,,,,,,,,,,,,,,,,,,,,,,,,,,,,,,,,,,,,,
1,100351,SCIS,SupS IT,Non Distributed Costs (NDC),3414,Consultants,Services,Supplies and Services,"2,755.94",01-Apr-17,R,INTERQUEST GROUP UK LIMITED,,,,,,,,,,,,,,,,,,,,,,,,,,,,,,,,,,,,,,
1,100351,SCIS,SupS IT,Non Distributed Costs (NDC),3414,Consultants,Services,Supplies and Services,"3,990.15",26-Apr-17,R,INTERQUEST GROUP UK LIMITED,,,,,,,,,,,,,,,,,,,,,,,,,,,,,,,,,,,,,,
1,100351,SCIS,SupS IT,Non Distributed Costs (NDC),3414,Consultants,Services,Supplies and Services,"8,252.32",26-Apr-17,R,INTERQUEST GROUP UK LIMITED,,,,,,,,,,,,,,,,,,,,,,,,,,,,,,,,,,,,,,
1,100351,SCIS,SupS IT,Non Distributed Costs (NDC),0075,Agency Staff - Off Contract,Direct EmployeeExpenses-Agency,Employees,"10,000.00",01-Apr-17,R,NUMBER 10 INTERIM LTD,,,,,,,,,,,,,,,,,,,,,,,,,,,,,,,,,,,,,,
1,100351,SCIS,SupS IT,Non Distributed Costs (NDC),3414,Consultants,Services,Supplies and Services,"11,394.11",26-Apr-17,R,INTERQUEST GROUP UK LIMITED,,,,,,,,,,,,,,,,,,,,,,,,,,,,,,,,,,,,,,
1,100351,SCIS,SupS IT,Non Distributed Costs (NDC),3414,Consultants,Services,Supplies and Services,"12,366.38",26-Apr-17,R,INTERQUEST GROUP UK LIMITED,,,,,,,,,,,,,,,,,,,,,,,,,,,,,,,,,,,,,,
1,100351,SCIS,SupS IT,Non Distributed Costs (NDC),3522,IT Support Costs,Comms and Computing,Supplies and Services,"66,500.00",01-Apr-17,R,CORELOGIC,,,,,,,,,,,,,,,,,,,,,,,,,,,,,,,,,,,,,,
1,100352,BST IT Projects,SupS IT,Non Distributed Costs (NDC),0075,Agency Staff - Off Contract,Direct EmployeeExpenses-Agency,Employees,"2,520.00",01-Apr-17,R,MERIDIAN BUSINESS SUPPORT LTD,,,,,,,,,,,,,,,,,,,,,,,,,,,,,,,,,,,,,,
1,100400,AD Customer Services,SupS DOF,Non Distributed Costs (NDC),3305,Office Expenses,Prntng Stnry Gen Off Exp,Supplies and Services,616.39,20-Apr-17,R,SOFTCAT LTD,,,,,,,,,,,,,,,,,,,,,,,,,,,,,,,,,,,,,,
1,100410,Blue Badge,On-street parking,Highways Roads Transport Serv.,3525,Network Charges,Comms and Computing,Supplies and Services,687.8,01-Apr-17,R,NORTHGATE PUBLIC SERVICES (UK),,,,,,,,,,,,,,,,,,,,,,,,,,,,,,,,,,,,,,
1,100410,Blue Badge,On-street parking,Highways Roads Transport Serv.,3525,Network Charges,Comms and Computing,Supplies and Services,"1,061.22",04-Apr-17,R,NORTHGATE PUBLIC SERVICES (UK),,,,,,,,,,,,,,,,,,,,,,,,,,,,,,,,,,,,,,
1,100440,Reg of B. Deaths & Ms,Registn Birth/Death/Marriage,Central Services to the Public,3521,IT licences - Applications,Comms and Computing,Supplies and Services,"4,000.00",01-Apr-17,R,ZIPPORAH LTD,,,,,,,,,,,,,,,,,,,,,,,,,,,,,,,,,,,,,,
1,100450,Translation Service,T/A Corporate Services,Other Operating Inc & Expend,3417,Translation,Services,Supplies and Services,940,01-Apr-17,R,REDACTED,,,,,,,,,,,,,,,,,,,,,,,,,,,,,,,,,,,,,,
1,100541,Local Welfare Support,HB Administration,General Fund Housing,5879,(Conv) Recharges,Conversion,Transfer Payments,"20,000.00",18-Apr-17,R,POST OFFICE LTD,,,,,,,,,,,,,,,,,,,,,,,,,,,,,,,,,,,,,,
1,100542,Local Taxation Services,Council tax collection,Central Services to the Public,3200,Clothing and Uniforms,Clothing Unfrms Laundry,Supplies and Services,790.71,01-Apr-17,R,HSBC INVOICE FINANCE (UK) LTD,,,,,,,,,,,,,,,,,,,,,,,,,,,,,,,,,,,,,,
1,100542,Local Taxation Services,Council tax collection,Central Services to the Public,3521,IT licences - Applications,Comms and Computing,Supplies and Services,"1,440.00",01-Apr-17,R,CIVICA UK LIMITED,,,,,,,,,,,,,,,,,,,,,,,,,,,,,,,,,,,,,,
1,100542,Local Taxation Services,Council tax collection,Central Services to the Public,3305,Office Expenses,Prntng Stnry Gen Off Exp,Supplies and Services,624.4,18-Apr-17,R,MAG:NET SOLUTIONS,,,,,,,,,,,,,,,,,,,,,,,,,,,,,,,,,,,,,,
1,100542,Local Taxation Services,Council tax collection,Central Services to the Public,3521,IT licences - Applications,Comms and Computing,Supplies and Services,"1,110.00",26-Apr-17,R,CIVICA UK LIMITED,,,,,,,,,,,,,,,,,,,,,,,,,,,,,,,,,,,,,,
1,100542,Local Taxation Services,Council tax collection,Central Services to the Public,3526,Online Resources,Comms and Computing,Supplies and Services,"1,125.00",01-Apr-17,R,INFORM CPI LTD,,,,,,,,,,,,,,,,,,,,,,,,,,,,,,,,,,,,,,
1,100542,Local Taxation Services,Council tax collection,Central Services to the Public,3409,Counsel Fees,Services,Supplies and Services,"1,272.00",18-Apr-17,R,WELBECK LAW LLP,,,,,,,,,,,,,,,,,,,,,,,,,,,,,,,,,,,,,,
1,100542,Local Taxation Services,Council tax collection,Central Services to the Public,3521,IT licences - Applications,Comms and Computing,Supplies and Services,"1,487.50",01-Apr-17,R,CIVICA UK LIMITED,,,,,,,,,,,,,,,,,,,,,,,,,,,,,,,,,,,,,,
1,100542,Local Taxation Services,Council tax collection,Central Services to the Public,3521,IT licences - Applications,Comms and Computing,Supplies and Services,"2,277.28",01-Apr-17,R,CIVICA UK LIMITED,,,,,,,,,,,,,,,,,,,,,,,,,,,,,,,,,,,,,,
1,100542,Local Taxation Services,Council tax collection,Central Services to the Public,3521,IT licences - Applications,Comms and Computing,Supplies and Services,"2,454.38",01-Apr-17,R,CIVICA UK LIMITED,,,,,,,,,,,,,,,,,,,,,,,,,,,,,,,,,,,,,,
1,100542,Local Taxation Services,Council tax collection,Central Services to the Public,3521,IT licences - Applications,Comms and Computing,Supplies and Services,"3,675.00",01-Apr-17,R,CIVICA UK LIMITED,,,,,,,,,,,,,,,,,,,,,,,,,,,,,,,,,,,,,,
1,100542,Local Taxation Services,Council tax collection,Central Services to the Public,3996,(DO NOT USE) Contract Payments,Conversion,Supplies and Services,"8,000.00",01-Apr-17,R,TILT Developments Ltd,,,,,,,,,,,,,,,,,,,,,,,,,,,,,,,,,,,,,,
1,100542,Local Taxation Services,Council tax collection,Central Services to the Public,3521,IT licences - Applications,Comms and Computing,Supplies and Services,"17,245.80",01-Apr-17,R,CIVICA UK LIMITED,,,,,,,,,,,,,,,,,,,,,,,,,,,,,,,,,,,,,,
1,100600,Marketing & Communication,SupS Chief Execs,Non Distributed Costs (NDC),3431,Marketing/Advertising Non-Stat,Services,Supplies and Services,537.5,01-Apr-17,R,JCDECAUX UNITED KINGDOM,,,,,,,,,,,,,,,,,,,,,,,,,,,,,,,,,,,,,,
1,100600,Marketing & Communication,SupS Chief Execs,Non Distributed Costs (NDC),0050,Salaries,Direct Employee Expenses,Employees,833.33,01-Apr-17,R,F.W.EVANS CYCLES (UK) LTD.,,,,,,,,,,,,,,,,,,,,,,,,,,,,,,,,,,,,,,
1,100600,Marketing & Communication,SupS Chief Execs,Non Distributed Costs (NDC),3706,Prizes and Awards,Expenses,Supplies and Services,"8,050.00",01-Apr-17,R,THE GIFT VOUCHER SHOP LTD,,,,,,,,,,,,,,,,,,,,,,,,,,,,,,,,,,,,,,
1,100601,Press and Public Relations,SupS Chief Execs,Non Distributed Costs (NDC),3804,Subscriptions,Grants and Subscriptions,Supplies and Services,"6,637.92",01-Apr-17,R,ACCESS INTEL. MEDIA & COM LTD,,,,,,,,,,,,,,,,,,,,,,,,,,,,,,,,,,,,,,
1,100601,Press and Public Relations,SupS Chief Execs,Non Distributed Costs (NDC),3709,Christmas Expenses,Expenses,Supplies and Services,"18,673.89",01-Apr-17,R,FM CONWAY LTD,,,,,,,,,,,,,,,,,,,,,,,,,,,,,,,,,,,,,,
1,100810,Democracy Services,Officer support time,Corporate and Democratic Core,3712,Mayor Allowances,Expenses,Supplies and Services,552.5,01-Apr-17,R,GOSTO FINO PORTUGAL PATISSERIE,,,,,,,,,,,,,,,,,,,,,,,,,,,,,,,,,,,,,,
1,100851,Electoral Registration,Registration of electors,Central Services to the Public,3306,Postage,Prntng Stnry Gen Off Exp,Supplies and Services,537.01,01-Apr-17,R,ROYAL MAIL GROUP LTD,,,,,,,,,,,,,,,,,,,,,,,,,,,,,,,,,,,,,,
1,100851,Electoral Registration,Registration of electors,Central Services to the Public,3804,Subscriptions,Grants and Subscriptions,Supplies and Services,"1,047.00",01-Apr-17,R,LEXIS NEXIS,,,,,,,,,,,,,,,,,,,,,,,,,,,,,,,,,,,,,,
1,100851,Electoral Registration,Registration of electors,Central Services to the Public,3306,Postage,Prntng Stnry Gen Off Exp,Supplies and Services,"1,286.90",01-Apr-17,R,FINANCIAL DATA MANAGEMENT PLC,,,,,,,,,,,,,,,,,,,,,,,,,,,,,,,,,,,,,,
1,100851,Electoral Registration,Registration of electors,Central Services to the Public,3306,Postage,Prntng Stnry Gen Off Exp,Supplies and Services,"1,932.31",01-Apr-17,R,FINANCIAL DATA MANAGEMENT PLC,,,,,,,,,,,,,,,,,,,,,,,,,,,,,,,,,,,,,,
1,100951,Legal Shared Service,SupS Legal,Non Distributed Costs (NDC),3504,Mobile Phones - Call Plans,Comms and Computing,Supplies and Services,538,01-Apr-17,R,EVERYTHING EVERYWHERE,,,,,,,,,,,,,,,,,,,,,,,,,,,,,,,,,,,,,,
1,100951,Legal Shared Service,SupS Legal,Non Distributed Costs (NDC),3306,Postage,Prntng Stnry Gen Off Exp,Supplies and Services,761.84,01-Apr-17,R,NEOPOST FINANCE LIMITED [RM1 2AR],,,,,,,,,,,,,,,,,,,,,,,,,,,,,,,,,,,,,,
1,100953,SLLP - Wandsworth,SupS Legal,Non Distributed Costs (NDC),3500,Telephone - Hardware,Comms and Computing,Supplies and Services,736,01-Apr-17,R,GETRONICS UNIFIED COM (UK) LTD,,,,,,,,,,,,,,,,,,,,,,,,,,,,,,,,,,,,,,
1,100953,SLLP - Wandsworth,SupS Legal,Non Distributed Costs (NDC),3522,IT Support Costs,Comms and Computing,Supplies and Services,"14,792.86",01-Apr-17,R,LEXIS NEXIS,,,,,,,,,,,,,,,,,,,,,,,,,,,,,,,,,,,,,,
1,100970,SLLP - Disbursements,SupS Legal,Non Distributed Costs (NDC),3409,Counsel Fees,Services,Supplies and Services,500,01-Apr-17,R,REDACTED,,,,,,,,,,,,,,,,,,,,,,,,,,,,,,,,,,,,,,
1,100970,SLLP - Disbursements,SupS Legal,Non Distributed Costs (NDC),3409,Counsel Fees,Services,Supplies and Services,510,01-Apr-17,R,REDACTED,,,,,,,,,,,,,,,,,,,,,,,,,,,,,,,,,,,,,,
1,100970,SLLP - Disbursements,SupS Legal,Non Distributed Costs (NDC),3409,Counsel Fees,Services,Supplies and Services,510,01-Apr-17,R,REDACTED,,,,,,,,,,,,,,,,,,,,,,,,,,,,,,,,,,,,,,
1,100970,SLLP - Disbursements,SupS Legal,Non Distributed Costs (NDC),3409,Counsel Fees,Services,Supplies and Services,510,01-Apr-17,R,REDACTED,,,,,,,,,,,,,,,,,,,,,,,,,,,,,,,,,,,,,,
1,100970,SLLP - Disbursements,SupS Legal,Non Distributed Costs (NDC),3409,Counsel Fees,Services,Supplies and Services,517.5,01-Apr-17,R,REDACTED,,,,,,,,,,,,,,,,,,,,,,,,,,,,,,,,,,,,,,
1,100970,SLLP - Disbursements,SupS Legal,Non Distributed Costs (NDC),3409,Counsel Fees,Services,Supplies and Services,520,01-Apr-17,R,REDACTED,,,,,,,,,,,,,,,,,,,,,,,,,,,,,,,,,,,,,,
1,100970,SLLP - Disbursements,SupS Legal,Non Distributed Costs (NDC),3409,Counsel Fees,Services,Supplies and Services,520,01-Apr-17,R,REDACTED,,,,,,,,,,,,,,,,,,,,,,,,,,,,,,,,,,,,,,
1,100970,SLLP - Disbursements,SupS Legal,Non Distributed Costs (NDC),3401,Medical Fees,Services,Supplies and Services,537.6,01-Apr-17,R,The Canterbury Psychological Clinic Ltd,,,,,,,,,,,,,,,,,,,,,,,,,,,,,,,,,,,,,,
1,100970,SLLP - Disbursements,SupS Legal,Non Distributed Costs (NDC),3409,Counsel Fees,Services,Supplies and Services,550,01-Apr-17,R,REDACTED,,,,,,,,,,,,,,,,,,,,,,,,,,,,,,,,,,,,,,
1,100970,SLLP - Disbursements,SupS Legal,Non Distributed Costs (NDC),3409,Counsel Fees,Services,Supplies and Services,550,01-Apr-17,R,REDACTED,,,,,,,,,,,,,,,,,,,,,,,,,,,,,,,,,,,,,,
1,100970,SLLP - Disbursements,SupS Legal,Non Distributed Costs (NDC),3409,Counsel Fees,Services,Supplies and Services,550,01-Apr-17,R,REDACTED,,,,,,,,,,,,,,,,,,,,,,,,,,,,,,,,,,,,,,
1,100970,SLLP - Disbursements,SupS Legal,Non Distributed Costs (NDC),3409,Counsel Fees,Services,Supplies and Services,550,01-Apr-17,R,REDACTED,,,,,,,,,,,,,,,,,,,,,,,,,,,,,,,,,,,,,,
1,100970,SLLP - Disbursements,SupS Legal,Non Distributed Costs (NDC),3409,Counsel Fees,Services,Supplies and Services,581.25,01-Apr-17,R,REDACTED,,,,,,,,,,,,,,,,,,,,,,,,,,,,,,,,,,,,,,
1,100970,SLLP - Disbursements,SupS Legal,Non Distributed Costs (NDC),3401,Medical Fees,Services,Supplies and Services,594,01-Apr-17,R,ORCHID CELLMARK LTD,,,,,,,,,,,,,,,,,,,,,,,,,,,,,,,,,,,,,,
1,100970,SLLP - Disbursements,SupS Legal,Non Distributed Costs (NDC),3409,Counsel Fees,Services,Supplies and Services,600,01-Apr-17,R,REDACTED,,,,,,,,,,,,,,,,,,,,,,,,,,,,,,,,,,,,,,
1,100970,SLLP - Disbursements,SupS Legal,Non Distributed Costs (NDC),3409,Counsel Fees,Services,Supplies and Services,600,01-Apr-17,R,REDACTED,,,,,,,,,,,,,,,,,,,,,,,,,,,,,,,,,,,,,,
1,100970,SLLP - Disbursements,SupS Legal,Non Distributed Costs (NDC),3409,Counsel Fees,Services,Supplies and Services,610,01-Apr-17,R,REDACTED,,,,,,,,,,,,,,,,,,,,,,,,,,,,,,,,,,,,,,
1,100970,SLLP - Disbursements,SupS Legal,Non Distributed Costs (NDC),3409,Counsel Fees,Services,Supplies and Services,622.5,11-Apr-17,R,REDACTED,,,,,,,,,,,,,,,,,,,,,,,,,,,,,,,,,,,,,,
1,100970,SLLP - Disbursements,SupS Legal,Non Distributed Costs (NDC),3409,Counsel Fees,Services,Supplies and Services,675,01-Apr-17,R,REDACTED,,,,,,,,,,,,,,,,,,,,,,,,,,,,,,,,,,,,,,
1,100970,SLLP - Disbursements,SupS Legal,Non Distributed Costs (NDC),3409,Counsel Fees,Services,Supplies and Services,675,18-Apr-17,R,REDACTED,,,,,,,,,,,,,,,,,,,,,,,,,,,,,,,,,,,,,,
1,100970,SLLP - Disbursements,SupS Legal,Non Distributed Costs (NDC),3409,Counsel Fees,Services,Supplies and Services,675,01-Apr-17,R,REDACTED,,,,,,,,,,,,,,,,,,,,,,,,,,,,,,,,,,,,,,
1,100970,SLLP - Disbursements,SupS Legal,Non Distributed Costs (NDC),3409,Counsel Fees,Services,Supplies and Services,675,01-Apr-17,R,REDACTED,,,,,,,,,,,,,,,,,,,,,,,,,,,,,,,,,,,,,,
1,100970,SLLP - Disbursements,SupS Legal,Non Distributed Costs (NDC),3409,Counsel Fees,Services,Supplies and Services,675,01-Apr-17,R,REDACTED,,,,,,,,,,,,,,,,,,,,,,,,,,,,,,,,,,,,,,
1,100970,SLLP - Disbursements,SupS Legal,Non Distributed Costs (NDC),3409,Counsel Fees,Services,Supplies and Services,675,01-Apr-17,R,REDACTED,,,,,,,,,,,,,,,,,,,,,,,,,,,,,,,,,,,,,,
1,100970,SLLP - Disbursements,SupS Legal,Non Distributed Costs (NDC),3401,Medical Fees,Services,Supplies and Services,713.5,01-Apr-17,R,CHILD & FAMILY SOLUTIONS LTD,,,,,,,,,,,,,,,,,,,,,,,,,,,,,,,,,,,,,,
1,100970,SLLP - Disbursements,SupS Legal,Non Distributed Costs (NDC),3400,Fees,Services,Supplies and Services,721.06,01-Apr-17,R,REDACTED,,,,,,,,,,,,,,,,,,,,,,,,,,,,,,,,,,,,,,
1,100970,SLLP - Disbursements,SupS Legal,Non Distributed Costs (NDC),3409,Counsel Fees,Services,Supplies and Services,750,01-Apr-17,R,REDACTED,,,,,,,,,,,,,,,,,,,,,,,,,,,,,,,,,,,,,,
1,100970,SLLP - Disbursements,SupS Legal,Non Distributed Costs (NDC),3409,Counsel Fees,Services,Supplies and Services,750,01-Apr-17,R,REDACTED,,,,,,,,,,,,,,,,,,,,,,,,,,,,,,,,,,,,,,
1,100970,SLLP - Disbursements,SupS Legal,Non Distributed Costs (NDC),3400,Fees,Services,Supplies and Services,865.32,01-Apr-17,R,CARTER BROWN THE EXPERT SERV,,,,,,,,,,,,,,,,,,,,,,,,,,,,,,,,,,,,,,
1,100970,SLLP - Disbursements,SupS Legal,Non Distributed Costs (NDC),3409,Counsel Fees,Services,Supplies and Services,880,01-Apr-17,R,REDACTED,,,,,,,,,,,,,,,,,,,,,,,,,,,,,,,,,,,,,,
1,100970,SLLP - Disbursements,SupS Legal,Non Distributed Costs (NDC),3409,Counsel Fees,Services,Supplies and Services,900,01-Apr-17,R,REDACTED,,,,,,,,,,,,,,,,,,,,,,,,,,,,,,,,,,,,,,
1,100970,SLLP - Disbursements,SupS Legal,Non Distributed Costs (NDC),3409,Counsel Fees,Services,Supplies and Services,930,01-Apr-17,R,REDACTED,,,,,,,,,,,,,,,,,,,,,,,,,,,,,,,,,,,,,,
1,100970,SLLP - Disbursements,SupS Legal,Non Distributed Costs (NDC),3401,Medical Fees,Services,Supplies and Services,"1,094.45",01-Apr-17,R,EXPERT IN MIND,,,,,,,,,,,,,,,,,,,,,,,,,,,,,,,,,,,,,,
1,100970,SLLP - Disbursements,SupS Legal,Non Distributed Costs (NDC),3409,Counsel Fees,Services,Supplies and Services,"1,120.00",01-Apr-17,R,REDACTED,,,,,,,,,,,,,,,,,,,,,,,,,,,,,,,,,,,,,,
1,100970,SLLP - Disbursements,SupS Legal,Non Distributed Costs (NDC),3409,Counsel Fees,Services,Supplies and Services,"1,120.00",01-Apr-17,R,REDACTED,,,,,,,,,,,,,,,,,,,,,,,,,,,,,,,,,,,,,,
1,100970,SLLP - Disbursements,SupS Legal,Non Distributed Costs (NDC),3409,Counsel Fees,Services,Supplies and Services,"1,250.00",01-Apr-17,R,REDACTED,,,,,,,,,,,,,,,,,,,,,,,,,,,,,,,,,,,,,,
1,100970,SLLP - Disbursements,SupS Legal,Non Distributed Costs (NDC),3409,Counsel Fees,Services,Supplies and Services,"1,250.00",01-Apr-17,R,REDACTED,,,,,,,,,,,,,,,,,,,,,,,,,,,,,,,,,,,,,,
1,100970,SLLP - Disbursements,SupS Legal,Non Distributed Costs (NDC),3409,Counsel Fees,Services,Supplies and Services,"1,250.00",01-Apr-17,R,REDACTED,,,,,,,,,,,,,,,,,,,,,,,,,,,,,,,,,,,,,,
1,100970,SLLP - Disbursements,SupS Legal,Non Distributed Costs (NDC),3409,Counsel Fees,Services,Supplies and Services,"1,250.00",01-Apr-17,R,REDACTED,,,,,,,,,,,,,,,,,,,,,,,,,,,,,,,,,,,,,,
1,100970,SLLP - Disbursements,SupS Legal,Non Distributed Costs (NDC),3409,Counsel Fees,Services,Supplies and Services,"1,250.00",01-Apr-17,R,REDACTED,,,,,,,,,,,,,,,,,,,,,,,,,,,,,,,,,,,,,,
1,100970,SLLP - Disbursements,SupS Legal,Non Distributed Costs (NDC),3409,Counsel Fees,Services,Supplies and Services,"1,250.00",01-Apr-17,R,REDACTED,,,,,,,,,,,,,,,,,,,,,,,,,,,,,,,,,,,,,,
1,100970,SLLP - Disbursements,SupS Legal,Non Distributed Costs (NDC),3409,Counsel Fees,Services,Supplies and Services,"1,250.00",01-Apr-17,R,REDACTED,,,,,,,,,,,,,,,,,,,,,,,,,,,,,,,,,,,,,,
1,100970,SLLP - Disbursements,SupS Legal,Non Distributed Costs (NDC),3409,Counsel Fees,Services,Supplies and Services,"1,250.00",01-Apr-17,R,REDACTED,,,,,,,,,,,,,,,,,,,,,,,,,,,,,,,,,,,,,,
1,100970,SLLP - Disbursements,SupS Legal,Non Distributed Costs (NDC),3400,Fees,Services,Supplies and Services,"1,430.40",01-Apr-17,R,REDACTED,,,,,,,,,,,,,,,,,,,,,,,,,,,,,,,,,,,,,,
1,100970,SLLP - Disbursements,SupS Legal,Non Distributed Costs (NDC),3409,Counsel Fees,Services,Supplies and Services,"1,500.00",01-Apr-17,R,REDACTED,,,,,,,,,,,,,,,,,,,,,,,,,,,,,,,,,,,,,,
1,100970,SLLP - Disbursements,SupS Legal,Non Distributed Costs (NDC),3409,Counsel Fees,Services,Supplies and Services,"1,510.00",01-Apr-17,R,REDACTED,,,,,,,,,,,,,,,,,,,,,,,,,,,,,,,,,,,,,,
1,100970,SLLP - Disbursements,SupS Legal,Non Distributed Costs (NDC),3400,Fees,Services,Supplies and Services,"1,563.90",01-Apr-17,R,CARTER BROWN THE EXPERT SERV,,,,,,,,,,,,,,,,,,,,,,,,,,,,,,,,,,,,,,
1,100970,SLLP - Disbursements,SupS Legal,Non Distributed Costs (NDC),3409,Counsel Fees,Services,Supplies and Services,"1,700.00",01-Apr-17,R,REDACTED,,,,,,,,,,,,,,,,,,,,,,,,,,,,,,,,,,,,,,
1,100970,SLLP - Disbursements,SupS Legal,Non Distributed Costs (NDC),3409,Counsel Fees,Services,Supplies and Services,"1,758.00",01-Apr-17,R,REDACTED,,,,,,,,,,,,,,,,,,,,,,,,,,,,,,,,,,,,,,
1,100970,SLLP - Disbursements,SupS Legal,Non Distributed Costs (NDC),3409,Counsel Fees,Services,Supplies and Services,"1,790.00",01-Apr-17,R,REDACTED,,,,,,,,,,,,,,,,,,,,,,,,,,,,,,,,,,,,,,
1,100970,SLLP - Disbursements,SupS Legal,Non Distributed Costs (NDC),3409,Counsel Fees,Services,Supplies and Services,"1,850.00",01-Apr-17,R,REDACTED,,,,,,,,,,,,,,,,,,,,,,,,,,,,,,,,,,,,,,
1,100970,SLLP - Disbursements,SupS Legal,Non Distributed Costs (NDC),3409,Counsel Fees,Services,Supplies and Services,"1,955.00",01-Apr-17,R,REDACTED,,,,,,,,,,,,,,,,,,,,,,,,,,,,,,,,,,,,,,
1,100970,SLLP - Disbursements,SupS Legal,Non Distributed Costs (NDC),3409,Counsel Fees,Services,Supplies and Services,"1,979.17",01-Apr-17,R,REDACTED,,,,,,,,,,,,,,,,,,,,,,,,,,,,,,,,,,,,,,
1,100970,SLLP - Disbursements,SupS Legal,Non Distributed Costs (NDC),3409,Counsel Fees,Services,Supplies and Services,"2,065.00",01-Apr-17,R,REDACTED,,,,,,,,,,,,,,,,,,,,,,,,,,,,,,,,,,,,,,
1,100970,SLLP - Disbursements,SupS Legal,Non Distributed Costs (NDC),3401,Medical Fees,Services,Supplies and Services,"2,259.00",01-Apr-17,R,JK ASSESSMENT SERVICES,,,,,,,,,,,,,,,,,,,,,,,,,,,,,,,,,,,,,,
1,100970,SLLP - Disbursements,SupS Legal,Non Distributed Costs (NDC),3409,Counsel Fees,Services,Supplies and Services,"2,500.00",01-Apr-17,R,REDACTED,,,,,,,,,,,,,,,,,,,,,,,,,,,,,,,,,,,,,,
1,100970,SLLP - Disbursements,SupS Legal,Non Distributed Costs (NDC),3400,Fees,Services,Supplies and Services,"2,535.00",01-Apr-17,R,PHILLIPS & GUPTA LIMITED,,,,,,,,,,,,,,,,,,,,,,,,,,,,,,,,,,,,,,
1,100970,SLLP - Disbursements,SupS Legal,Non Distributed Costs (NDC),3409,Counsel Fees,Services,Supplies and Services,"3,000.00",01-Apr-17,R,REDACTED,,,,,,,,,,,,,,,,,,,,,,,,,,,,,,,,,,,,,,
1,100970,SLLP - Disbursements,SupS Legal,Non Distributed Costs (NDC),3401,Medical Fees,Services,Supplies and Services,"3,060.00",01-Apr-17,R,EXPERT IN MIND,,,,,,,,,,,,,,,,,,,,,,,,,,,,,,,,,,,,,,
1,100970,SLLP - Disbursements,SupS Legal,Non Distributed Costs (NDC),3409,Counsel Fees,Services,Supplies and Services,"3,150.00",01-Apr-17,R,REDACTED,,,,,,,,,,,,,,,,,,,,,,,,,,,,,,,,,,,,,,
1,100970,SLLP - Disbursements,SupS Legal,Non Distributed Costs (NDC),3409,Counsel Fees,Services,Supplies and Services,"3,300.00",01-Apr-17,R,REDACTED,,,,,,,,,,,,,,,,,,,,,,,,,,,,,,,,,,,,,,
1,100970,SLLP - Disbursements,SupS Legal,Non Distributed Costs (NDC),3409,Counsel Fees,Services,Supplies and Services,"4,935.00",01-Apr-17,R,REDACTED,,,,,,,,,,,,,,,,,,,,,,,,,,,,,,,,,,,,,,
1,100970,SLLP - Disbursements,SupS Legal,Non Distributed Costs (NDC),3409,Counsel Fees,Services,Supplies and Services,"5,650.00",01-Apr-17,R,REDACTED,,,,,,,,,,,,,,,,,,,,,,,,,,,,,,,,,,,,,,
1,100970,SLLP - Disbursements,SupS Legal,Non Distributed Costs (NDC),3999,(DO NOT USE) Service From Prov,Conversion,Supplies and Services,"7,742.00",01-Apr-17,R,Warnapala & Co,,,,,,,,,,,,,,,,,,,,,,,,,,,,,,,,,,,,,,
1,100970,SLLP - Disbursements,SupS Legal,Non Distributed Costs (NDC),3999,(DO NOT USE) Service From Prov,Conversion,Supplies and Services,"8,959.60",01-Apr-17,R,Warnapala & Co,,,,,,,,,,,,,,,,,,,,,,,,,,,,,,,,,,,,,,
1,100970,SLLP - Disbursements,SupS Legal,Non Distributed Costs (NDC),3400,Fees,Services,Supplies and Services,"11,997.50",30-Apr-17,R,REDACTED,,,,,,,,,,,,,,,,,,,,,,,,,,,,,,,,,,,,,,
1,101070,Learning and Development,SupS Health & Safety,Non Distributed Costs (NDC),0151,External Training Costs,Indirect Employee Expenses,Employees,700,01-Apr-17,R,LAVAT CONSULTING LIMITED,,,,,,,,,,,,,,,,,,,,,,,,,,,,,,,,,,,,,,
1,101070,Learning and Development,SupS Health & Safety,Non Distributed Costs (NDC),0151,External Training Costs,Indirect Employee Expenses,Employees,550,01-Apr-17,R,MSH TRAINING & CONSULTANCY LTD,,,,,,,,,,,,,,,,,,,,,,,,,,,,,,,,,,,,,,
1,101070,Learning and Development,SupS Health & Safety,Non Distributed Costs (NDC),0151,External Training Costs,Indirect Employee Expenses,Employees,650,01-Apr-17,R,MEDI AID(UK) LTD,,,,,,,,,,,,,,,,,,,,,,,,,,,,,,,,,,,,,,
1,101070,Learning and Development,SupS Health & Safety,Non Distributed Costs (NDC),0151,External Training Costs,Indirect Employee Expenses,Employees,675,01-Apr-17,R,PEARLCATCHERS LIMITED,,,,,,,,,,,,,,,,,,,,,,,,,,,,,,,,,,,,,,
1,101070,Learning and Development,SupS Health & Safety,Non Distributed Costs (NDC),0151,External Training Costs,Indirect Employee Expenses,Employees,675,01-Apr-17,R,PEARLCATCHERS LIMITED,,,,,,,,,,,,,,,,,,,,,,,,,,,,,,,,,,,,,,
1,101070,Learning and Development,SupS Health & Safety,Non Distributed Costs (NDC),0151,External Training Costs,Indirect Employee Expenses,Employees,675,01-Apr-17,R,PEARLCATCHERS LIMITED,,,,,,,,,,,,,,,,,,,,,,,,,,,,,,,,,,,,,,
1,101070,Learning and Development,SupS Health & Safety,Non Distributed Costs (NDC),0151,External Training Costs,Indirect Employee Expenses,Employees,750,01-Apr-17,R,SALVEO SAFETY,,,,,,,,,,,,,,,,,,,,,,,,,,,,,,,,,,,,,,
1,101070,Learning and Development,SupS Health & Safety,Non Distributed Costs (NDC),0151,External Training Costs,Indirect Employee Expenses,Employees,830,20-Apr-17,R,MAYBO LTD,,,,,,,,,,,,,,,,,,,,,,,,,,,,,,,,,,,,,,
1,101070,Learning and Development,SupS Health & Safety,Non Distributed Costs (NDC),0151,External Training Costs,Indirect Employee Expenses,Employees,830,20-Apr-17,R,MAYBO LTD,,,,,,,,,,,,,,,,,,,,,,,,,,,,,,,,,,,,,,
1,101070,Learning and Development,SupS Health & Safety,Non Distributed Costs (NDC),0151,External Training Costs,Indirect Employee Expenses,Employees,830,20-Apr-17,R,MAYBO LTD,,,,,,,,,,,,,,,,,,,,,,,,,,,,,,,,,,,,,,
1,101070,Learning and Development,SupS Health & Safety,Non Distributed Costs (NDC),0151,External Training Costs,Indirect Employee Expenses,Employees,830,20-Apr-17,R,MAYBO LTD,,,,,,,,,,,,,,,,,,,,,,,,,,,,,,,,,,,,,,
1,101070,Learning and Development,SupS Health & Safety,Non Distributed Costs (NDC),0151,External Training Costs,Indirect Employee Expenses,Employees,830,20-Apr-17,R,MAYBO LTD,,,,,,,,,,,,,,,,,,,,,,,,,,,,,,,,,,,,,,
1,101070,Learning and Development,SupS Health & Safety,Non Distributed Costs (NDC),0151,External Training Costs,Indirect Employee Expenses,Employees,871.15,01-Apr-17,R,IDEA,,,,,,,,,,,,,,,,,,,,,,,,,,,,,,,,,,,,,,
1,101070,Learning and Development,SupS Health & Safety,Non Distributed Costs (NDC),0151,External Training Costs,Indirect Employee Expenses,Employees,900,01-Apr-17,R,ARVATO LTD,,,,,,,,,,,,,,,,,,,,,,,,,,,,,,,,,,,,,,
1,101070,Learning and Development,SupS Health & Safety,Non Distributed Costs (NDC),0151,External Training Costs,Indirect Employee Expenses,Employees,925,01-Apr-17,R,EDGE TRAINING & CONSULT'CY LTD,,,,,,,,,,,,,,,,,,,,,,,,,,,,,,,,,,,,,,
1,101070,Learning and Development,SupS Health & Safety,Non Distributed Costs (NDC),0151,External Training Costs,Indirect Employee Expenses,Employees,925,01-Apr-17,R,EDGE TRAINING & CONSULT'CY LTD,,,,,,,,,,,,,,,,,,,,,,,,,,,,,,,,,,,,,,
1,101070,Learning and Development,SupS Health & Safety,Non Distributed Costs (NDC),3700,Conferences,Expenses,Supplies and Services,"1,100.00",01-Apr-17,R,The Commis'n for Local Admin in England,,,,,,,,,,,,,,,,,,,,,,,,,,,,,,,,,,,,,,
1,101070,Learning and Development,SupS Health & Safety,Non Distributed Costs (NDC),0151,External Training Costs,Indirect Employee Expenses,Employees,"1,220.00",01-Apr-17,R,BTFI LIMITED,,,,,,,,,,,,,,,,,,,,,,,,,,,,,,,,,,,,,,
1,101070,Learning and Development,SupS Health & Safety,Non Distributed Costs (NDC),0151,External Training Costs,Indirect Employee Expenses,Employees,"1,220.00",01-Apr-17,R,BTFI LIMITED,,,,,,,,,,,,,,,,,,,,,,,,,,,,,,,,,,,,,,
1,101070,Learning and Development,SupS Health & Safety,Non Distributed Costs (NDC),0151,External Training Costs,Indirect Employee Expenses,Employees,"2,200.00",05-Apr-17,R,HTR Human Resources Consultants,,,,,,,,,,,,,,,,,,,,,,,,,,,,,,,,,,,,,,
1,101070,Learning and Development,SupS Health & Safety,Non Distributed Costs (NDC),0151,External Training Costs,Indirect Employee Expenses,Employees,"2,400.00",01-Apr-17,R,URBANCANDA,,,,,,,,,,,,,,,,,,,,,,,,,,,,,,,,,,,,,,
1,101070,Learning and Development,SupS Health & Safety,Non Distributed Costs (NDC),3700,Conferences,Expenses,Supplies and Services,"4,800.00",06-Apr-17,R,Eleve HR Ltd,,,,,,,,,,,,,,,,,,,,,,,,,,,,,,,,,,,,,,
1,101150,Payroll,SupS Payroll,Non Distributed Costs (NDC),3706,Prizes and Awards,Expenses,Supplies and Services,"1,600.00",01-Apr-17,R,THE GIFT VOUCHER SHOP LTD,,,,,,,,,,,,,,,,,,,,,,,,,,,,,,,,,,,,,,
1,101211,Civic Centre,SupS Facilities,Non Distributed Costs (NDC),1001,Building Improvements,RepairsAlterations&MtceOfBldgs,Premises Related Expenses,"1,014.25",03-Apr-17,R,SALTASH ENTERPRISES LTD,,,,,,,,,,,,,,,,,,,,,,,,,,,,,,,,,,,,,,
1,101211,Civic Centre,SupS Facilities,Non Distributed Costs (NDC),1004,Building Maint - Electrical,RepairsAlterations&MtceOfBldgs,Premises Related Expenses,"2,765.87",01-Apr-17,R,APLEONA HSG LIMITED,,,,,,,,,,,,,,,,,,,,,,,,,,,,,,,,,,,,,,
1,101211,Civic Centre,SupS Facilities,Non Distributed Costs (NDC),1001,Building Improvements,RepairsAlterations&MtceOfBldgs,Premises Related Expenses,"11,790.88",03-Apr-17,R,SALTASH ENTERPRISES LTD,,,,,,,,,,,,,,,,,,,,,,,,,,,,,,,,,,,,,,
1,101211,Civic Centre,SupS Facilities,Non Distributed Costs (NDC),1300,NNDR,Rates,Premises Related Expenses,"476,545.00",04-Apr-17,R,REDACTED,,,,,,,,,,,,,,,,,,,,,,,,,,,,,,,,,,,,,,
1,101212,Corporate Services Buildings,SupS Facilities,Non Distributed Costs (NDC),1036,FM - Responsive Internal Build,RepairsAlterations&MtceOfBldgs,Premises Related Expenses,543,01-Apr-17,R,ANGEL SPRINGS LIMITED,,,,,,,,,,,,,,,,,,,,,,,,,,,,,,,,,,,,,,
1,101212,Corporate Services Buildings,SupS Facilities,Non Distributed Costs (NDC),1001,Building Improvements,RepairsAlterations&MtceOfBldgs,Premises Related Expenses,"3,746.48",03-Apr-17,R,SALTASH ENTERPRISES LTD,,,,,,,,,,,,,,,,,,,,,,,,,,,,,,,,,,,,,,
1,101212,Corporate Services Buildings,SupS Facilities,Non Distributed Costs (NDC),1001,Building Improvements,RepairsAlterations&MtceOfBldgs,Premises Related Expenses,"4,631.25",01-Apr-17,R,SALTASH ENTERPRISES LTD,,,,,,,,,,,,,,,,,,,,,,,,,,,,,,,,,,,,,,
1,101212,Corporate Services Buildings,SupS Facilities,Non Distributed Costs (NDC),1101,Gas,Energy Costs,Premises Related Expenses,"4,756.61",01-Apr-17,R,GAZPROM MARKETING&TRADING LTD,,,,,,,,,,,,,,,,,,,,,,,,,,,,,,,,,,,,,,
1,101212,Corporate Services Buildings,SupS Facilities,Non Distributed Costs (NDC),1036,FM - Responsive Internal Build,RepairsAlterations&MtceOfBldgs,Premises Related Expenses,"7,806.26",01-Apr-17,R,FUTURE TECH,,,,,,,,,,,,,,,,,,,,,,,,,,,,,,,,,,,,,,
1,101212,Corporate Services Buildings,SupS Facilities,Non Distributed Costs (NDC),1101,Gas,Energy Costs,Premises Related Expenses,"9,273.50",01-Apr-17,R,GAZPROM MARKETING&TRADING LTD,,,,,,,,,,,,,,,,,,,,,,,,,,,,,,,,,,,,,,
1,101212,Corporate Services Buildings,SupS Facilities,Non Distributed Costs (NDC),1036,FM - Responsive Internal Build,RepairsAlterations&MtceOfBldgs,Premises Related Expenses,975,01-Apr-17,R,ACCORDIAL,,,,,,,,,,,,,,,,,,,,,,,,,,,,,,,,,,,,,,
1,101212,Corporate Services Buildings,SupS Facilities,Non Distributed Costs (NDC),1101,Gas,Energy Costs,Premises Related Expenses,"8,007.29",07-Apr-17,R,GAZPROM MARKETING&TRADING LTD,,,,,,,,,,,,,,,,,,,,,,,,,,,,,,,,,,,,,,
1,101250,C & H Buildings,OP 65 & Over Day Care,Physical/ Sensory Support,1036,FM - Responsive Internal Build,RepairsAlterations&MtceOfBldgs,Premises Related Expenses,607.92,01-Apr-17,R,APLEONA HSG LIMITED,,,,,,,,,,,,,,,,,,,,,,,,,,,,,,,,,,,,,,
1,101250,C & H Buildings,OP 65 & Over Day Care,Physical/ Sensory Support,1036,FM - Responsive Internal Build,RepairsAlterations&MtceOfBldgs,Premises Related Expenses,673.2,04-Apr-17,R,APLEONA HSG LIMITED,,,,,,,,,,,,,,,,,,,,,,,,,,,,,,,,,,,,,,
1,101280,CSF Buildings,Strategic Management,Children's Social Care,1036,FM - Responsive Internal Build,RepairsAlterations&MtceOfBldgs,Premises Related Expenses,560.99,01-Apr-17,R,APLEONA HSG LIMITED,,,,,,,,,,,,,,,,,,,,,,,,,,,,,,,,,,,,,,
1,101310,E & R Buildings,Parks & Open Spaces,Cultural and Related Services,1001,Building Improvements,RepairsAlterations&MtceOfBldgs,Premises Related Expenses,870,01-Apr-17,R,LA BELLE ROOFING CO LTD,,,,,,,,,,,,,,,,,,,,,,,,,,,,,,,,,,,,,,
1,101311,Leisure Buildings,Parks & Open Spaces,Cultural and Related Services,1001,Building Improvements,RepairsAlterations&MtceOfBldgs,Premises Related Expenses,555.6,01-Apr-17,R,SALTASH ENTERPRISES LTD,,,,,,,,,,,,,,,,,,,,,,,,,,,,,,,,,,,,,,
1,101350,Facilities,SupS Facilities,Non Distributed Costs (NDC),1041,Energy Conservation Works,RepairsAlterations&MtceOfBldgs,Premises Related Expenses,523.56,01-Apr-17,R,ENERGY ASSETS LIMITED,,,,,,,,,,,,,,,,,,,,,,,,,,,,,,,,,,,,,,
1,101350,Facilities,SupS Facilities,Non Distributed Costs (NDC),1041,Energy Conservation Works,RepairsAlterations&MtceOfBldgs,Premises Related Expenses,630,12-Apr-17,R,STARK SOFTWARE INTERNATIONAL,,,,,,,,,,,,,,,,,,,,,,,,,,,,,,,,,,,,,,
1,101350,Facilities,SupS Facilities,Non Distributed Costs (NDC),1041,Energy Conservation Works,RepairsAlterations&MtceOfBldgs,Premises Related Expenses,"1,971.00",01-Apr-17,R,EDF CUSTOMER FIELD SERVICES,,,,,,,,,,,,,,,,,,,,,,,,,,,,,,,,,,,,,,
1,101350,Facilities,SupS Facilities,Non Distributed Costs (NDC),1022,Asbestos Assessment,RepairsAlterations&MtceOfBldgs,Premises Related Expenses,"6,600.00",01-Apr-17,R,LIFE ENVIRONMENTAL,,,,,,,,,,,,,,,,,,,,,,,,,,,,,,,,,,,,,,
1,101350,Facilities,SupS Facilities,Non Distributed Costs (NDC),1022,Asbestos Assessment,RepairsAlterations&MtceOfBldgs,Premises Related Expenses,"6,600.00",01-Apr-17,R,LIFE ENVIRONMENTAL,,,,,,,,,,,,,,,,,,,,,,,,,,,,,,,,,,,,,,
1,101350,Facilities,SupS Facilities,Non Distributed Costs (NDC),1041,Energy Conservation Works,RepairsAlterations&MtceOfBldgs,Premises Related Expenses,"7,750.00",01-Apr-17,R,KINECT ENERGY UK LTD,,,,,,,,,,,,,,,,,,,,,,,,,,,,,,,,,,,,,,
1,101350,Facilities,SupS Facilities,Non Distributed Costs (NDC),1002,Building Maintenance,RepairsAlterations&MtceOfBldgs,Premises Related Expenses,"9,500.00",01-Apr-17,R,FRONTLINE DATA LIMITED,,,,,,,,,,,,,,,,,,,,,,,,,,,,,,,,,,,,,,
1,101350,Facilities,SupS Facilities,Non Distributed Costs (NDC),1041,Energy Conservation Works,RepairsAlterations&MtceOfBldgs,Premises Related Expenses,"13,052.22",01-Apr-17,R,STARK SOFTWARE INTERNATIONAL,,,,,,,,,,,,,,,,,,,,,,,,,,,,,,,,,,,,,,
1,101352,Corporate Contracts - FM,SupS Facilities,Non Distributed Costs (NDC),3005,Cleaning Materials,Equip Furniture/Materials,Supplies and Services,504,01-Apr-17,R,GREENHAM TRADING LTD,,,,,,,,,,,,,,,,,,,,,,,,,,,,,,,,,,,,,,
1,101352,Corporate Contracts - FM,SupS Facilities,Non Distributed Costs (NDC),3005,Cleaning Materials,Equip Furniture/Materials,Supplies and Services,504,26-Apr-17,R,GREENHAM TRADING LTD,,,,,,,,,,,,,,,,,,,,,,,,,,,,,,,,,,,,,,
1,101352,Corporate Contracts - FM,SupS Facilities,Non Distributed Costs (NDC),1600,Corporate Cleaning Contract,Cleaning and Domestic Supplies,Premises Related Expenses,"1,591.80",01-Apr-17,R,BIRKIN CLEANING SERVICES LTD,,,,,,,,,,,,,,,,,,,,,,,,,,,,,,,,,,,,,,
1,101352,Corporate Contracts - FM,SupS Facilities,Non Distributed Costs (NDC),3005,Cleaning Materials,Equip Furniture/Materials,Supplies and Services,504,01-Apr-17,R,GREENHAM TRADING LTD,,,,,,,,,,,,,,,,,,,,,,,,,,,,,,,,,,,,,,
1,101352,Corporate Contracts - FM,SupS Facilities,Non Distributed Costs (NDC),3005,Cleaning Materials,Equip Furniture/Materials,Supplies and Services,504,11-Apr-17,R,GREENHAM TRADING LTD,,,,,,,,,,,,,,,,,,,,,,,,,,,,,,,,,,,,,,
1,101352,Corporate Contracts - FM,SupS Facilities,Non Distributed Costs (NDC),3996,(DO NOT USE) Contract Payments,Conversion,Supplies and Services,609.27,01-Apr-17,R,OCS GROUP UK LTD T/A CANNON,,,,,,,,,,,,,,,,,,,,,,,,,,,,,,,,,,,,,,
1,101352,Corporate Contracts - FM,SupS Facilities,Non Distributed Costs (NDC),1600,Corporate Cleaning Contract,Cleaning and Domestic Supplies,Premises Related Expenses,865.12,01-Apr-17,R,BIRKIN CLEANING SERVICES LTD,,,,,,,,,,,,,,,,,,,,,,,,,,,,,,,,,,,,,,
1,101352,Corporate Contracts - FM,SupS Facilities,Non Distributed Costs (NDC),1600,Corporate Cleaning Contract,Cleaning and Domestic Supplies,Premises Related Expenses,885.31,01-Apr-17,R,BIRKIN CLEANING SERVICES LTD,,,,,,,,,,,,,,,,,,,,,,,,,,,,,,,,,,,,,,
1,101352,Corporate Contracts - FM,SupS Facilities,Non Distributed Costs (NDC),1600,Corporate Cleaning Contract,Cleaning and Domestic Supplies,Premises Related Expenses,892.7,01-Apr-17,R,BIRKIN CLEANING SERVICES LTD,,,,,,,,,,,,,,,,,,,,,,,,,,,,,,,,,,,,,,
1,101352,Corporate Contracts - FM,SupS Facilities,Non Distributed Costs (NDC),1600,Corporate Cleaning Contract,Cleaning and Domestic Supplies,Premises Related Expenses,892.7,01-Apr-17,R,BIRKIN CLEANING SERVICES LTD,,,,,,,,,,,,,,,,,,,,,,,,,,,,,,,,,,,,,,
1,101352,Corporate Contracts - FM,SupS Facilities,Non Distributed Costs (NDC),1600,Corporate Cleaning Contract,Cleaning and Domestic Supplies,Premises Related Expenses,"1,304.95",01-Apr-17,R,BIRKIN CLEANING SERVICES LTD,,,,,,,,,,,,,,,,,,,,,,,,,,,,,,,,,,,,,,
1,101352,Corporate Contracts - FM,SupS Facilities,Non Distributed Costs (NDC),1600,Corporate Cleaning Contract,Cleaning and Domestic Supplies,Premises Related Expenses,"1,497.38",01-Apr-17,R,BIRKIN CLEANING SERVICES LTD,,,,,,,,,,,,,,,,,,,,,,,,,,,,,,,,,,,,,,
1,101352,Corporate Contracts - FM,SupS Facilities,Non Distributed Costs (NDC),1600,Corporate Cleaning Contract,Cleaning and Domestic Supplies,Premises Related Expenses,"1,591.80",01-Apr-17,R,BIRKIN CLEANING SERVICES LTD,,,,,,,,,,,,,,,,,,,,,,,,,,,,,,,,,,,,,,
1,101352,Corporate Contracts - FM,SupS Facilities,Non Distributed Costs (NDC),1600,Corporate Cleaning Contract,Cleaning and Domestic Supplies,Premises Related Expenses,"1,623.45",01-Apr-17,R,BIRKIN CLEANING SERVICES LTD,,,,,,,,,,,,,,,,,,,,,,,,,,,,,,,,,,,,,,
1,101352,Corporate Contracts - FM,SupS Facilities,Non Distributed Costs (NDC),1600,Corporate Cleaning Contract,Cleaning and Domestic Supplies,Premises Related Expenses,"1,764.19",01-Apr-17,R,BIRKIN CLEANING SERVICES LTD,,,,,,,,,,,,,,,,,,,,,,,,,,,,,,,,,,,,,,
1,101352,Corporate Contracts - FM,SupS Facilities,Non Distributed Costs (NDC),1600,Corporate Cleaning Contract,Cleaning and Domestic Supplies,Premises Related Expenses,"5,216.05",01-Apr-17,R,BIRKIN CLEANING SERVICES LTD,,,,,,,,,,,,,,,,,,,,,,,,,,,,,,,,,,,,,,
1,101352,Corporate Contracts - FM,SupS Facilities,Non Distributed Costs (NDC),1600,Corporate Cleaning Contract,Cleaning and Domestic Supplies,Premises Related Expenses,"5,216.05",01-Apr-17,R,BIRKIN CLEANING SERVICES LTD,,,,,,,,,,,,,,,,,,,,,,,,,,,,,,,,,,,,,,
1,101352,Corporate Contracts - FM,SupS Facilities,Non Distributed Costs (NDC),1600,Corporate Cleaning Contract,Cleaning and Domestic Supplies,Premises Related Expenses,"7,302.68",01-Apr-17,R,BIRKIN CLEANING SERVICES LTD,,,,,,,,,,,,,,,,,,,,,,,,,,,,,,,,,,,,,,
1,101353,Utilities Recharge,SupS Facilities,Non Distributed Costs (NDC),1102,Electricity,Energy Costs,Premises Related Expenses,"1,970.21",17-Apr-17,R,SCOTTISH POWER,,,,,,,,,,,,,,,,,,,,,,,,,,,,,,,,,,,,,,
1,101353,Utilities Recharge,SupS Facilities,Non Distributed Costs (NDC),1102,Electricity,Energy Costs,Premises Related Expenses,"2,506.77",01-Apr-17,R,SCOTTISH POWER,,,,,,,,,,,,,,,,,,,,,,,,,,,,,,,,,,,,,,
1,101353,Utilities Recharge,SupS Facilities,Non Distributed Costs (NDC),1102,Electricity,Energy Costs,Premises Related Expenses,"27,670.60",01-Apr-17,R,SCOTTISH POWER,,,,,,,,,,,,,,,,,,,,,,,,,,,,,,,,,,,,,,
1,101353,Utilities Recharge,SupS Facilities,Non Distributed Costs (NDC),1102,Electricity,Energy Costs,Premises Related Expenses,"30,751.34",17-Apr-17,R,SCOTTISH POWER,,,,,,,,,,,,,,,,,,,,,,,,,,,,,,,,,,,,,,
1,101370,Buildings Maintenance,SupS IT,Non Distributed Costs (NDC),1004,Building Maint - Electrical,RepairsAlterations&MtceOfBldgs,Premises Related Expenses,"1,140.00",01-Apr-17,R,VTECH SOLUTIONS UK LTD,,,,,,,,,,,,,,,,,,,,,,,,,,,,,,,,,,,,,,
1,101370,Buildings Maintenance,SupS IT,Non Distributed Costs (NDC),1004,Building Maint - Electrical,RepairsAlterations&MtceOfBldgs,Premises Related Expenses,"1,940.00",01-Apr-17,R,VTECH SOLUTIONS UK LTD,,,,,,,,,,,,,,,,,,,,,,,,,,,,,,,,,,,,,,
1,101370,Buildings Maintenance,SupS IT,Non Distributed Costs (NDC),1004,Building Maint - Electrical,RepairsAlterations&MtceOfBldgs,Premises Related Expenses,"3,580.00",01-Apr-17,R,VTECH SOLUTIONS UK LTD,,,,,,,,,,,,,,,,,,,,,,,,,,,,,,,,,,,,,,
1,101370,Buildings Maintenance,SupS IT,Non Distributed Costs (NDC),3001,Equipment/Tools Purchase,Equip Furniture/Materials,Supplies and Services,740.8,01-Apr-17,R,UNIQUE OFFICE SOLUTIONS LTD,,,,,,,,,,,,,,,,,,,,,,,,,,,,,,,,,,,,,,
1,101370,Buildings Maintenance,SupS IT,Non Distributed Costs (NDC),1036,FM - Responsive Internal Build,RepairsAlterations&MtceOfBldgs,Premises Related Expenses,"3,522.00",01-Apr-17,R,Adremit Limited,,,,,,,,,,,,,,,,,,,,,,,,,,,,,,,,,,,,,,
1,101370,Buildings Maintenance,SupS IT,Non Distributed Costs (NDC),3001,Equipment/Tools Purchase,Equip Furniture/Materials,Supplies and Services,"4,395.00",01-Apr-17,R,UNIQUE OFFICE SOLUTIONS LTD,,,,,,,,,,,,,,,,,,,,,,,,,,,,,,,,,,,,,,
1,101370,Buildings Maintenance,SupS IT,Non Distributed Costs (NDC),3001,Equipment/Tools Purchase,Equip Furniture/Materials,Supplies and Services,"4,515.20",01-Apr-17,R,UNIQUE OFFICE SOLUTIONS LTD,,,,,,,,,,,,,,,,,,,,,,,,,,,,,,,,,,,,,,
1,101370,Buildings Maintenance,SupS IT,Non Distributed Costs (NDC),1036,FM - Responsive Internal Build,RepairsAlterations&MtceOfBldgs,Premises Related Expenses,"5,200.01",01-Apr-17,R,SALTASH ENTERPRISES LTD,,,,,,,,,,,,,,,,,,,,,,,,,,,,,,,,,,,,,,
1,101370,Buildings Maintenance,SupS IT,Non Distributed Costs (NDC),1036,FM - Responsive Internal Build,RepairsAlterations&MtceOfBldgs,Premises Related Expenses,"7,870.00",01-Apr-17,R,SALTASH ENTERPRISES LTD,,,,,,,,,,,,,,,,,,,,,,,,,,,,,,,,,,,,,,
1,101390,Security Services,SupS Facilities,Non Distributed Costs (NDC),1009,Security,RepairsAlterations&MtceOfBldgs,Premises Related Expenses,"9,838.85",01-Apr-17,R,SIGHT & SOUND,,,,,,,,,,,,,,,,,,,,,,,,,,,,,,,,,,,,,,
1,101410,PDC,Strategic Management,Children's Social Care,1101,Gas,Energy Costs,Premises Related Expenses,723.67,01-Apr-17,R,GAZPROM MARKETING&TRADING LTD,,,,,,,,,,,,,,,,,,,,,,,,,,,,,,,,,,,,,,
1,101410,PDC,Strategic Management,Children's Social Care,1600,Corporate Cleaning Contract,Cleaning and Domestic Supplies,Premises Related Expenses,"1,549.50",01-Apr-17,R,JULIUS RUTHERFOORD & CO LTD,,,,,,,,,,,,,,,,,,,,,,,,,,,,,,,,,,,,,,
1,101500,Emergency Planning,Emergency Planning (Cent Serv),Central Services to the Public,3502,Telephone - Call Charges,Comms and Computing,Supplies and Services,"4,172.38",19-Apr-17,R,AIRWAVE SOLUTIONS LTD,,,,,,,,,,,,,,,,,,,,,,,,,,,,,,,,,,,,,,
1,101550,Corp Print Strategy,SupS IT,Non Distributed Costs (NDC),3003,Equipment/Tools Repairs,Equip Furniture/Materials,Supplies and Services,"7,255.93",01-Apr-17,R,ALTODIGITAL NETWORKS LTD,,,,,,,,,,,,,,,,,,,,,,,,,,,,,,,,,,,,,,
1,101550,Corp Print Strategy,SupS IT,Non Distributed Costs (NDC),3003,Equipment/Tools Repairs,Equip Furniture/Materials,Supplies and Services,"7,255.93",01-Apr-17,R,ALTODIGITAL NETWORKS LTD,,,,,,,,,,,,,,,,,,,,,,,,,,,,,,,,,,,,,,
1,101550,Corp Print Strategy,SupS IT,Non Distributed Costs (NDC),3003,Equipment/Tools Repairs,Equip Furniture/Materials,Supplies and Services,"38,584.44",01-Apr-17,R,ALTODIGITAL NETWORKS LTD,,,,,,,,,,,,,,,,,,,,,,,,,,,,,,,,,,,,,,
1,101550,Corp Print Strategy,SupS IT,Non Distributed Costs (NDC),3003,Equipment/Tools Repairs,Equip Furniture/Materials,Supplies and Services,"44,473.62",01-Apr-17,R,ALTODIGITAL NETWORKS LTD,,,,,,,,,,,,,,,,,,,,,,,,,,,,,,,,,,,,,,
1,101550,Corp Print Strategy,SupS IT,Non Distributed Costs (NDC),3003,Equipment/Tools Repairs,Equip Furniture/Materials,Supplies and Services,"52,113.18",01-Apr-17,R,ALTODIGITAL NETWORKS LTD,,,,,,,,,,,,,,,,,,,,,,,,,,,,,,,,,,,,,,
1,101550,Corp Print Strategy,SupS IT,Non Distributed Costs (NDC),3003,Equipment/Tools Repairs,Equip Furniture/Materials,Supplies and Services,"52,113.18",01-Apr-17,R,ALTODIGITAL NETWORKS LTD,,,,,,,,,,,,,,,,,,,,,,,,,,,,,,,,,,,,,,
1,101590,IT Service Delivery,SupS IT,Non Distributed Costs (NDC),3522,IT Support Costs,Comms and Computing,Supplies and Services,"3,090.80",01-Apr-17,R,TIMEWATCH PLC,,,,,,,,,,,,,,,,,,,,,,,,,,,,,,,,,,,,,,
1,101590,IT Service Delivery,SupS IT,Non Distributed Costs (NDC),3522,IT Support Costs,Comms and Computing,Supplies and Services,525,01-Apr-17,R,HORNBILL SERVICE MGMENT LTD,,,,,,,,,,,,,,,,,,,,,,,,,,,,,,,,,,,,,,
1,101590,IT Service Delivery,SupS IT,Non Distributed Costs (NDC),3522,IT Support Costs,Comms and Computing,Supplies and Services,525,01-Apr-17,R,HORNBILL SERVICE MGMENT LTD,,,,,,,,,,,,,,,,,,,,,,,,,,,,,,,,,,,,,,
1,101590,IT Service Delivery,SupS IT,Non Distributed Costs (NDC),3522,IT Support Costs,Comms and Computing,Supplies and Services,875,01-Apr-17,R,HORNBILL SERVICE MGMENT LTD,,,,,,,,,,,,,,,,,,,,,,,,,,,,,,,,,,,,,,
1,101590,IT Service Delivery,SupS IT,Non Distributed Costs (NDC),3522,IT Support Costs,Comms and Computing,Supplies and Services,875,01-Apr-17,R,HORNBILL SERVICE MGMENT LTD,,,,,,,,,,,,,,,,,,,,,,,,,,,,,,,,,,,,,,
1,101590,IT Service Delivery,SupS IT,Non Distributed Costs (NDC),3522,IT Support Costs,Comms and Computing,Supplies and Services,"1,051.30",01-Apr-17,R,HANDD BUSINESS SOLUTIONS LTD,,,,,,,,,,,,,,,,,,,,,,,,,,,,,,,,,,,,,,
1,101590,IT Service Delivery,SupS IT,Non Distributed Costs (NDC),3522,IT Support Costs,Comms and Computing,Supplies and Services,"3,471.30",01-Apr-17,R,HANDD BUSINESS SOLUTIONS LTD,,,,,,,,,,,,,,,,,,,,,,,,,,,,,,,,,,,,,,
1,101590,IT Service Delivery,SupS IT,Non Distributed Costs (NDC),3522,IT Support Costs,Comms and Computing,Supplies and Services,"8,202.60",01-Apr-17,R,HORNBILL SERVICE MGMENT LTD,,,,,,,,,,,,,,,,,,,,,,,,,,,,,,,,,,,,,,
1,101590,IT Service Delivery,SupS IT,Non Distributed Costs (NDC),3521,IT licences - Applications,Comms and Computing,Supplies and Services,"35,454.53",04-Apr-17,R,ORGANISED COMPUTER SYSTEMS LTD,,,,,,,,,,,,,,,,,,,,,,,,,,,,,,,,,,,,,,
1,101590,IT Service Delivery,SupS IT,Non Distributed Costs (NDC),3522,IT Support Costs,Comms and Computing,Supplies and Services,"47,665.56",01-Apr-17,R,CIVICA SERVICES LTD,,,,,,,,,,,,,,,,,,,,,,,,,,,,,,,,,,,,,,
1,101591,CHAS IT projects,SupS IT,Non Distributed Costs (NDC),0070,Agency Staff - Corp Contract,Direct EmployeeExpenses-Agency,Employees,"9,120.00",01-Apr-17,R,MARCUS DONALD PEOPLE LTD,,,,,,,,,,,,,,,,,,,,,,,,,,,,,,,,,,,,,,
1,101591,CHAS IT projects,SupS IT,Non Distributed Costs (NDC),3522,IT Support Costs,Comms and Computing,Supplies and Services,"9,590.00",01-Apr-17,R,CIVICA SERVICES LTD,,,,,,,,,,,,,,,,,,,,,,,,,,,,,,,,,,,,,,
1,101610,IT-Telecomms,SupS IT,Non Distributed Costs (NDC),3522,IT Support Costs,Comms and Computing,Supplies and Services,923.6,01-Apr-17,R,MARQUEST LIMITED,,,,,,,,,,,,,,,,,,,,,,,,,,,,,,,,,,,,,,
1,101610,IT-Telecomms,SupS IT,Non Distributed Costs (NDC),3522,IT Support Costs,Comms and Computing,Supplies and Services,"2,177.78",01-Apr-17,R,MARQUEST LIMITED,,,,,,,,,,,,,,,,,,,,,,,,,,,,,,,,,,,,,,
1,101610,IT-Telecomms,SupS IT,Non Distributed Costs (NDC),3522,IT Support Costs,Comms and Computing,Supplies and Services,"2,726.00",01-Apr-17,R,MARQUEST LIMITED,,,,,,,,,,,,,,,,,,,,,,,,,,,,,,,,,,,,,,
1,101610,IT-Telecomms,SupS IT,Non Distributed Costs (NDC),3522,IT Support Costs,Comms and Computing,Supplies and Services,"9,750.00",01-Apr-17,R,MARQUEST LIMITED,,,,,,,,,,,,,,,,,,,,,,,,,,,,,,,,,,,,,,
1,101610,IT-Telecomms,SupS IT,Non Distributed Costs (NDC),3502,Telephone - Call Charges,Comms and Computing,Supplies and Services,562.6,04-Apr-17,R,T MOBILE (UK),,,,,,,,,,,,,,,,,,,,,,,,,,,,,,,,,,,,,,
1,101610,IT-Telecomms,SupS IT,Non Distributed Costs (NDC),3525,Network Charges,Comms and Computing,Supplies and Services,691.36,01-Apr-17,R,THINTECH LIMITED,,,,,,,,,,,,,,,,,,,,,,,,,,,,,,,,,,,,,,
1,101610,IT-Telecomms,SupS IT,Non Distributed Costs (NDC),3525,Network Charges,Comms and Computing,Supplies and Services,691.36,01-Apr-17,R,THINTECH LIMITED,,,,,,,,,,,,,,,,,,,,,,,,,,,,,,,,,,,,,,
1,101610,IT-Telecomms,SupS IT,Non Distributed Costs (NDC),3522,IT Support Costs,Comms and Computing,Supplies and Services,"1,146.79",01-Apr-17,R,ASSURED NETWORK SERVICES LTD,,,,,,,,,,,,,,,,,,,,,,,,,,,,,,,,,,,,,,
1,101610,IT-Telecomms,SupS IT,Non Distributed Costs (NDC),3522,IT Support Costs,Comms and Computing,Supplies and Services,"1,146.79",01-Apr-17,R,ASSURED NETWORK SERVICES LTD,,,,,,,,,,,,,,,,,,,,,,,,,,,,,,,,,,,,,,
1,101610,IT-Telecomms,SupS IT,Non Distributed Costs (NDC),3522,IT Support Costs,Comms and Computing,Supplies and Services,"1,146.79",01-Apr-17,R,ASSURED NETWORK SERVICES LTD,,,,,,,,,,,,,,,,,,,,,,,,,,,,,,,,,,,,,,
1,101610,IT-Telecomms,SupS IT,Non Distributed Costs (NDC),3502,Telephone - Call Charges,Comms and Computing,Supplies and Services,"1,266.01",01-Apr-17,R,GAMMA BUSINESS COMMUNICATIONS,,,,,,,,,,,,,,,,,,,,,,,,,,,,,,,,,,,,,,
1,101610,IT-Telecomms,SupS IT,Non Distributed Costs (NDC),3522,IT Support Costs,Comms and Computing,Supplies and Services,"1,478.79",01-Apr-17,R,ASSURED NETWORK SERVICES LTD,,,,,,,,,,,,,,,,,,,,,,,,,,,,,,,,,,,,,,
1,101610,IT-Telecomms,SupS IT,Non Distributed Costs (NDC),3502,Telephone - Call Charges,Comms and Computing,Supplies and Services,"1,802.20",01-Apr-17,R,VIRGIN MEDIA PAYMENTS LIMITED,,,,,,,,,,,,,,,,,,,,,,,,,,,,,,,,,,,,,,
1,101610,IT-Telecomms,SupS IT,Non Distributed Costs (NDC),3502,Telephone - Call Charges,Comms and Computing,Supplies and Services,"1,981.50",01-Apr-17,R,GAMMA BUSINESS COMMUNICATIONS,,,,,,,,,,,,,,,,,,,,,,,,,,,,,,,,,,,,,,
1,101610,IT-Telecomms,SupS IT,Non Distributed Costs (NDC),3502,Telephone - Call Charges,Comms and Computing,Supplies and Services,"2,277.52",01-Apr-17,R,GAMMA BUSINESS COMMUNICATIONS,,,,,,,,,,,,,,,,,,,,,,,,,,,,,,,,,,,,,,
1,101610,IT-Telecomms,SupS IT,Non Distributed Costs (NDC),3502,Telephone - Call Charges,Comms and Computing,Supplies and Services,"2,286.12",01-Apr-17,R,GAMMA BUSINESS COMMUNICATIONS,,,,,,,,,,,,,,,,,,,,,,,,,,,,,,,,,,,,,,
1,101610,IT-Telecomms,SupS IT,Non Distributed Costs (NDC),3500,Telephone - Hardware,Comms and Computing,Supplies and Services,"3,139.00",01-Apr-17,R,BTS,,,,,,,,,,,,,,,,,,,,,,,,,,,,,,,,,,,,,,
1,101610,IT-Telecomms,SupS IT,Non Distributed Costs (NDC),3521,IT licences - Applications,Comms and Computing,Supplies and Services,"4,450.00",01-Apr-17,R,NET-CTRL,,,,,,,,,,,,,,,,,,,,,,,,,,,,,,,,,,,,,,
1,101610,IT-Telecomms,SupS IT,Non Distributed Costs (NDC),3521,IT licences - Applications,Comms and Computing,Supplies and Services,"20,631.52",01-Apr-17,R,CIVICA SERVICES LTD,,,,,,,,,,,,,,,,,,,,,,,,,,,,,,,,,,,,,,
1,101630,Post services,SupS Facilities,Non Distributed Costs (NDC),3306,Postage,Prntng Stnry Gen Off Exp,Supplies and Services,574.9,24-Apr-17,R,STREETWISE COURIERS,,,,,,,,,,,,,,,,,,,,,,,,,,,,,,,,,,,,,,
1,101630,Post services,SupS Facilities,Non Distributed Costs (NDC),3306,Postage,Prntng Stnry Gen Off Exp,Supplies and Services,"15,075.00",14-Apr-17,R,NEOPOST FINANCE LIMITED [RM1 2AR],,,,,,,,,,,,,,,,,,,,,,,,,,,,,,,,,,,,,,
1,101630,Post services,SupS Facilities,Non Distributed Costs (NDC),3306,Postage,Prntng Stnry Gen Off Exp,Supplies and Services,540,21-Apr-17,R,CHESSINGTON CARS AND COURIERS,,,,,,,,,,,,,,,,,,,,,,,,,,,,,,,,,,,,,,
1,101630,Post services,SupS Facilities,Non Distributed Costs (NDC),3306,Postage,Prntng Stnry Gen Off Exp,Supplies and Services,595.53,01-Apr-17,R,STREETWISE COURIERS,,,,,,,,,,,,,,,,,,,,,,,,,,,,,,,,,,,,,,
1,101630,Post services,SupS Facilities,Non Distributed Costs (NDC),3306,Postage,Prntng Stnry Gen Off Exp,Supplies and Services,635,07-Apr-17,R,CHESSINGTON CARS AND COURIERS,,,,,,,,,,,,,,,,,,,,,,,,,,,,,,,,,,,,,,
1,101630,Post services,SupS Facilities,Non Distributed Costs (NDC),3306,Postage,Prntng Stnry Gen Off Exp,Supplies and Services,670.8,01-Apr-17,R,STREETWISE COURIERS,,,,,,,,,,,,,,,,,,,,,,,,,,,,,,,,,,,,,,
1,101630,Post services,SupS Facilities,Non Distributed Costs (NDC),3306,Postage,Prntng Stnry Gen Off Exp,Supplies and Services,745,01-Apr-17,R,CHESSINGTON CARS AND COURIERS,,,,,,,,,,,,,,,,,,,,,,,,,,,,,,,,,,,,,,
1,101630,Post services,SupS Facilities,Non Distributed Costs (NDC),3306,Postage,Prntng Stnry Gen Off Exp,Supplies and Services,766.79,01-Apr-17,R,STREETWISE COURIERS,,,,,,,,,,,,,,,,,,,,,,,,,,,,,,,,,,,,,,
1,101630,Post services,SupS Facilities,Non Distributed Costs (NDC),3306,Postage,Prntng Stnry Gen Off Exp,Supplies and Services,919.99,01-Apr-17,R,STREETWISE COURIERS,,,,,,,,,,,,,,,,,,,,,,,,,,,,,,,,,,,,,,
1,101650,Printing,T/A Corporate Services,Other Operating Inc & Expend,3300,Printing,Prntng Stnry Gen Off Exp,Supplies and Services,"2,425.00",01-Apr-17,R,BROWN KNIGHT & TRUSCOTT LTD,,,,,,,,,,,,,,,,,,,,,,,,,,,,,,,,,,,,,,
1,101650,Printing,T/A Corporate Services,Other Operating Inc & Expend,3012,Viewable Media,Equip Furniture/Materials,Supplies and Services,"6,512.59",01-Apr-17,R,MISL LTD,,,,,,,,,,,,,,,,,,,,,,,,,,,,,,,,,,,,,,
1,101650,Printing,T/A Corporate Services,Other Operating Inc & Expend,3012,Viewable Media,Equip Furniture/Materials,Supplies and Services,"6,912.26",01-Apr-17,R,MISL LTD,,,,,,,,,,,,,,,,,,,,,,,,,,,,,,,,,,,,,,
1,101650,Printing,T/A Corporate Services,Other Operating Inc & Expend,3012,Viewable Media,Equip Furniture/Materials,Supplies and Services,"7,305.14",01-Apr-17,R,MISL LTD,,,,,,,,,,,,,,,,,,,,,,,,,,,,,,,,,,,,,,
1,101650,Printing,T/A Corporate Services,Other Operating Inc & Expend,3012,Viewable Media,Equip Furniture/Materials,Supplies and Services,"11,347.85",01-Apr-17,R,MISL LTD,,,,,,,,,,,,,,,,,,,,,,,,,,,,,,,,,,,,,,
1,101650,Printing,T/A Corporate Services,Other Operating Inc & Expend,3012,Viewable Media,Equip Furniture/Materials,Supplies and Services,"12,845.95",01-Apr-17,R,MISL LTD,,,,,,,,,,,,,,,,,,,,,,,,,,,,,,,,,,,,,,
1,101650,Printing,T/A Corporate Services,Other Operating Inc & Expend,3300,Printing,Prntng Stnry Gen Off Exp,Supplies and Services,550,27-Apr-17,R,RECOGNITION EXPRESS,,,,,,,,,,,,,,,,,,,,,,,,,,,,,,,,,,,,,,
1,101650,Printing,T/A Corporate Services,Other Operating Inc & Expend,3012,Viewable Media,Equip Furniture/Materials,Supplies and Services,753.7,01-Apr-17,R,MISL LTD,,,,,,,,,,,,,,,,,,,,,,,,,,,,,,,,,,,,,,
1,101650,Printing,T/A Corporate Services,Other Operating Inc & Expend,3300,Printing,Prntng Stnry Gen Off Exp,Supplies and Services,980,01-Apr-17,R,RECOGNITION EXPRESS,,,,,,,,,,,,,,,,,,,,,,,,,,,,,,,,,,,,,,
1,101650,Printing,T/A Corporate Services,Other Operating Inc & Expend,3012,Viewable Media,Equip Furniture/Materials,Supplies and Services,"1,176.25",01-Apr-17,R,MISL LTD,,,,,,,,,,,,,,,,,,,,,,,,,,,,,,,,,,,,,,
1,101650,Printing,T/A Corporate Services,Other Operating Inc & Expend,3012,Viewable Media,Equip Furniture/Materials,Supplies and Services,"2,940.89",01-Apr-17,R,MISL LTD,,,,,,,,,,,,,,,,,,,,,,,,,,,,,,,,,,,,,,
1,101700,Procurement,SupS Comm and Member Services,Non Distributed Costs (NDC),0070,Agency Staff - Corp Contract,Direct EmployeeExpenses-Agency,Employees,"1,980.00",06-Apr-17,R,HAYS SPECIALIST RECRUITM'T LTD,,,,,,,,,,,,,,,,,,,,,,,,,,,,,,,,,,,,,,
1,101700,Procurement,SupS Comm and Member Services,Non Distributed Costs (NDC),0070,Agency Staff - Corp Contract,Direct EmployeeExpenses-Agency,Employees,"2,475.00",06-Apr-17,R,HAYS SPECIALIST RECRUITM'T LTD,,,,,,,,,,,,,,,,,,,,,,,,,,,,,,,,,,,,,,
1,101700,Procurement,SupS Comm and Member Services,Non Distributed Costs (NDC),0070,Agency Staff - Corp Contract,Direct EmployeeExpenses-Agency,Employees,"2,475.00",06-Apr-17,R,HAYS SPECIALIST RECRUITM'T LTD,,,,,,,,,,,,,,,,,,,,,,,,,,,,,,,,,,,,,,
1,101700,Procurement,SupS Comm and Member Services,Non Distributed Costs (NDC),0070,Agency Staff - Corp Contract,Direct EmployeeExpenses-Agency,Employees,"2,636.25",06-Apr-17,R,HAYS SPECIALIST RECRUITM'T LTD,,,,,,,,,,,,,,,,,,,,,,,,,,,,,,,,,,,,,,
1,101700,Procurement,SupS Comm and Member Services,Non Distributed Costs (NDC),0070,Agency Staff - Corp Contract,Direct EmployeeExpenses-Agency,Employees,"2,636.25",01-Apr-17,R,HAYS SPECIALIST RECRUITM'T LTD,,,,,,,,,,,,,,,,,,,,,,,,,,,,,,,,,,,,,,
1,101750,Client Finance Affairs,SupS IT,Non Distributed Costs (NDC),5202,Burials and Cremations,Housing Benefits,Transfer Payments,"1,287.00",01-Apr-17,R,F.W. PAINE,,,,,,,,,,,,,,,,,,,,,,,,,,,,,,,,,,,,,,
1,200010,Director of Community& Housing,Hsg Dept Supp Staff & Costs,General Fund Housing,3400,Fees,Services,Supplies and Services,"8,750.00",01-Apr-17,R,SOUTH WEST LONDON LAW CENTRES,,,,,,,,,,,,,,,,,,,,,,,,,,,,,,,,,,,,,,
1,200010,Director of Community& Housing,Hsg Dept Supp Staff & Costs,General Fund Housing,3409,Counsel Fees,Services,Supplies and Services,500,01-Apr-17,R,REDACTED,,,,,,,,,,,,,,,,,,,,,,,,,,,,,,,,,,,,,,
1,200010,Director of Community& Housing,Hsg Dept Supp Staff & Costs,General Fund Housing,3409,Counsel Fees,Services,Supplies and Services,"1,750.00",01-Apr-17,R,REDACTED,,,,,,,,,,,,,,,,,,,,,,,,,,,,,,,,,,,,,,
1,200010,Director of Community& Housing,Hsg Dept Supp Staff & Costs,General Fund Housing,3401,Medical Fees,Services,Supplies and Services,"3,675.00",01-Apr-17,R,GATENBY SANDERSON LIMITED,,,,,,,,,,,,,,,,,,,,,,,,,,,,,,,,,,,,,,
1,200010,Director of Community& Housing,Hsg Dept Supp Staff & Costs,General Fund Housing,3401,Medical Fees,Services,Supplies and Services,"15,950.00",01-Apr-17,R,GATENBY SANDERSON LIMITED,,,,,,,,,,,,,,,,,,,,,,,,,,,,,,,,,,,,,,
1,200090,Bed & Breakfast - accomm,Bed / breakfast accommodation,General Fund Housing,3996,(DO NOT USE) Contract Payments,Conversion,Supplies and Services,877.8,01-Apr-17,R,REDACTED,,,,,,,,,,,,,,,,,,,,,,,,,,,,,,,,,,,,,,
1,200090,Bed & Breakfast - accomm,Bed / breakfast accommodation,General Fund Housing,3996,(DO NOT USE) Contract Payments,Conversion,Supplies and Services,"1,236.90",01-Apr-17,R,REDACTED,,,,,,,,,,,,,,,,,,,,,,,,,,,,,,,,,,,,,,
1,200090,Bed & Breakfast - accomm,Bed / breakfast accommodation,General Fund Housing,3996,(DO NOT USE) Contract Payments,Conversion,Supplies and Services,"1,236.90",01-Apr-17,R,REDACTED,,,,,,,,,,,,,,,,,,,,,,,,,,,,,,,,,,,,,,
1,200090,Bed & Breakfast - accomm,Bed / breakfast accommodation,General Fund Housing,3996,(DO NOT USE) Contract Payments,Conversion,Supplies and Services,"2,015.00",01-Apr-17,R,REDACTED,,,,,,,,,,,,,,,,,,,,,,,,,,,,,,,,,,,,,,
1,200090,Bed & Breakfast - accomm,Bed / breakfast accommodation,General Fund Housing,3996,(DO NOT USE) Contract Payments,Conversion,Supplies and Services,520,01-Apr-17,R,NORBURY PROPERTY SERV LDN LTD,,,,,,,,,,,,,,,,,,,,,,,,,,,,,,,,,,,,,,
1,200090,Bed & Breakfast - accomm,Bed / breakfast accommodation,General Fund Housing,3996,(DO NOT USE) Contract Payments,Conversion,Supplies and Services,703,01-Apr-17,R,NORBURY PROPERTY SERV LDN LTD,,,,,,,,,,,,,,,,,,,,,,,,,,,,,,,,,,,,,,
1,200090,Bed & Breakfast - accomm,Bed / breakfast accommodation,General Fund Housing,3996,(DO NOT USE) Contract Payments,Conversion,Supplies and Services,868,01-Apr-17,R,REDACTED,,,,,,,,,,,,,,,,,,,,,,,,,,,,,,,,,,,,,,
1,200090,Bed & Breakfast - accomm,Bed / breakfast accommodation,General Fund Housing,3996,(DO NOT USE) Contract Payments,Conversion,Supplies and Services,"1,036.00",01-Apr-17,R,NORBURY PROPERTY SERV LDN LTD,,,,,,,,,,,,,,,,,,,,,,,,,,,,,,,,,,,,,,
1,200090,Bed & Breakfast - accomm,Bed / breakfast accommodation,General Fund Housing,3996,(DO NOT USE) Contract Payments,Conversion,Supplies and Services,"1,117.20",01-Apr-17,R,REDACTED,,,,,,,,,,,,,,,,,,,,,,,,,,,,,,,,,,,,,,
1,200090,Bed & Breakfast - accomm,Bed / breakfast accommodation,General Fund Housing,3996,(DO NOT USE) Contract Payments,Conversion,Supplies and Services,"1,117.20",01-Apr-17,R,REDACTED,,,,,,,,,,,,,,,,,,,,,,,,,,,,,,,,,,,,,,
1,200090,Bed & Breakfast - accomm,Bed / breakfast accommodation,General Fund Housing,3996,(DO NOT USE) Contract Payments,Conversion,Supplies and Services,"1,117.20",01-Apr-17,R,REDACTED,,,,,,,,,,,,,,,,,,,,,,,,,,,,,,,,,,,,,,
1,200090,Bed & Breakfast - accomm,Bed / breakfast accommodation,General Fund Housing,3996,(DO NOT USE) Contract Payments,Conversion,Supplies and Services,"1,117.20",01-Apr-17,R,REDACTED,,,,,,,,,,,,,,,,,,,,,,,,,,,,,,,,,,,,,,
1,200090,Bed & Breakfast - accomm,Bed / breakfast accommodation,General Fund Housing,3996,(DO NOT USE) Contract Payments,Conversion,Supplies and Services,"1,117.20",01-Apr-17,R,REDACTED,,,,,,,,,,,,,,,,,,,,,,,,,,,,,,,,,,,,,,
1,200090,Bed & Breakfast - accomm,Bed / breakfast accommodation,General Fund Housing,3996,(DO NOT USE) Contract Payments,Conversion,Supplies and Services,"1,117.20",01-Apr-17,R,REDACTED,,,,,,,,,,,,,,,,,,,,,,,,,,,,,,,,,,,,,,
1,200090,Bed & Breakfast - accomm,Bed / breakfast accommodation,General Fund Housing,3996,(DO NOT USE) Contract Payments,Conversion,Supplies and Services,"1,120.00",01-Apr-17,R,NORBURY PROPERTY SERV LDN LTD,,,,,,,,,,,,,,,,,,,,,,,,,,,,,,,,,,,,,,
1,200090,Bed & Breakfast - accomm,Bed / breakfast accommodation,General Fund Housing,3996,(DO NOT USE) Contract Payments,Conversion,Supplies and Services,"1,147.00",01-Apr-17,R,NORBURY PROPERTY SERV LDN LTD,,,,,,,,,,,,,,,,,,,,,,,,,,,,,,,,,,,,,,
1,200090,Bed & Breakfast - accomm,Bed / breakfast accommodation,General Fund Housing,3996,(DO NOT USE) Contract Payments,Conversion,Supplies and Services,"1,147.70",01-Apr-17,R,NORBURY PROPERTY SERV LDN LTD,,,,,,,,,,,,,,,,,,,,,,,,,,,,,,,,,,,,,,
1,200090,Bed & Breakfast - accomm,Bed / breakfast accommodation,General Fund Housing,3996,(DO NOT USE) Contract Payments,Conversion,Supplies and Services,"1,240.00",01-Apr-17,R,NORBURY PROPERTY SERV LDN LTD,,,,,,,,,,,,,,,,,,,,,,,,,,,,,,,,,,,,,,
1,200090,Bed & Breakfast - accomm,Bed / breakfast accommodation,General Fund Housing,3996,(DO NOT USE) Contract Payments,Conversion,Supplies and Services,"1,260.00",01-Apr-17,R,REDACTED,,,,,,,,,,,,,,,,,,,,,,,,,,,,,,,,,,,,,,
1,200090,Bed & Breakfast - accomm,Bed / breakfast accommodation,General Fund Housing,3996,(DO NOT USE) Contract Payments,Conversion,Supplies and Services,"1,397.20",01-Apr-17,R,NORBURY PROPERTY SERV LDN LTD,,,,,,,,,,,,,,,,,,,,,,,,,,,,,,,,,,,,,,
1,200090,Bed & Breakfast - accomm,Bed / breakfast accommodation,General Fund Housing,3996,(DO NOT USE) Contract Payments,Conversion,Supplies and Services,"1,400.00",01-Apr-17,R,REDACTED,,,,,,,,,,,,,,,,,,,,,,,,,,,,,,,,,,,,,,
1,200090,Bed & Breakfast - accomm,Bed / breakfast accommodation,General Fund Housing,3996,(DO NOT USE) Contract Payments,Conversion,Supplies and Services,"1,400.00",01-Apr-17,R,NORBURY PROPERTY SERV LDN LTD,,,,,,,,,,,,,,,,,,,,,,,,,,,,,,,,,,,,,,
1,200090,Bed & Breakfast - accomm,Bed / breakfast accommodation,General Fund Housing,3996,(DO NOT USE) Contract Payments,Conversion,Supplies and Services,"1,400.00",01-Apr-17,R,NORBURY PROPERTY SERV LDN LTD,,,,,,,,,,,,,,,,,,,,,,,,,,,,,,,,,,,,,,
1,200090,Bed & Breakfast - accomm,Bed / breakfast accommodation,General Fund Housing,3996,(DO NOT USE) Contract Payments,Conversion,Supplies and Services,"1,546.90",01-Apr-17,R,NORBURY PROPERTY SERV LDN LTD,,,,,,,,,,,,,,,,,,,,,,,,,,,,,,,,,,,,,,
1,200090,Bed & Breakfast - accomm,Bed / breakfast accommodation,General Fund Housing,3996,(DO NOT USE) Contract Payments,Conversion,Supplies and Services,"1,550.00",01-Apr-17,R,NORBURY PROPERTY SERV LDN LTD,,,,,,,,,,,,,,,,,,,,,,,,,,,,,,,,,,,,,,
1,200090,Bed & Breakfast - accomm,Bed / breakfast accommodation,General Fund Housing,3996,(DO NOT USE) Contract Payments,Conversion,Supplies and Services,"1,550.00",01-Apr-17,R,NORBURY PROPERTY SERV LDN LTD,,,,,,,,,,,,,,,,,,,,,,,,,,,,,,,,,,,,,,
1,200090,Bed & Breakfast - accomm,Bed / breakfast accommodation,General Fund Housing,3996,(DO NOT USE) Contract Payments,Conversion,Supplies and Services,"1,550.00",01-Apr-17,R,NORBURY PROPERTY SERV LDN LTD,,,,,,,,,,,,,,,,,,,,,,,,,,,,,,,,,,,,,,
1,200090,Bed & Breakfast - accomm,Bed / breakfast accommodation,General Fund Housing,3996,(DO NOT USE) Contract Payments,Conversion,Supplies and Services,"1,550.00",01-Apr-17,R,NORBURY PROPERTY SERV LDN LTD,,,,,,,,,,,,,,,,,,,,,,,,,,,,,,,,,,,,,,
1,200090,Bed & Breakfast - accomm,Bed / breakfast accommodation,General Fund Housing,3996,(DO NOT USE) Contract Payments,Conversion,Supplies and Services,"1,641.00",01-Apr-17,R,RENT CONNECT LLP,,,,,,,,,,,,,,,,,,,,,,,,,,,,,,,,,,,,,,
1,200090,Bed & Breakfast - accomm,Bed / breakfast accommodation,General Fund Housing,3996,(DO NOT USE) Contract Payments,Conversion,Supplies and Services,"1,743.00",01-Apr-17,R,NORBURY PROPERTY SERV LDN LTD,,,,,,,,,,,,,,,,,,,,,,,,,,,,,,,,,,,,,,
1,200090,Bed & Breakfast - accomm,Bed / breakfast accommodation,General Fund Housing,3996,(DO NOT USE) Contract Payments,Conversion,Supplies and Services,"1,820.00",01-Apr-17,R,REDACTED,,,,,,,,,,,,,,,,,,,,,,,,,,,,,,,,,,,,,,
1,200090,Bed & Breakfast - accomm,Bed / breakfast accommodation,General Fund Housing,3996,(DO NOT USE) Contract Payments,Conversion,Supplies and Services,"1,820.00",01-Apr-17,R,REDACTED,,,,,,,,,,,,,,,,,,,,,,,,,,,,,,,,,,,,,,
1,200090,Bed & Breakfast - accomm,Bed / breakfast accommodation,General Fund Housing,3996,(DO NOT USE) Contract Payments,Conversion,Supplies and Services,"1,929.75",01-Apr-17,R,NORBURY PROPERTY SERV LDN LTD,,,,,,,,,,,,,,,,,,,,,,,,,,,,,,,,,,,,,,
1,200090,Bed & Breakfast - accomm,Bed / breakfast accommodation,General Fund Housing,3996,(DO NOT USE) Contract Payments,Conversion,Supplies and Services,"2,945.00",01-Apr-17,R,SK HOUSING LTD,,,,,,,,,,,,,,,,,,,,,,,,,,,,,,,,,,,,,,
1,200090,Bed & Breakfast - accomm,Bed / breakfast accommodation,General Fund Housing,3996,(DO NOT USE) Contract Payments,Conversion,Supplies and Services,"6,863.40",01-Apr-17,R,APEX HOUSING SOLUTIONS,,,,,,,,,,,,,,,,,,,,,,,,,,,,,,,,,,,,,,
1,200090,Bed & Breakfast - accomm,Bed / breakfast accommodation,General Fund Housing,3996,(DO NOT USE) Contract Payments,Conversion,Supplies and Services,"7,409.00",01-Apr-17,R,STENFORD PROPERTY LTD,,,,,,,,,,,,,,,,,,,,,,,,,,,,,,,,,,,,,,
1,200090,Bed & Breakfast - accomm,Bed / breakfast accommodation,General Fund Housing,3996,(DO NOT USE) Contract Payments,Conversion,Supplies and Services,"9,067.50",01-Apr-17,R,FASTMOVE PROPERTIES,,,,,,,,,,,,,,,,,,,,,,,,,,,,,,,,,,,,,,
1,200090,Bed & Breakfast - accomm,Bed / breakfast accommodation,General Fund Housing,3996,(DO NOT USE) Contract Payments,Conversion,Supplies and Services,"20,572.15",01-Apr-17,R,CREST MANOR LTD,,,,,,,,,,,,,,,,,,,,,,,,,,,,,,,,,,,,,,
1,200090,Bed & Breakfast - accomm,Bed / breakfast accommodation,General Fund Housing,3996,(DO NOT USE) Contract Payments,Conversion,Supplies and Services,"31,390.00",01-Apr-17,R,Cyberstyle Lettings Limited,,,,,,,,,,,,,,,,,,,,,,,,,,,,,,,,,,,,,,
1,200090,Bed & Breakfast - accomm,Bed / breakfast accommodation,General Fund Housing,3996,(DO NOT USE) Contract Payments,Conversion,Supplies and Services,"34,693.50",01-Apr-17,R,Cyberstyle Lettings Limited,,,,,,,,,,,,,,,,,,,,,,,,,,,,,,,,,,,,,,
1,200090,Bed & Breakfast - accomm,Bed / breakfast accommodation,General Fund Housing,3996,(DO NOT USE) Contract Payments,Conversion,Supplies and Services,"49,670.96",01-Apr-17,R,VENTURE HOUSING(LONDON)LTD,,,,,,,,,,,,,,,,,,,,,,,,,,,,,,,,,,,,,,
1,200090,Bed & Breakfast - accomm,Bed / breakfast accommodation,General Fund Housing,3996,(DO NOT USE) Contract Payments,Conversion,Supplies and Services,"106,600.00",01-Apr-17,R,ROOMS & STUDIOS MANAGEMENT,,,,,,,,,,,,,,,,,,,,,,,,,,,,,,,,,,,,,,
1,200093,Homelessness Prevention,Bed / breakfast accommodation,General Fund Housing,5200,Rent Deposits,Housing Benefits,Transfer Payments,600,01-Apr-17,R,VISION HOUSING,,,,,,,,,,,,,,,,,,,,,,,,,,,,,,,,,,,,,,
1,200093,Homelessness Prevention,Bed / breakfast accommodation,General Fund Housing,5200,Rent Deposits,Housing Benefits,Transfer Payments,600,01-Apr-17,R,VISION HOUSING,,,,,,,,,,,,,,,,,,,,,,,,,,,,,,,,,,,,,,
1,200093,Homelessness Prevention,Bed / breakfast accommodation,General Fund Housing,5200,Rent Deposits,Housing Benefits,Transfer Payments,942.43,20-Apr-17,R,Winkworth,,,,,,,,,,,,,,,,,,,,,,,,,,,,,,,,,,,,,,
1,200093,Homelessness Prevention,Bed / breakfast accommodation,General Fund Housing,5200,Rent Deposits,Housing Benefits,Transfer Payments,"1,536.00",25-Apr-17,R,REDACTED,,,,,,,,,,,,,,,,,,,,,,,,,,,,,,,,,,,,,,
1,200093,Homelessness Prevention,Bed / breakfast accommodation,General Fund Housing,5200,Rent Deposits,Housing Benefits,Transfer Payments,"2,325.00",20-Apr-17,R,REDACTED,,,,,,,,,,,,,,,,,,,,,,,,,,,,,,,,,,,,,,
1,200093,Homelessness Prevention,Bed / breakfast accommodation,General Fund Housing,5201,Rent Sanctuary Scheme,Housing Benefits,Transfer Payments,"2,755.00",04-Apr-17,R,DICKSONS ESTATE AGENTS,,,,,,,,,,,,,,,,,,,,,,,,,,,,,,,,,,,,,,
1,200093,Homelessness Prevention,Bed / breakfast accommodation,General Fund Housing,5200,Rent Deposits,Housing Benefits,Transfer Payments,"3,000.00",27-Apr-17,R,Bestate Properties,,,,,,,,,,,,,,,,,,,,,,,,,,,,,,,,,,,,,,
1,200093,Homelessness Prevention,Bed / breakfast accommodation,General Fund Housing,5200,Rent Deposits,Housing Benefits,Transfer Payments,"4,000.00",20-Apr-17,R,REDACTED,,,,,,,,,,,,,,,,,,,,,,,,,,,,,,,,,,,,,,
1,200093,Homelessness Prevention,Bed / breakfast accommodation,General Fund Housing,5200,Rent Deposits,Housing Benefits,Transfer Payments,"4,000.00",20-Apr-17,R,REDACTED,,,,,,,,,,,,,,,,,,,,,,,,,,,,,,,,,,,,,,
1,200093,Homelessness Prevention,Bed / breakfast accommodation,General Fund Housing,5200,Rent Deposits,Housing Benefits,Transfer Payments,"12,000.00",20-Apr-17,R,CIRCLE HOUSING MERTON PRIORY,,,,,,,,,,,,,,,,,,,,,,,,,,,,,,,,,,,,,,
1,200124,Housing Strategy,Housing Strategy.,General Fund Housing,3804,Subscriptions,Grants and Subscriptions,Supplies and Services,"5,059.00",01-Apr-17,R,GREATER LONDON AUTHORITY,,,,,,,,,,,,,,,,,,,,,,,,,,,,,,,,,,,,,,
1,200142,Merton Action Single Homeless,Homelessness Not Split,General Fund Housing,3806,Grants,Grants and Subscriptions,Supplies and Services,"12,890.00",01-Apr-17,R,SPEAR,,,,,,,,,,,,,,,,,,,,,,,,,,,,,,,,,,,,,,
1,200304,PH - NHS Health check,NHS Health Check Programme,Public Health,3401,Medical Fees,Services,Supplies and Services,625,01-Apr-17,R,WIDE WAY MEDICAL CENTRE,,,,,,,,,,,,,,,,,,,,,,,,,,,,,,,,,,,,,,
1,200304,PH - NHS Health check,NHS Health Check Programme,Public Health,3401,Medical Fees,Services,Supplies and Services,"1,050.00",06-Apr-17,R,TAMWORTH HOUSE MEDICAL CENTRE,,,,,,,,,,,,,,,,,,,,,,,,,,,,,,,,,,,,,,
1,200304,PH - NHS Health check,NHS Health Check Programme,Public Health,3401,Medical Fees,Services,Supplies and Services,"1,300.00",07-Apr-17,R,FRANCIS GROVE SURGERY,,,,,,,,,,,,,,,,,,,,,,,,,,,,,,,,,,,,,,
1,200304,PH - NHS Health check,NHS Health Check Programme,Public Health,3401,Medical Fees,Services,Supplies and Services,"1,400.00",01-Apr-17,R,CRICKET GREEN MEDICAL PRACTICE,,,,,,,,,,,,,,,,,,,,,,,,,,,,,,,,,,,,,,
1,200304,PH - NHS Health check,NHS Health Check Programme,Public Health,3401,Medical Fees,Services,Supplies and Services,"1,625.00",13-Apr-17,R,THE NELSON MEDICAL PRACTICE,,,,,,,,,,,,,,,,,,,,,,,,,,,,,,,,,,,,,,
1,200304,PH - NHS Health check,NHS Health Check Programme,Public Health,3401,Medical Fees,Services,Supplies and Services,"2,300.00",12-Apr-17,R,LAMBTON ROAD MEDICAL PRACTICE,,,,,,,,,,,,,,,,,,,,,,,,,,,,,,,,,,,,,,
1,200304,PH - NHS Health check,NHS Health Check Programme,Public Health,3521,IT licences - Applications,Comms and Computing,Supplies and Services,"12,172.64",01-Apr-17,R,QUALITY MEDICAL SOLUTION,,,,,,,,,,,,,,,,,,,,,,,,,,,,,,,,,,,,,,
1,200315,PH - Sexual Health,"Advice, prevention and promoti",Public Health,3429,Contraception Costs,Services,Supplies and Services,"1,200.00",01-Apr-17,R,TAMWORTH HOUSE MEDICAL CENTRE,,,,,,,,,,,,,,,,,,,,,,,,,,,,,,,,,,,,,,
1,200315,PH - Sexual Health,"Advice, prevention and promoti",Public Health,3429,Contraception Costs,Services,Supplies and Services,"1,520.00",04-Apr-17,R,THE NELSON MEDICAL PRACTICE,,,,,,,,,,,,,,,,,,,,,,,,,,,,,,,,,,,,,,
1,200315,PH - Sexual Health,"Advice, prevention and promoti",Public Health,3430,Health Tests,Services,Supplies and Services,"3,529.50",01-Apr-17,R,BARTS HEALTH NHS TRUST,,,,,,,,,,,,,,,,,,,,,,,,,,,,,,,,,,,,,,
1,200315,PH - Sexual Health,"Advice, prevention and promoti",Public Health,3430,Health Tests,Services,Supplies and Services,"3,529.50",01-Apr-17,R,BARTS HEALTH NHS TRUST,,,,,,,,,,,,,,,,,,,,,,,,,,,,,,,,,,,,,,
1,200315,PH - Sexual Health,"Advice, prevention and promoti",Public Health,3430,Health Tests,Services,Supplies and Services,"3,665.23",01-Apr-17,R,CENTRAL AND NORTH LONDON NHS,,,,,,,,,,,,,,,,,,,,,,,,,,,,,,,,,,,,,,
1,200315,PH - Sexual Health,"Advice, prevention and promoti",Public Health,3430,Health Tests,Services,Supplies and Services,"4,077.83",01-Apr-17,R,CENTRAL AND NORTH LONDON NHS,,,,,,,,,,,,,,,,,,,,,,,,,,,,,,,,,,,,,,
1,200315,PH - Sexual Health,"Advice, prevention and promoti",Public Health,3430,Health Tests,Services,Supplies and Services,"4,250.55",01-Apr-17,R,GUY'S & ST THOMAS' NHS FND'TN,,,,,,,,,,,,,,,,,,,,,,,,,,,,,,,,,,,,,,
1,200315,PH - Sexual Health,"Advice, prevention and promoti",Public Health,3430,Health Tests,Services,Supplies and Services,"4,333.67",01-Apr-17,R,CENTRAL AND NORTH LONDON NHS,,,,,,,,,,,,,,,,,,,,,,,,,,,,,,,,,,,,,,
1,200315,PH - Sexual Health,"Advice, prevention and promoti",Public Health,3430,Health Tests,Services,Supplies and Services,"4,692.55",01-Apr-17,R,CENTRAL AND NORTH LONDON NHS,,,,,,,,,,,,,,,,,,,,,,,,,,,,,,,,,,,,,,
1,200315,PH - Sexual Health,"Advice, prevention and promoti",Public Health,3430,Health Tests,Services,Supplies and Services,"7,326.26",01-Apr-17,R,GUY'S & ST THOMAS' NHS FND'TN,,,,,,,,,,,,,,,,,,,,,,,,,,,,,,,,,,,,,,
1,200315,PH - Sexual Health,"Advice, prevention and promoti",Public Health,3430,Health Tests,Services,Supplies and Services,"9,000.00",01-Apr-17,R,NHS NORTH AND EAST LONDON CSU,,,,,,,,,,,,,,,,,,,,,,,,,,,,,,,,,,,,,,
1,200315,PH - Sexual Health,"Advice, prevention and promoti",Public Health,3430,Health Tests,Services,Supplies and Services,"19,603.91",01-Apr-17,R,CHELSEA & WESTMINSTER HOSPITAL,,,,,,,,,,,,,,,,,,,,,,,,,,,,,,,,,,,,,,
1,200315,PH - Sexual Health,"Advice, prevention and promoti",Public Health,3430,Health Tests,Services,Supplies and Services,"19,603.91",01-Apr-17,R,CHELSEA & WESTMINSTER HOSPITAL,,,,,,,,,,,,,,,,,,,,,,,,,,,,,,,,,,,,,,
1,200315,PH - Sexual Health,"Advice, prevention and promoti",Public Health,3429,Contraception Costs,Services,Supplies and Services,"53,203.01",01-Apr-17,R,NHS MERTON CCG,,,,,,,,,,,,,,,,,,,,,,,,,,,,,,,,,,,,,,
1,200321,Children's Programmes,Child obesity,Public Health,3997,(DO NOT USE) Special Projects,Conversion,Supplies and Services,"8,000.00",01-Apr-17,R,MITCHAM TOWN COMMUNITY TRUST,,,,,,,,,,,,,,,,,,,,,,,,,,,,,,,,,,,,,,
1,200321,Children's Programmes,Child obesity,Public Health,3996,(DO NOT USE) Contract Payments,Conversion,Supplies and Services,"156,917.50",01-Apr-17,R,NHS MERTON CCG,,,,,,,,,,,,,,,,,,,,,,,,,,,,,,,,,,,,,,
1,200322,PH 0-19 Healthy Child,National Child Measurement Pro,Public Health,3996,(DO NOT USE) Contract Payments,Conversion,Supplies and Services,"164,879.41",01-Apr-17,R,NHS MERTON CCG,,,,,,,,,,,,,,,,,,,,,,,,,,,,,,,,,,,,,,
1,200340,PH - Substance Misuse,Accident prevention,Public Health,3996,(DO NOT USE) Contract Payments,Conversion,Supplies and Services,"2,250.00",04-Apr-17,R,EQUINOX,,,,,,,,,,,,,,,,,,,,,,,,,,,,,,,,,,,,,,
1,200340,PH - Substance Misuse,Accident prevention,Public Health,3996,(DO NOT USE) Contract Payments,Conversion,Supplies and Services,"2,250.00",04-Apr-17,R,EQUINOX,,,,,,,,,,,,,,,,,,,,,,,,,,,,,,,,,,,,,,
1,200340,PH - Substance Misuse,Accident prevention,Public Health,3996,(DO NOT USE) Contract Payments,Conversion,Supplies and Services,"2,450.00",04-Apr-17,R,EQUINOX,,,,,,,,,,,,,,,,,,,,,,,,,,,,,,,,,,,,,,
1,200340,PH - Substance Misuse,Accident prevention,Public Health,4510,Public Health Payments,Adult Social Care,Third Party Payments,"12,433.48",20-Apr-17,R,HAYDONS PHARMACY,,,,,,,,,,,,,,,,,,,,,,,,,,,,,,,,,,,,,,
1,200655,AE Learning Difficulties&Disab,Vocational - Adult Education,Non School Funding,1202,Room Hire External,Rents,Premises Related Expenses,"3,326.24",01-Apr-17,R,MERTON VISION,,,,,,,,,,,,,,,,,,,,,,,,,,,,,,,,,,,,,,
1,200821,Libraries Service-Civic Centre,Library DoS not split,Cultural and Related Services,3306,Postage,Prntng Stnry Gen Off Exp,Supplies and Services,845.6,03-Apr-17,R,AXIELL,,,,,,,,,,,,,,,,,,,,,,,,,,,,,,,,,,,,,,
1,200821,Libraries Service-Civic Centre,Library DoS not split,Cultural and Related Services,3306,Postage,Prntng Stnry Gen Off Exp,Supplies and Services,882,01-Apr-17,R,AXIELL,,,,,,,,,,,,,,,,,,,,,,,,,,,,,,,,,,,,,,
1,200821,Libraries Service-Civic Centre,Library DoS not split,Cultural and Related Services,3525,Network Charges,Comms and Computing,Supplies and Services,"1,224.00",01-Apr-17,R,TOWNSWEB ARCHIVING LTD,,,,,,,,,,,,,,,,,,,,,,,,,,,,,,,,,,,,,,
1,200821,Libraries Service-Civic Centre,Library DoS not split,Cultural and Related Services,1202,Room Hire External,Rents,Premises Related Expenses,"2,716.00",01-Apr-17,R,MERTON VISION,,,,,,,,,,,,,,,,,,,,,,,,,,,,,,,,,,,,,,
1,200823,Mitcham Library,Library DoS not split,Cultural and Related Services,1600,Corporate Cleaning Contract,Cleaning and Domestic Supplies,Premises Related Expenses,991.75,01-Apr-17,R,BIRKIN CLEANING SERVICES LTD,,,,,,,,,,,,,,,,,,,,,,,,,,,,,,,,,,,,,,
1,200823,Mitcham Library,Library DoS not split,Cultural and Related Services,1600,Corporate Cleaning Contract,Cleaning and Domestic Supplies,Premises Related Expenses,991.75,01-Apr-17,R,BIRKIN CLEANING SERVICES LTD,,,,,,,,,,,,,,,,,,,,,,,,,,,,,,,,,,,,,,
1,200823,Mitcham Library,Library DoS not split,Cultural and Related Services,1036,FM - Responsive Internal Build,RepairsAlterations&MtceOfBldgs,Premises Related Expenses,"2,088.00",01-Apr-17,R,SALTASH ENTERPRISES LTD,,,,,,,,,,,,,,,,,,,,,,,,,,,,,,,,,,,,,,
1,200824,Donald Hope Library,Library DoS not split,Cultural and Related Services,1300,NNDR,Rates,Premises Related Expenses,"1,969.78",01-Apr-17,R,REDACTED,,,,,,,,,,,,,,,,,,,,,,,,,,,,,,,,,,,,,,
1,200824,Donald Hope Library,Library DoS not split,Cultural and Related Services,1300,NNDR,Rates,Premises Related Expenses,"3,421.20",12-Apr-17,R,REDACTED,,,,,,,,,,,,,,,,,,,,,,,,,,,,,,,,,,,,,,
1,200825,Pollards Hill Library,Library DoS not split,Cultural and Related Services,1600,Corporate Cleaning Contract,Cleaning and Domestic Supplies,Premises Related Expenses,"1,320.92",01-Apr-17,R,BIRKIN CLEANING SERVICES LTD,,,,,,,,,,,,,,,,,,,,,,,,,,,,,,,,,,,,,,
1,200825,Pollards Hill Library,Library DoS not split,Cultural and Related Services,1600,Corporate Cleaning Contract,Cleaning and Domestic Supplies,Premises Related Expenses,"1,061.51",01-Apr-17,R,BIRKIN CLEANING SERVICES LTD,,,,,,,,,,,,,,,,,,,,,,,,,,,,,,,,,,,,,,
1,200825,Pollards Hill Library,Library DoS not split,Cultural and Related Services,1600,Corporate Cleaning Contract,Cleaning and Domestic Supplies,Premises Related Expenses,"1,320.92",01-Apr-17,R,BIRKIN CLEANING SERVICES LTD,,,,,,,,,,,,,,,,,,,,,,,,,,,,,,,,,,,,,,
1,200826,Media Fund,Library DoS not split,Cultural and Related Services,3014,Books,Equip Furniture/Materials,Supplies and Services,558.89,01-Apr-17,R,ASKEWS & HOLTS LIBRARY SRV LTD,,,,,,,,,,,,,,,,,,,,,,,,,,,,,,,,,,,,,,
1,200826,Media Fund,Library DoS not split,Cultural and Related Services,3014,Books,Equip Furniture/Materials,Supplies and Services,"1,206.02",01-Apr-17,R,SPECTRUM PLASTICS,,,,,,,,,,,,,,,,,,,,,,,,,,,,,,,,,,,,,,
1,200826,Media Fund,Library DoS not split,Cultural and Related Services,3306,Postage,Prntng Stnry Gen Off Exp,Supplies and Services,"1,527.20",01-Apr-17,R,CITYSPRINT (UK) LIMITED,,,,,,,,,,,,,,,,,,,,,,,,,,,,,,,,,,,,,,
1,200826,Media Fund,Library DoS not split,Cultural and Related Services,3306,Postage,Prntng Stnry Gen Off Exp,Supplies and Services,"1,672.20",01-Apr-17,R,CITYSPRINT (UK) LIMITED,,,,,,,,,,,,,,,,,,,,,,,,,,,,,,,,,,,,,,
1,200826,Media Fund,Library DoS not split,Cultural and Related Services,3804,Subscriptions,Grants and Subscriptions,Supplies and Services,"2,250.00",24-Apr-17,R,ENCYCLOPAEDIA BRITANNICA,,,,,,,,,,,,,,,,,,,,,,,,,,,,,,,,,,,,,,
1,200826,Media Fund,Library DoS not split,Cultural and Related Services,3804,Subscriptions,Grants and Subscriptions,Supplies and Services,"4,454.55",01-Apr-17,R,OXFORD UNIVERSITY PRESS,,,,,,,,,,,,,,,,,,,,,,,,,,,,,,,,,,,,,,
1,200828,Morden Library,Library DoS not split,Cultural and Related Services,1600,Corporate Cleaning Contract,Cleaning and Domestic Supplies,Premises Related Expenses,"1,044.61",01-Apr-17,R,BIRKIN CLEANING SERVICES LTD,,,,,,,,,,,,,,,,,,,,,,,,,,,,,,,,,,,,,,
1,200828,Morden Library,Library DoS not split,Cultural and Related Services,1600,Corporate Cleaning Contract,Cleaning and Domestic Supplies,Premises Related Expenses,"1,044.61",01-Apr-17,R,BIRKIN CLEANING SERVICES LTD,,,,,,,,,,,,,,,,,,,,,,,,,,,,,,,,,,,,,,
1,200829,Raynes Park Library,Library DoS not split,Cultural and Related Services,1600,Corporate Cleaning Contract,Cleaning and Domestic Supplies,Premises Related Expenses,772.14,01-Apr-17,R,BIRKIN CLEANING SERVICES LTD,,,,,,,,,,,,,,,,,,,,,,,,,,,,,,,,,,,,,,
1,200829,Raynes Park Library,Library DoS not split,Cultural and Related Services,1600,Corporate Cleaning Contract,Cleaning and Domestic Supplies,Premises Related Expenses,772.14,01-Apr-17,R,BIRKIN CLEANING SERVICES LTD,,,,,,,,,,,,,,,,,,,,,,,,,,,,,,,,,,,,,,
1,200830,Wimbledon Library,Library DoS not split,Cultural and Related Services,1101,Gas,Energy Costs,Premises Related Expenses,760.34,01-Apr-17,R,GAZPROM MARKETING&TRADING LTD,,,,,,,,,,,,,,,,,,,,,,,,,,,,,,,,,,,,,,
1,200830,Wimbledon Library,Library DoS not split,Cultural and Related Services,1101,Gas,Energy Costs,Premises Related Expenses,627.07,07-Apr-17,R,GAZPROM MARKETING&TRADING LTD,,,,,,,,,,,,,,,,,,,,,,,,,,,,,,,,,,,,,,
1,200830,Wimbledon Library,Library DoS not split,Cultural and Related Services,1402,Use of Water,Water Services,Premises Related Expenses,856.97,01-Apr-17,R,CASTLE WATER LTD,,,,,,,,,,,,,,,,,,,,,,,,,,,,,,,,,,,,,,
1,200830,Wimbledon Library,Library DoS not split,Cultural and Related Services,1600,Corporate Cleaning Contract,Cleaning and Domestic Supplies,Premises Related Expenses,"1,791.82",01-Apr-17,R,BIRKIN CLEANING SERVICES LTD,,,,,,,,,,,,,,,,,,,,,,,,,,,,,,,,,,,,,,
1,200830,Wimbledon Library,Library DoS not split,Cultural and Related Services,1600,Corporate Cleaning Contract,Cleaning and Domestic Supplies,Premises Related Expenses,"1,791.82",01-Apr-17,R,BIRKIN CLEANING SERVICES LTD,,,,,,,,,,,,,,,,,,,,,,,,,,,,,,,,,,,,,,
1,221001,Older People Placements - East,OP 65&Over NursingCarePlacemts,Physical/ Sensory Support,4350,Residential Homes External,Adult Social Care,Third Party Payments,500,01-Apr-17,R,SOUTHPARK RESIDENTIAL HOME,,,,,,,,,,,,,,,,,,,,,,,,,,,,,,,,,,,,,,
1,221001,Older People Placements - East,OP 65&Over NursingCarePlacemts,Physical/ Sensory Support,4350,Residential Homes External,Adult Social Care,Third Party Payments,500,01-Apr-17,R,SOUTHPARK RESIDENTIAL HOME,,,,,,,,,,,,,,,,,,,,,,,,,,,,,,,,,,,,,,
1,221001,Older People Placements - East,OP 65&Over NursingCarePlacemts,Physical/ Sensory Support,4350,Residential Homes External,Adult Social Care,Third Party Payments,500,01-Apr-17,R,SOUTHPARK RESIDENTIAL HOME,,,,,,,,,,,,,,,,,,,,,,,,,,,,,,,,,,,,,,
1,221001,Older People Placements - East,OP 65&Over NursingCarePlacemts,Physical/ Sensory Support,4350,Residential Homes External,Adult Social Care,Third Party Payments,500,01-Apr-17,R,SOUTHPARK RESIDENTIAL HOME,,,,,,,,,,,,,,,,,,,,,,,,,,,,,,,,,,,,,,
1,221001,Older People Placements - East,OP 65&Over NursingCarePlacemts,Physical/ Sensory Support,4350,Residential Homes External,Adult Social Care,Third Party Payments,500,01-Apr-17,R,SOUTHPARK RESIDENTIAL HOME,,,,,,,,,,,,,,,,,,,,,,,,,,,,,,,,,,,,,,
1,221001,Older People Placements - East,OP 65&Over NursingCarePlacemts,Physical/ Sensory Support,4350,Residential Homes External,Adult Social Care,Third Party Payments,500,01-Apr-17,R,SOUTHPARK RESIDENTIAL HOME,,,,,,,,,,,,,,,,,,,,,,,,,,,,,,,,,,,,,,
1,221001,Older People Placements - East,OP 65&Over NursingCarePlacemts,Physical/ Sensory Support,4350,Residential Homes External,Adult Social Care,Third Party Payments,500,01-Apr-17,R,SOUTHPARK RESIDENTIAL HOME,,,,,,,,,,,,,,,,,,,,,,,,,,,,,,,,,,,,,,
1,221001,Older People Placements - East,OP 65&Over NursingCarePlacemts,Physical/ Sensory Support,4350,Residential Homes External,Adult Social Care,Third Party Payments,500,01-Apr-17,R,SOUTHPARK RESIDENTIAL HOME,,,,,,,,,,,,,,,,,,,,,,,,,,,,,,,,,,,,,,
1,221001,Older People Placements - East,OP 65&Over NursingCarePlacemts,Physical/ Sensory Support,4350,Residential Homes External,Adult Social Care,Third Party Payments,500,01-Apr-17,R,SOUTHPARK RESIDENTIAL HOME,,,,,,,,,,,,,,,,,,,,,,,,,,,,,,,,,,,,,,
1,221001,Older People Placements - East,OP 65&Over NursingCarePlacemts,Physical/ Sensory Support,4350,Residential Homes External,Adult Social Care,Third Party Payments,500,01-Apr-17,R,SOUTHPARK RESIDENTIAL HOME,,,,,,,,,,,,,,,,,,,,,,,,,,,,,,,,,,,,,,
1,221001,Older People Placements - East,OP 65&Over NursingCarePlacemts,Physical/ Sensory Support,4350,Residential Homes External,Adult Social Care,Third Party Payments,500,01-Apr-17,R,SOUTHPARK RESIDENTIAL HOME,,,,,,,,,,,,,,,,,,,,,,,,,,,,,,,,,,,,,,
1,221001,Older People Placements - East,OP 65&Over NursingCarePlacemts,Physical/ Sensory Support,4350,Residential Homes External,Adult Social Care,Third Party Payments,500,01-Apr-17,R,SOUTHPARK RESIDENTIAL HOME,,,,,,,,,,,,,,,,,,,,,,,,,,,,,,,,,,,,,,
1,221001,Older People Placements - East,OP 65&Over NursingCarePlacemts,Physical/ Sensory Support,4350,Residential Homes External,Adult Social Care,Third Party Payments,540,01-Apr-17,R,THE WILLOWS CARE HOME,,,,,,,,,,,,,,,,,,,,,,,,,,,,,,,,,,,,,,
1,221001,Older People Placements - East,OP 65&Over NursingCarePlacemts,Physical/ Sensory Support,4350,Residential Homes External,Adult Social Care,Third Party Payments,540,01-Apr-17,R,THE WILLOWS CARE HOME,,,,,,,,,,,,,,,,,,,,,,,,,,,,,,,,,,,,,,
1,221001,Older People Placements - East,OP 65&Over NursingCarePlacemts,Physical/ Sensory Support,4350,Residential Homes External,Adult Social Care,Third Party Payments,540,01-Apr-17,R,THE WILLOWS CARE HOME,,,,,,,,,,,,,,,,,,,,,,,,,,,,,,,,,,,,,,
1,221001,Older People Placements - East,OP 65&Over NursingCarePlacemts,Physical/ Sensory Support,4350,Residential Homes External,Adult Social Care,Third Party Payments,540,01-Apr-17,R,THE WILLOWS CARE HOME,,,,,,,,,,,,,,,,,,,,,,,,,,,,,,,,,,,,,,
1,221001,Older People Placements - East,OP 65&Over NursingCarePlacemts,Physical/ Sensory Support,4350,Residential Homes External,Adult Social Care,Third Party Payments,540,19-Apr-17,R,RUTLAND HOUSE CARE HOME,,,,,,,,,,,,,,,,,,,,,,,,,,,,,,,,,,,,,,
1,221001,Older People Placements - East,OP 65&Over NursingCarePlacemts,Physical/ Sensory Support,4350,Residential Homes External,Adult Social Care,Third Party Payments,540,19-Apr-17,R,RUTLAND HOUSE CARE HOME,,,,,,,,,,,,,,,,,,,,,,,,,,,,,,,,,,,,,,
1,221001,Older People Placements - East,OP 65&Over NursingCarePlacemts,Physical/ Sensory Support,4350,Residential Homes External,Adult Social Care,Third Party Payments,540,19-Apr-17,R,RUTLAND HOUSE CARE HOME,,,,,,,,,,,,,,,,,,,,,,,,,,,,,,,,,,,,,,
1,221001,Older People Placements - East,OP 65&Over NursingCarePlacemts,Physical/ Sensory Support,4350,Residential Homes External,Adult Social Care,Third Party Payments,540,19-Apr-17,R,RUTLAND HOUSE CARE HOME,,,,,,,,,,,,,,,,,,,,,,,,,,,,,,,,,,,,,,
1,221001,Older People Placements - East,OP 65&Over NursingCarePlacemts,Physical/ Sensory Support,4350,Residential Homes External,Adult Social Care,Third Party Payments,540,19-Apr-17,R,RUTLAND HOUSE CARE HOME,,,,,,,,,,,,,,,,,,,,,,,,,,,,,,,,,,,,,,
1,221001,Older People Placements - East,OP 65&Over NursingCarePlacemts,Physical/ Sensory Support,4350,Residential Homes External,Adult Social Care,Third Party Payments,540,19-Apr-17,R,RUTLAND HOUSE CARE HOME,,,,,,,,,,,,,,,,,,,,,,,,,,,,,,,,,,,,,,
1,221001,Older People Placements - East,OP 65&Over NursingCarePlacemts,Physical/ Sensory Support,4350,Residential Homes External,Adult Social Care,Third Party Payments,540,19-Apr-17,R,RUTLAND HOUSE CARE HOME,,,,,,,,,,,,,,,,,,,,,,,,,,,,,,,,,,,,,,
1,221001,Older People Placements - East,OP 65&Over NursingCarePlacemts,Physical/ Sensory Support,4350,Residential Homes External,Adult Social Care,Third Party Payments,540,19-Apr-17,R,RUTLAND HOUSE CARE HOME,,,,,,,,,,,,,,,,,,,,,,,,,,,,,,,,,,,,,,
1,221001,Older People Placements - East,OP 65&Over NursingCarePlacemts,Physical/ Sensory Support,4350,Residential Homes External,Adult Social Care,Third Party Payments,540,19-Apr-17,R,RUTLAND HOUSE CARE HOME,,,,,,,,,,,,,,,,,,,,,,,,,,,,,,,,,,,,,,
1,221001,Older People Placements - East,OP 65&Over NursingCarePlacemts,Physical/ Sensory Support,4350,Residential Homes External,Adult Social Care,Third Party Payments,540,19-Apr-17,R,RUTLAND HOUSE CARE HOME,,,,,,,,,,,,,,,,,,,,,,,,,,,,,,,,,,,,,,
1,221001,Older People Placements - East,OP 65&Over NursingCarePlacemts,Physical/ Sensory Support,4350,Residential Homes External,Adult Social Care,Third Party Payments,540,19-Apr-17,R,RUTLAND HOUSE CARE HOME,,,,,,,,,,,,,,,,,,,,,,,,,,,,,,,,,,,,,,
1,221001,Older People Placements - East,OP 65&Over NursingCarePlacemts,Physical/ Sensory Support,4350,Residential Homes External,Adult Social Care,Third Party Payments,540,19-Apr-17,R,RUTLAND HOUSE CARE HOME,,,,,,,,,,,,,,,,,,,,,,,,,,,,,,,,,,,,,,
1,221001,Older People Placements - East,OP 65&Over NursingCarePlacemts,Physical/ Sensory Support,4350,Residential Homes External,Adult Social Care,Third Party Payments,540,02-Apr-17,R,BEECHWOOD HOUSE,,,,,,,,,,,,,,,,,,,,,,,,,,,,,,,,,,,,,,
1,221001,Older People Placements - East,OP 65&Over NursingCarePlacemts,Physical/ Sensory Support,4350,Residential Homes External,Adult Social Care,Third Party Payments,540,02-Apr-17,R,BEECHWOOD HOUSE,,,,,,,,,,,,,,,,,,,,,,,,,,,,,,,,,,,,,,
1,221001,Older People Placements - East,OP 65&Over NursingCarePlacemts,Physical/ Sensory Support,4350,Residential Homes External,Adult Social Care,Third Party Payments,540,02-Apr-17,R,BEECHWOOD HOUSE,,,,,,,,,,,,,,,,,,,,,,,,,,,,,,,,,,,,,,
1,221001,Older People Placements - East,OP 65&Over NursingCarePlacemts,Physical/ Sensory Support,4350,Residential Homes External,Adult Social Care,Third Party Payments,540,02-Apr-17,R,BEECHWOOD HOUSE,,,,,,,,,,,,,,,,,,,,,,,,,,,,,,,,,,,,,,
1,221001,Older People Placements - East,OP 65&Over NursingCarePlacemts,Physical/ Sensory Support,4350,Residential Homes External,Adult Social Care,Third Party Payments,540,02-Apr-17,R,BEECHWOOD HOUSE,,,,,,,,,,,,,,,,,,,,,,,,,,,,,,,,,,,,,,
1,221001,Older People Placements - East,OP 65&Over NursingCarePlacemts,Physical/ Sensory Support,4350,Residential Homes External,Adult Social Care,Third Party Payments,540,02-Apr-17,R,BEECHWOOD HOUSE,,,,,,,,,,,,,,,,,,,,,,,,,,,,,,,,,,,,,,
1,221001,Older People Placements - East,OP 65&Over NursingCarePlacemts,Physical/ Sensory Support,4350,Residential Homes External,Adult Social Care,Third Party Payments,540,02-Apr-17,R,BEECHWOOD HOUSE,,,,,,,,,,,,,,,,,,,,,,,,,,,,,,,,,,,,,,
1,221001,Older People Placements - East,OP 65&Over NursingCarePlacemts,Physical/ Sensory Support,4350,Residential Homes External,Adult Social Care,Third Party Payments,540,02-Apr-17,R,BEECHWOOD HOUSE,,,,,,,,,,,,,,,,,,,,,,,,,,,,,,,,,,,,,,
1,221001,Older People Placements - East,OP 65&Over NursingCarePlacemts,Physical/ Sensory Support,4390,Home Care,Adult Social Care,Third Party Payments,540,12-Apr-17,R,CARE UK,,,,,,,,,,,,,,,,,,,,,,,,,,,,,,,,,,,,,,
1,221001,Older People Placements - East,OP 65&Over NursingCarePlacemts,Physical/ Sensory Support,4390,Home Care,Adult Social Care,Third Party Payments,540,12-Apr-17,R,CARE UK,,,,,,,,,,,,,,,,,,,,,,,,,,,,,,,,,,,,,,
1,221001,Older People Placements - East,OP 65&Over NursingCarePlacemts,Physical/ Sensory Support,4390,Home Care,Adult Social Care,Third Party Payments,540,12-Apr-17,R,CARE UK,,,,,,,,,,,,,,,,,,,,,,,,,,,,,,,,,,,,,,
1,221001,Older People Placements - East,OP 65&Over NursingCarePlacemts,Physical/ Sensory Support,4350,Residential Homes External,Adult Social Care,Third Party Payments,543.71,01-Apr-17,R,HILLVIEW,,,,,,,,,,,,,,,,,,,,,,,,,,,,,,,,,,,,,,
1,221001,Older People Placements - East,OP 65&Over NursingCarePlacemts,Physical/ Sensory Support,4350,Residential Homes External,Adult Social Care,Third Party Payments,543.71,01-Apr-17,R,HILLVIEW,,,,,,,,,,,,,,,,,,,,,,,,,,,,,,,,,,,,,,
1,221001,Older People Placements - East,OP 65&Over NursingCarePlacemts,Physical/ Sensory Support,4350,Residential Homes External,Adult Social Care,Third Party Payments,543.71,01-Apr-17,R,HILLVIEW,,,,,,,,,,,,,,,,,,,,,,,,,,,,,,,,,,,,,,
1,221001,Older People Placements - East,OP 65&Over NursingCarePlacemts,Physical/ Sensory Support,4350,Residential Homes External,Adult Social Care,Third Party Payments,543.71,01-Apr-17,R,HILLVIEW,,,,,,,,,,,,,,,,,,,,,,,,,,,,,,,,,,,,,,
1,221001,Older People Placements - East,OP 65&Over NursingCarePlacemts,Physical/ Sensory Support,4350,Residential Homes External,Adult Social Care,Third Party Payments,550,03-Apr-17,R,KEW HOUSE,,,,,,,,,,,,,,,,,,,,,,,,,,,,,,,,,,,,,,
1,221001,Older People Placements - East,OP 65&Over NursingCarePlacemts,Physical/ Sensory Support,4350,Residential Homes External,Adult Social Care,Third Party Payments,550,03-Apr-17,R,KEW HOUSE,,,,,,,,,,,,,,,,,,,,,,,,,,,,,,,,,,,,,,
1,221001,Older People Placements - East,OP 65&Over NursingCarePlacemts,Physical/ Sensory Support,4350,Residential Homes External,Adult Social Care,Third Party Payments,550,03-Apr-17,R,KEW HOUSE,,,,,,,,,,,,,,,,,,,,,,,,,,,,,,,,,,,,,,
1,221001,Older People Placements - East,OP 65&Over NursingCarePlacemts,Physical/ Sensory Support,4350,Residential Homes External,Adult Social Care,Third Party Payments,550,03-Apr-17,R,KEW HOUSE,,,,,,,,,,,,,,,,,,,,,,,,,,,,,,,,,,,,,,
1,221001,Older People Placements - East,OP 65&Over NursingCarePlacemts,Physical/ Sensory Support,4350,Residential Homes External,Adult Social Care,Third Party Payments,625,23-Apr-17,R,SUNNINGDALE HOUSE CARE HOME,,,,,,,,,,,,,,,,,,,,,,,,,,,,,,,,,,,,,,
1,221001,Older People Placements - East,OP 65&Over NursingCarePlacemts,Physical/ Sensory Support,4350,Residential Homes External,Adult Social Care,Third Party Payments,625,23-Apr-17,R,SUNNINGDALE HOUSE CARE HOME,,,,,,,,,,,,,,,,,,,,,,,,,,,,,,,,,,,,,,
1,221001,Older People Placements - East,OP 65&Over NursingCarePlacemts,Physical/ Sensory Support,4350,Residential Homes External,Adult Social Care,Third Party Payments,625,23-Apr-17,R,SUNNINGDALE HOUSE CARE HOME,,,,,,,,,,,,,,,,,,,,,,,,,,,,,,,,,,,,,,
1,221001,Older People Placements - East,OP 65&Over NursingCarePlacemts,Physical/ Sensory Support,4350,Residential Homes External,Adult Social Care,Third Party Payments,625,23-Apr-17,R,SUNNINGDALE HOUSE CARE HOME,,,,,,,,,,,,,,,,,,,,,,,,,,,,,,,,,,,,,,
1,221001,Older People Placements - East,OP 65&Over NursingCarePlacemts,Physical/ Sensory Support,4360,Nursing Homes External,Adult Social Care,Third Party Payments,628.51,14-Apr-17,R,ROYAL MASONIC BENEVOLENT INST.,,,,,,,,,,,,,,,,,,,,,,,,,,,,,,,,,,,,,,
1,221001,Older People Placements - East,OP 65&Over NursingCarePlacemts,Physical/ Sensory Support,4360,Nursing Homes External,Adult Social Care,Third Party Payments,628.51,14-Apr-17,R,ROYAL MASONIC BENEVOLENT INST.,,,,,,,,,,,,,,,,,,,,,,,,,,,,,,,,,,,,,,
1,221001,Older People Placements - East,OP 65&Over NursingCarePlacemts,Physical/ Sensory Support,4360,Nursing Homes External,Adult Social Care,Third Party Payments,628.51,01-Apr-17,R,REDACTED,,,,,,,,,,,,,,,,,,,,,,,,,,,,,,,,,,,,,,
1,221001,Older People Placements - East,OP 65&Over NursingCarePlacemts,Physical/ Sensory Support,4360,Nursing Homes External,Adult Social Care,Third Party Payments,628.51,01-Apr-17,R,REDACTED,,,,,,,,,,,,,,,,,,,,,,,,,,,,,,,,,,,,,,
1,221001,Older People Placements - East,OP 65&Over NursingCarePlacemts,Physical/ Sensory Support,4360,Nursing Homes External,Adult Social Care,Third Party Payments,629.71,01-Apr-17,R,ROYAL MASONIC BENEVOLENT INST.,,,,,,,,,,,,,,,,,,,,,,,,,,,,,,,,,,,,,,
1,221001,Older People Placements - East,OP 65&Over NursingCarePlacemts,Physical/ Sensory Support,4360,Nursing Homes External,Adult Social Care,Third Party Payments,629.71,01-Apr-17,R,ROYAL MASONIC BENEVOLENT INST.,,,,,,,,,,,,,,,,,,,,,,,,,,,,,,,,,,,,,,
1,221001,Older People Placements - East,OP 65&Over NursingCarePlacemts,Physical/ Sensory Support,4360,Nursing Homes External,Adult Social Care,Third Party Payments,629.71,01-Apr-17,R,ROYAL MASONIC BENEVOLENT INST.,,,,,,,,,,,,,,,,,,,,,,,,,,,,,,,,,,,,,,
1,221001,Older People Placements - East,OP 65&Over NursingCarePlacemts,Physical/ Sensory Support,4360,Nursing Homes External,Adult Social Care,Third Party Payments,629.71,01-Apr-17,R,ROYAL MASONIC BENEVOLENT INST.,,,,,,,,,,,,,,,,,,,,,,,,,,,,,,,,,,,,,,
1,221001,Older People Placements - East,OP 65&Over NursingCarePlacemts,Physical/ Sensory Support,4360,Nursing Homes External,Adult Social Care,Third Party Payments,629.71,01-Apr-17,R,ROYAL MASONIC BENEVOLENT INST.,,,,,,,,,,,,,,,,,,,,,,,,,,,,,,,,,,,,,,
1,221001,Older People Placements - East,OP 65&Over NursingCarePlacemts,Physical/ Sensory Support,4360,Nursing Homes External,Adult Social Care,Third Party Payments,629.71,01-Apr-17,R,ROYAL MASONIC BENEVOLENT INST.,,,,,,,,,,,,,,,,,,,,,,,,,,,,,,,,,,,,,,
1,221001,Older People Placements - East,OP 65&Over NursingCarePlacemts,Physical/ Sensory Support,4360,Nursing Homes External,Adult Social Care,Third Party Payments,629.71,01-Apr-17,R,ROYAL MASONIC BENEVOLENT INST.,,,,,,,,,,,,,,,,,,,,,,,,,,,,,,,,,,,,,,
1,221001,Older People Placements - East,OP 65&Over NursingCarePlacemts,Physical/ Sensory Support,4360,Nursing Homes External,Adult Social Care,Third Party Payments,629.71,01-Apr-17,R,ROYAL MASONIC BENEVOLENT INST.,,,,,,,,,,,,,,,,,,,,,,,,,,,,,,,,,,,,,,
1,221001,Older People Placements - East,OP 65&Over NursingCarePlacemts,Physical/ Sensory Support,4360,Nursing Homes External,Adult Social Care,Third Party Payments,629.71,01-Apr-17,R,ROYAL MASONIC BENEVOLENT INST.,,,,,,,,,,,,,,,,,,,,,,,,,,,,,,,,,,,,,,
1,221001,Older People Placements - East,OP 65&Over NursingCarePlacemts,Physical/ Sensory Support,4360,Nursing Homes External,Adult Social Care,Third Party Payments,629.71,01-Apr-17,R,ROYAL MASONIC BENEVOLENT INST.,,,,,,,,,,,,,,,,,,,,,,,,,,,,,,,,,,,,,,
1,221001,Older People Placements - East,OP 65&Over NursingCarePlacemts,Physical/ Sensory Support,4360,Nursing Homes External,Adult Social Care,Third Party Payments,629.71,01-Apr-17,R,ROYAL MASONIC BENEVOLENT INST.,,,,,,,,,,,,,,,,,,,,,,,,,,,,,,,,,,,,,,
1,221001,Older People Placements - East,OP 65&Over NursingCarePlacemts,Physical/ Sensory Support,4360,Nursing Homes External,Adult Social Care,Third Party Payments,629.71,01-Apr-17,R,ROYAL MASONIC BENEVOLENT INST.,,,,,,,,,,,,,,,,,,,,,,,,,,,,,,,,,,,,,,
1,221001,Older People Placements - East,OP 65&Over NursingCarePlacemts,Physical/ Sensory Support,4360,Nursing Homes External,Adult Social Care,Third Party Payments,629.71,14-Apr-17,R,ROYAL MASONIC BENEVOLENT INST.,,,,,,,,,,,,,,,,,,,,,,,,,,,,,,,,,,,,,,
1,221001,Older People Placements - East,OP 65&Over NursingCarePlacemts,Physical/ Sensory Support,4360,Nursing Homes External,Adult Social Care,Third Party Payments,629.71,01-Apr-17,R,REDACTED,,,,,,,,,,,,,,,,,,,,,,,,,,,,,,,,,,,,,,
1,221001,Older People Placements - East,OP 65&Over NursingCarePlacemts,Physical/ Sensory Support,4360,Nursing Homes External,Adult Social Care,Third Party Payments,629.71,01-Apr-17,R,REDACTED,,,,,,,,,,,,,,,,,,,,,,,,,,,,,,,,,,,,,,
1,221001,Older People Placements - East,OP 65&Over NursingCarePlacemts,Physical/ Sensory Support,4360,Nursing Homes External,Adult Social Care,Third Party Payments,630.66,16-Apr-17,R,LIFESTYLE CARE MANAGEMENT LTD,,,,,,,,,,,,,,,,,,,,,,,,,,,,,,,,,,,,,,
1,221001,Older People Placements - East,OP 65&Over NursingCarePlacemts,Physical/ Sensory Support,4360,Nursing Homes External,Adult Social Care,Third Party Payments,630.66,16-Apr-17,R,LIFESTYLE CARE MANAGEMENT LTD,,,,,,,,,,,,,,,,,,,,,,,,,,,,,,,,,,,,,,
1,221001,Older People Placements - East,OP 65&Over NursingCarePlacemts,Physical/ Sensory Support,4360,Nursing Homes External,Adult Social Care,Third Party Payments,631.86,16-Apr-17,R,LIFESTYLE CARE MANAGEMENT LTD,,,,,,,,,,,,,,,,,,,,,,,,,,,,,,,,,,,,,,
1,221001,Older People Placements - East,OP 65&Over NursingCarePlacemts,Physical/ Sensory Support,4360,Nursing Homes External,Adult Social Care,Third Party Payments,631.86,16-Apr-17,R,LIFESTYLE CARE MANAGEMENT LTD,,,,,,,,,,,,,,,,,,,,,,,,,,,,,,,,,,,,,,
1,221001,Older People Placements - East,OP 65&Over NursingCarePlacemts,Physical/ Sensory Support,4350,Residential Homes External,Adult Social Care,Third Party Payments,635,05-Apr-17,R,BUPA CARE HOMES,,,,,,,,,,,,,,,,,,,,,,,,,,,,,,,,,,,,,,
1,221001,Older People Placements - East,OP 65&Over NursingCarePlacemts,Physical/ Sensory Support,4350,Residential Homes External,Adult Social Care,Third Party Payments,635,05-Apr-17,R,BUPA CARE HOMES,,,,,,,,,,,,,,,,,,,,,,,,,,,,,,,,,,,,,,
1,221001,Older People Placements - East,OP 65&Over NursingCarePlacemts,Physical/ Sensory Support,4350,Residential Homes External,Adult Social Care,Third Party Payments,635,05-Apr-17,R,BUPA CARE HOMES,,,,,,,,,,,,,,,,,,,,,,,,,,,,,,,,,,,,,,
1,221001,Older People Placements - East,OP 65&Over NursingCarePlacemts,Physical/ Sensory Support,4350,Residential Homes External,Adult Social Care,Third Party Payments,635,05-Apr-17,R,BUPA CARE HOMES,,,,,,,,,,,,,,,,,,,,,,,,,,,,,,,,,,,,,,
1,221001,Older People Placements - East,OP 65&Over NursingCarePlacemts,Physical/ Sensory Support,4350,Residential Homes External,Adult Social Care,Third Party Payments,635,05-Apr-17,R,BUPA CARE HOMES,,,,,,,,,,,,,,,,,,,,,,,,,,,,,,,,,,,,,,
1,221001,Older People Placements - East,OP 65&Over NursingCarePlacemts,Physical/ Sensory Support,4350,Residential Homes External,Adult Social Care,Third Party Payments,635,05-Apr-17,R,BUPA CARE HOMES,,,,,,,,,,,,,,,,,,,,,,,,,,,,,,,,,,,,,,
1,221001,Older People Placements - East,OP 65&Over NursingCarePlacemts,Physical/ Sensory Support,4350,Residential Homes External,Adult Social Care,Third Party Payments,635,05-Apr-17,R,BUPA CARE HOMES,,,,,,,,,,,,,,,,,,,,,,,,,,,,,,,,,,,,,,
1,221001,Older People Placements - East,OP 65&Over NursingCarePlacemts,Physical/ Sensory Support,4350,Residential Homes External,Adult Social Care,Third Party Payments,635,05-Apr-17,R,BUPA CARE HOMES,,,,,,,,,,,,,,,,,,,,,,,,,,,,,,,,,,,,,,
1,221001,Older People Placements - East,OP 65&Over NursingCarePlacemts,Physical/ Sensory Support,4350,Residential Homes External,Adult Social Care,Third Party Payments,635,05-Apr-17,R,BUPA CARE HOMES,,,,,,,,,,,,,,,,,,,,,,,,,,,,,,,,,,,,,,
1,221001,Older People Placements - East,OP 65&Over NursingCarePlacemts,Physical/ Sensory Support,4350,Residential Homes External,Adult Social Care,Third Party Payments,635,05-Apr-17,R,BUPA CARE HOMES,,,,,,,,,,,,,,,,,,,,,,,,,,,,,,,,,,,,,,
1,221001,Older People Placements - East,OP 65&Over NursingCarePlacemts,Physical/ Sensory Support,4350,Residential Homes External,Adult Social Care,Third Party Payments,635,05-Apr-17,R,BUPA CARE HOMES,,,,,,,,,,,,,,,,,,,,,,,,,,,,,,,,,,,,,,
1,221001,Older People Placements - East,OP 65&Over NursingCarePlacemts,Physical/ Sensory Support,4350,Residential Homes External,Adult Social Care,Third Party Payments,635,05-Apr-17,R,BUPA CARE HOMES,,,,,,,,,,,,,,,,,,,,,,,,,,,,,,,,,,,,,,
1,221001,Older People Placements - East,OP 65&Over NursingCarePlacemts,Physical/ Sensory Support,4360,Nursing Homes External,Adult Social Care,Third Party Payments,648,12-Apr-17,R,CORKHILL CARE CENTRE,,,,,,,,,,,,,,,,,,,,,,,,,,,,,,,,,,,,,,
1,221001,Older People Placements - East,OP 65&Over NursingCarePlacemts,Physical/ Sensory Support,4360,Nursing Homes External,Adult Social Care,Third Party Payments,648,12-Apr-17,R,CORKHILL CARE CENTRE,,,,,,,,,,,,,,,,,,,,,,,,,,,,,,,,,,,,,,
1,221001,Older People Placements - East,OP 65&Over NursingCarePlacemts,Physical/ Sensory Support,4360,Nursing Homes External,Adult Social Care,Third Party Payments,648,12-Apr-17,R,CORKHILL CARE CENTRE,,,,,,,,,,,,,,,,,,,,,,,,,,,,,,,,,,,,,,
1,221001,Older People Placements - East,OP 65&Over NursingCarePlacemts,Physical/ Sensory Support,4360,Nursing Homes External,Adult Social Care,Third Party Payments,648,12-Apr-17,R,CORKHILL CARE CENTRE,,,,,,,,,,,,,,,,,,,,,,,,,,,,,,,,,,,,,,
1,221001,Older People Placements - East,OP 65&Over NursingCarePlacemts,Physical/ Sensory Support,4350,Residential Homes External,Adult Social Care,Third Party Payments,650,16-Apr-17,R,LIFESTYLE CARE MANAGEMENT LTD,,,,,,,,,,,,,,,,,,,,,,,,,,,,,,,,,,,,,,
1,221001,Older People Placements - East,OP 65&Over NursingCarePlacemts,Physical/ Sensory Support,4350,Residential Homes External,Adult Social Care,Third Party Payments,650,16-Apr-17,R,LIFESTYLE CARE MANAGEMENT LTD,,,,,,,,,,,,,,,,,,,,,,,,,,,,,,,,,,,,,,
1,221001,Older People Placements - East,OP 65&Over NursingCarePlacemts,Physical/ Sensory Support,4350,Residential Homes External,Adult Social Care,Third Party Payments,650,16-Apr-17,R,LIFESTYLE CARE MANAGEMENT LTD,,,,,,,,,,,,,,,,,,,,,,,,,,,,,,,,,,,,,,
1,221001,Older People Placements - East,OP 65&Over NursingCarePlacemts,Physical/ Sensory Support,4350,Residential Homes External,Adult Social Care,Third Party Payments,650,16-Apr-17,R,LIFESTYLE CARE MANAGEMENT LTD,,,,,,,,,,,,,,,,,,,,,,,,,,,,,,,,,,,,,,
1,221001,Older People Placements - East,OP 65&Over NursingCarePlacemts,Physical/ Sensory Support,4350,Residential Homes External,Adult Social Care,Third Party Payments,650,01-Apr-17,R,MANOR HOUSE RESIDENTIAL HOME,,,,,,,,,,,,,,,,,,,,,,,,,,,,,,,,,,,,,,
1,221001,Older People Placements - East,OP 65&Over NursingCarePlacemts,Physical/ Sensory Support,4350,Residential Homes External,Adult Social Care,Third Party Payments,650,01-Apr-17,R,MANOR HOUSE RESIDENTIAL HOME,,,,,,,,,,,,,,,,,,,,,,,,,,,,,,,,,,,,,,
1,221001,Older People Placements - East,OP 65&Over NursingCarePlacemts,Physical/ Sensory Support,4350,Residential Homes External,Adult Social Care,Third Party Payments,650,01-Apr-17,R,MANOR HOUSE RESIDENTIAL HOME,,,,,,,,,,,,,,,,,,,,,,,,,,,,,,,,,,,,,,
1,221001,Older People Placements - East,OP 65&Over NursingCarePlacemts,Physical/ Sensory Support,4350,Residential Homes External,Adult Social Care,Third Party Payments,650,01-Apr-17,R,MANOR HOUSE RESIDENTIAL HOME,,,,,,,,,,,,,,,,,,,,,,,,,,,,,,,,,,,,,,
1,221001,Older People Placements - East,OP 65&Over NursingCarePlacemts,Physical/ Sensory Support,4350,Residential Homes External,Adult Social Care,Third Party Payments,650,01-Apr-17,R,MANOR HOUSE RESIDENTIAL HOME,,,,,,,,,,,,,,,,,,,,,,,,,,,,,,,,,,,,,,
1,221001,Older People Placements - East,OP 65&Over NursingCarePlacemts,Physical/ Sensory Support,4350,Residential Homes External,Adult Social Care,Third Party Payments,650,01-Apr-17,R,MANOR HOUSE RESIDENTIAL HOME,,,,,,,,,,,,,,,,,,,,,,,,,,,,,,,,,,,,,,
1,221001,Older People Placements - East,OP 65&Over NursingCarePlacemts,Physical/ Sensory Support,4350,Residential Homes External,Adult Social Care,Third Party Payments,650,01-Apr-17,R,MANOR HOUSE RESIDENTIAL HOME,,,,,,,,,,,,,,,,,,,,,,,,,,,,,,,,,,,,,,
1,221001,Older People Placements - East,OP 65&Over NursingCarePlacemts,Physical/ Sensory Support,4360,Nursing Homes External,Adult Social Care,Third Party Payments,659.78,01-Apr-17,R,POPLARS CARE CENTRE,,,,,,,,,,,,,,,,,,,,,,,,,,,,,,,,,,,,,,
1,221001,Older People Placements - East,OP 65&Over NursingCarePlacemts,Physical/ Sensory Support,4360,Nursing Homes External,Adult Social Care,Third Party Payments,659.78,01-Apr-17,R,POPLARS CARE CENTRE,,,,,,,,,,,,,,,,,,,,,,,,,,,,,,,,,,,,,,
1,221001,Older People Placements - East,OP 65&Over NursingCarePlacemts,Physical/ Sensory Support,4360,Nursing Homes External,Adult Social Care,Third Party Payments,659.78,01-Apr-17,R,POPLARS CARE CENTRE,,,,,,,,,,,,,,,,,,,,,,,,,,,,,,,,,,,,,,
1,221001,Older People Placements - East,OP 65&Over NursingCarePlacemts,Physical/ Sensory Support,4360,Nursing Homes External,Adult Social Care,Third Party Payments,659.78,01-Apr-17,R,POPLARS CARE CENTRE,,,,,,,,,,,,,,,,,,,,,,,,,,,,,,,,,,,,,,
1,221001,Older People Placements - East,OP 65&Over NursingCarePlacemts,Physical/ Sensory Support,4360,Nursing Homes External,Adult Social Care,Third Party Payments,660.98,01-Apr-17,R,POPLARS CARE CENTRE,,,,,,,,,,,,,,,,,,,,,,,,,,,,,,,,,,,,,,
1,221001,Older People Placements - East,OP 65&Over NursingCarePlacemts,Physical/ Sensory Support,4360,Nursing Homes External,Adult Social Care,Third Party Payments,670,01-Apr-17,R,SUTTON COURT CARE CENTRE,,,,,,,,,,,,,,,,,,,,,,,,,,,,,,,,,,,,,,
1,221001,Older People Placements - East,OP 65&Over NursingCarePlacemts,Physical/ Sensory Support,4360,Nursing Homes External,Adult Social Care,Third Party Payments,670,01-Apr-17,R,SUTTON COURT CARE CENTRE,,,,,,,,,,,,,,,,,,,,,,,,,,,,,,,,,,,,,,
1,221001,Older People Placements - East,OP 65&Over NursingCarePlacemts,Physical/ Sensory Support,4360,Nursing Homes External,Adult Social Care,Third Party Payments,670,01-Apr-17,R,SUTTON COURT CARE CENTRE,,,,,,,,,,,,,,,,,,,,,,,,,,,,,,,,,,,,,,
1,221001,Older People Placements - East,OP 65&Over NursingCarePlacemts,Physical/ Sensory Support,4360,Nursing Homes External,Adult Social Care,Third Party Payments,670,01-Apr-17,R,SUTTON COURT CARE CENTRE,,,,,,,,,,,,,,,,,,,,,,,,,,,,,,,,,,,,,,
1,221001,Older People Placements - East,OP 65&Over NursingCarePlacemts,Physical/ Sensory Support,4360,Nursing Homes External,Adult Social Care,Third Party Payments,670,01-Apr-17,R,SUTTON COURT CARE CENTRE,,,,,,,,,,,,,,,,,,,,,,,,,,,,,,,,,,,,,,
1,221001,Older People Placements - East,OP 65&Over NursingCarePlacemts,Physical/ Sensory Support,4360,Nursing Homes External,Adult Social Care,Third Party Payments,670,01-Apr-17,R,SUTTON COURT CARE CENTRE,,,,,,,,,,,,,,,,,,,,,,,,,,,,,,,,,,,,,,
1,221001,Older People Placements - East,OP 65&Over NursingCarePlacemts,Physical/ Sensory Support,4360,Nursing Homes External,Adult Social Care,Third Party Payments,670,01-Apr-17,R,SUTTON COURT CARE CENTRE,,,,,,,,,,,,,,,,,,,,,,,,,,,,,,,,,,,,,,
1,221001,Older People Placements - East,OP 65&Over NursingCarePlacemts,Physical/ Sensory Support,4360,Nursing Homes External,Adult Social Care,Third Party Payments,670,01-Apr-17,R,SUTTON COURT CARE CENTRE,,,,,,,,,,,,,,,,,,,,,,,,,,,,,,,,,,,,,,
1,221001,Older People Placements - East,OP 65&Over NursingCarePlacemts,Physical/ Sensory Support,4360,Nursing Homes External,Adult Social Care,Third Party Payments,670,01-Apr-17,R,SUTTON COURT CARE CENTRE,,,,,,,,,,,,,,,,,,,,,,,,,,,,,,,,,,,,,,
1,221001,Older People Placements - East,OP 65&Over NursingCarePlacemts,Physical/ Sensory Support,4350,Residential Homes External,Adult Social Care,Third Party Payments,675,01-Apr-17,R,ROYAL CAMBRIDGE HOME,,,,,,,,,,,,,,,,,,,,,,,,,,,,,,,,,,,,,,
1,221001,Older People Placements - East,OP 65&Over NursingCarePlacemts,Physical/ Sensory Support,4350,Residential Homes External,Adult Social Care,Third Party Payments,675,01-Apr-17,R,ROYAL CAMBRIDGE HOME,,,,,,,,,,,,,,,,,,,,,,,,,,,,,,,,,,,,,,
1,221001,Older People Placements - East,OP 65&Over NursingCarePlacemts,Physical/ Sensory Support,4350,Residential Homes External,Adult Social Care,Third Party Payments,675,01-Apr-17,R,ROYAL CAMBRIDGE HOME,,,,,,,,,,,,,,,,,,,,,,,,,,,,,,,,,,,,,,
1,221001,Older People Placements - East,OP 65&Over NursingCarePlacemts,Physical/ Sensory Support,4350,Residential Homes External,Adult Social Care,Third Party Payments,675,01-Apr-17,R,ROYAL CAMBRIDGE HOME,,,,,,,,,,,,,,,,,,,,,,,,,,,,,,,,,,,,,,
1,221001,Older People Placements - East,OP 65&Over NursingCarePlacemts,Physical/ Sensory Support,4360,Nursing Homes External,Adult Social Care,Third Party Payments,694.25,01-Apr-17,R,SUTTON COURT CARE CENTRE,,,,,,,,,,,,,,,,,,,,,,,,,,,,,,,,,,,,,,
1,221001,Older People Placements - East,OP 65&Over NursingCarePlacemts,Physical/ Sensory Support,4360,Nursing Homes External,Adult Social Care,Third Party Payments,694.25,01-Apr-17,R,SUTTON COURT CARE CENTRE,,,,,,,,,,,,,,,,,,,,,,,,,,,,,,,,,,,,,,
1,221001,Older People Placements - East,OP 65&Over NursingCarePlacemts,Physical/ Sensory Support,4360,Nursing Homes External,Adult Social Care,Third Party Payments,698.8,01-Apr-17,R,ELMWOOD,,,,,,,,,,,,,,,,,,,,,,,,,,,,,,,,,,,,,,
1,221001,Older People Placements - East,OP 65&Over NursingCarePlacemts,Physical/ Sensory Support,4360,Nursing Homes External,Adult Social Care,Third Party Payments,698.8,01-Apr-17,R,ELMWOOD,,,,,,,,,,,,,,,,,,,,,,,,,,,,,,,,,,,,,,
1,221001,Older People Placements - East,OP 65&Over NursingCarePlacemts,Physical/ Sensory Support,4360,Nursing Homes External,Adult Social Care,Third Party Payments,700,01-Apr-17,R,ELMWOOD,,,,,,,,,,,,,,,,,,,,,,,,,,,,,,,,,,,,,,
1,221001,Older People Placements - East,OP 65&Over NursingCarePlacemts,Physical/ Sensory Support,4360,Nursing Homes External,Adult Social Care,Third Party Payments,700,01-Apr-17,R,ELMWOOD,,,,,,,,,,,,,,,,,,,,,,,,,,,,,,,,,,,,,,
1,221001,Older People Placements - East,OP 65&Over NursingCarePlacemts,Physical/ Sensory Support,4360,Nursing Homes External,Adult Social Care,Third Party Payments,714.25,01-Apr-17,R,TRINITY COURT NURSING HOME,,,,,,,,,,,,,,,,,,,,,,,,,,,,,,,,,,,,,,
1,221001,Older People Placements - East,OP 65&Over NursingCarePlacemts,Physical/ Sensory Support,4360,Nursing Homes External,Adult Social Care,Third Party Payments,714.25,01-Apr-17,R,TRINITY COURT NURSING HOME,,,,,,,,,,,,,,,,,,,,,,,,,,,,,,,,,,,,,,
1,221001,Older People Placements - East,OP 65&Over NursingCarePlacemts,Physical/ Sensory Support,4360,Nursing Homes External,Adult Social Care,Third Party Payments,714.25,01-Apr-17,R,TRINITY COURT NURSING HOME,,,,,,,,,,,,,,,,,,,,,,,,,,,,,,,,,,,,,,
1,221001,Older People Placements - East,OP 65&Over NursingCarePlacemts,Physical/ Sensory Support,4360,Nursing Homes External,Adult Social Care,Third Party Payments,714.25,01-Apr-17,R,TRINITY COURT NURSING HOME,,,,,,,,,,,,,,,,,,,,,,,,,,,,,,,,,,,,,,
1,221001,Older People Placements - East,OP 65&Over NursingCarePlacemts,Physical/ Sensory Support,4390,Home Care,Adult Social Care,Third Party Payments,720,12-Apr-17,R,CARE UK,,,,,,,,,,,,,,,,,,,,,,,,,,,,,,,,,,,,,,
1,221001,Older People Placements - East,OP 65&Over NursingCarePlacemts,Physical/ Sensory Support,4390,Home Care,Adult Social Care,Third Party Payments,720,12-Apr-17,R,CARE UK,,,,,,,,,,,,,,,,,,,,,,,,,,,,,,,,,,,,,,
1,221001,Older People Placements - East,OP 65&Over NursingCarePlacemts,Physical/ Sensory Support,4360,Nursing Homes External,Adult Social Care,Third Party Payments,728.8,04-Apr-17,R,MILSOM HOUSE NURSING HOME,,,,,,,,,,,,,,,,,,,,,,,,,,,,,,,,,,,,,,
1,221001,Older People Placements - East,OP 65&Over NursingCarePlacemts,Physical/ Sensory Support,4360,Nursing Homes External,Adult Social Care,Third Party Payments,730,07-Apr-17,R,MILSOM HOUSE NURSING HOME,,,,,,,,,,,,,,,,,,,,,,,,,,,,,,,,,,,,,,
1,221001,Older People Placements - East,OP 65&Over NursingCarePlacemts,Physical/ Sensory Support,4360,Nursing Homes External,Adult Social Care,Third Party Payments,730,07-Apr-17,R,MILSOM HOUSE NURSING HOME,,,,,,,,,,,,,,,,,,,,,,,,,,,,,,,,,,,,,,
1,221001,Older People Placements - East,OP 65&Over NursingCarePlacemts,Physical/ Sensory Support,4360,Nursing Homes External,Adult Social Care,Third Party Payments,730,07-Apr-17,R,MILSOM HOUSE NURSING HOME,,,,,,,,,,,,,,,,,,,,,,,,,,,,,,,,,,,,,,
1,221001,Older People Placements - East,OP 65&Over NursingCarePlacemts,Physical/ Sensory Support,4360,Nursing Homes External,Adult Social Care,Third Party Payments,730,07-Apr-17,R,MILSOM HOUSE NURSING HOME,,,,,,,,,,,,,,,,,,,,,,,,,,,,,,,,,,,,,,
1,221001,Older People Placements - East,OP 65&Over NursingCarePlacemts,Physical/ Sensory Support,4360,Nursing Homes External,Adult Social Care,Third Party Payments,730,04-Apr-17,R,MILSOM HOUSE NURSING HOME,,,,,,,,,,,,,,,,,,,,,,,,,,,,,,,,,,,,,,
1,221001,Older People Placements - East,OP 65&Over NursingCarePlacemts,Physical/ Sensory Support,4360,Nursing Homes External,Adult Social Care,Third Party Payments,730,04-Apr-17,R,MILSOM HOUSE NURSING HOME,,,,,,,,,,,,,,,,,,,,,,,,,,,,,,,,,,,,,,
1,221001,Older People Placements - East,OP 65&Over NursingCarePlacemts,Physical/ Sensory Support,4360,Nursing Homes External,Adult Social Care,Third Party Payments,730,04-Apr-17,R,MILSOM HOUSE NURSING HOME,,,,,,,,,,,,,,,,,,,,,,,,,,,,,,,,,,,,,,
1,221001,Older People Placements - East,OP 65&Over NursingCarePlacemts,Physical/ Sensory Support,4360,Nursing Homes External,Adult Social Care,Third Party Payments,738.05,25-Apr-17,R,KELSTONE COURT NURSING HOME,,,,,,,,,,,,,,,,,,,,,,,,,,,,,,,,,,,,,,
1,221001,Older People Placements - East,OP 65&Over NursingCarePlacemts,Physical/ Sensory Support,4360,Nursing Homes External,Adult Social Care,Third Party Payments,738.05,25-Apr-17,R,KELSTONE COURT NURSING HOME,,,,,,,,,,,,,,,,,,,,,,,,,,,,,,,,,,,,,,
1,221001,Older People Placements - East,OP 65&Over NursingCarePlacemts,Physical/ Sensory Support,4360,Nursing Homes External,Adult Social Care,Third Party Payments,738.05,25-Apr-17,R,KELSTONE COURT NURSING HOME,,,,,,,,,,,,,,,,,,,,,,,,,,,,,,,,,,,,,,
1,221001,Older People Placements - East,OP 65&Over NursingCarePlacemts,Physical/ Sensory Support,4360,Nursing Homes External,Adult Social Care,Third Party Payments,738.05,25-Apr-17,R,KELSTONE COURT NURSING HOME,,,,,,,,,,,,,,,,,,,,,,,,,,,,,,,,,,,,,,
1,221001,Older People Placements - East,OP 65&Over NursingCarePlacemts,Physical/ Sensory Support,4360,Nursing Homes External,Adult Social Care,Third Party Payments,738.05,24-Apr-17,R,KELSTONE COURT NURSING HOME,,,,,,,,,,,,,,,,,,,,,,,,,,,,,,,,,,,,,,
1,221001,Older People Placements - East,OP 65&Over NursingCarePlacemts,Physical/ Sensory Support,4360,Nursing Homes External,Adult Social Care,Third Party Payments,738.05,24-Apr-17,R,KELSTONE COURT NURSING HOME,,,,,,,,,,,,,,,,,,,,,,,,,,,,,,,,,,,,,,
1,221001,Older People Placements - East,OP 65&Over NursingCarePlacemts,Physical/ Sensory Support,4360,Nursing Homes External,Adult Social Care,Third Party Payments,738.05,28-Apr-17,R,KELSTONE COURT NURSING HOME,,,,,,,,,,,,,,,,,,,,,,,,,,,,,,,,,,,,,,
1,221001,Older People Placements - East,OP 65&Over NursingCarePlacemts,Physical/ Sensory Support,4360,Nursing Homes External,Adult Social Care,Third Party Payments,738.05,28-Apr-17,R,KELSTONE COURT NURSING HOME,,,,,,,,,,,,,,,,,,,,,,,,,,,,,,,,,,,,,,
1,221001,Older People Placements - East,OP 65&Over NursingCarePlacemts,Physical/ Sensory Support,4360,Nursing Homes External,Adult Social Care,Third Party Payments,738.05,28-Apr-17,R,KELSTONE COURT NURSING HOME,,,,,,,,,,,,,,,,,,,,,,,,,,,,,,,,,,,,,,
1,221001,Older People Placements - East,OP 65&Over NursingCarePlacemts,Physical/ Sensory Support,4360,Nursing Homes External,Adult Social Care,Third Party Payments,738.05,28-Apr-17,R,KELSTONE COURT NURSING HOME,,,,,,,,,,,,,,,,,,,,,,,,,,,,,,,,,,,,,,
1,221001,Older People Placements - East,OP 65&Over NursingCarePlacemts,Physical/ Sensory Support,4360,Nursing Homes External,Adult Social Care,Third Party Payments,738.05,28-Apr-17,R,KELSTONE COURT NURSING HOME,,,,,,,,,,,,,,,,,,,,,,,,,,,,,,,,,,,,,,
1,221001,Older People Placements - East,OP 65&Over NursingCarePlacemts,Physical/ Sensory Support,4360,Nursing Homes External,Adult Social Care,Third Party Payments,738.05,28-Apr-17,R,KELSTONE COURT NURSING HOME,,,,,,,,,,,,,,,,,,,,,,,,,,,,,,,,,,,,,,
1,221001,Older People Placements - East,OP 65&Over NursingCarePlacemts,Physical/ Sensory Support,4360,Nursing Homes External,Adult Social Care,Third Party Payments,738.05,28-Apr-17,R,KELSTONE COURT NURSING HOME,,,,,,,,,,,,,,,,,,,,,,,,,,,,,,,,,,,,,,
1,221001,Older People Placements - East,OP 65&Over NursingCarePlacemts,Physical/ Sensory Support,4360,Nursing Homes External,Adult Social Care,Third Party Payments,738.05,28-Apr-17,R,KELSTONE COURT NURSING HOME,,,,,,,,,,,,,,,,,,,,,,,,,,,,,,,,,,,,,,
1,221001,Older People Placements - East,OP 65&Over NursingCarePlacemts,Physical/ Sensory Support,4360,Nursing Homes External,Adult Social Care,Third Party Payments,738.05,28-Apr-17,R,KELSTONE COURT NURSING HOME,,,,,,,,,,,,,,,,,,,,,,,,,,,,,,,,,,,,,,
1,221001,Older People Placements - East,OP 65&Over NursingCarePlacemts,Physical/ Sensory Support,4360,Nursing Homes External,Adult Social Care,Third Party Payments,738.05,28-Apr-17,R,KELSTONE COURT NURSING HOME,,,,,,,,,,,,,,,,,,,,,,,,,,,,,,,,,,,,,,
1,221001,Older People Placements - East,OP 65&Over NursingCarePlacemts,Physical/ Sensory Support,4360,Nursing Homes External,Adult Social Care,Third Party Payments,738.05,28-Apr-17,R,KELSTONE COURT NURSING HOME,,,,,,,,,,,,,,,,,,,,,,,,,,,,,,,,,,,,,,
1,221001,Older People Placements - East,OP 65&Over NursingCarePlacemts,Physical/ Sensory Support,4360,Nursing Homes External,Adult Social Care,Third Party Payments,738.05,28-Apr-17,R,KELSTONE COURT NURSING HOME,,,,,,,,,,,,,,,,,,,,,,,,,,,,,,,,,,,,,,
1,221001,Older People Placements - East,OP 65&Over NursingCarePlacemts,Physical/ Sensory Support,4360,Nursing Homes External,Adult Social Care,Third Party Payments,739.25,25-Apr-17,R,KELSTONE COURT NURSING HOME,,,,,,,,,,,,,,,,,,,,,,,,,,,,,,,,,,,,,,
1,221001,Older People Placements - East,OP 65&Over NursingCarePlacemts,Physical/ Sensory Support,4360,Nursing Homes External,Adult Social Care,Third Party Payments,739.25,25-Apr-17,R,KELSTONE COURT NURSING HOME,,,,,,,,,,,,,,,,,,,,,,,,,,,,,,,,,,,,,,
1,221001,Older People Placements - East,OP 65&Over NursingCarePlacemts,Physical/ Sensory Support,4360,Nursing Homes External,Adult Social Care,Third Party Payments,739.25,25-Apr-17,R,KELSTONE COURT NURSING HOME,,,,,,,,,,,,,,,,,,,,,,,,,,,,,,,,,,,,,,
1,221001,Older People Placements - East,OP 65&Over NursingCarePlacemts,Physical/ Sensory Support,4360,Nursing Homes External,Adult Social Care,Third Party Payments,739.25,25-Apr-17,R,KELSTONE COURT NURSING HOME,,,,,,,,,,,,,,,,,,,,,,,,,,,,,,,,,,,,,,
1,221001,Older People Placements - East,OP 65&Over NursingCarePlacemts,Physical/ Sensory Support,4360,Nursing Homes External,Adult Social Care,Third Party Payments,739.25,24-Apr-17,R,KELSTONE COURT NURSING HOME,,,,,,,,,,,,,,,,,,,,,,,,,,,,,,,,,,,,,,
1,221001,Older People Placements - East,OP 65&Over NursingCarePlacemts,Physical/ Sensory Support,4360,Nursing Homes External,Adult Social Care,Third Party Payments,739.25,24-Apr-17,R,KELSTONE COURT NURSING HOME,,,,,,,,,,,,,,,,,,,,,,,,,,,,,,,,,,,,,,
1,221001,Older People Placements - East,OP 65&Over NursingCarePlacemts,Physical/ Sensory Support,4360,Nursing Homes External,Adult Social Care,Third Party Payments,805.05,05-Apr-17,R,BUPA CARE HOMES,,,,,,,,,,,,,,,,,,,,,,,,,,,,,,,,,,,,,,
1,221001,Older People Placements - East,OP 65&Over NursingCarePlacemts,Physical/ Sensory Support,4360,Nursing Homes External,Adult Social Care,Third Party Payments,805.05,05-Apr-17,R,BUPA CARE HOMES,,,,,,,,,,,,,,,,,,,,,,,,,,,,,,,,,,,,,,
1,221001,Older People Placements - East,OP 65&Over NursingCarePlacemts,Physical/ Sensory Support,4360,Nursing Homes External,Adult Social Care,Third Party Payments,805.05,16-Apr-17,R,Kings Court Care Centre,,,,,,,,,,,,,,,,,,,,,,,,,,,,,,,,,,,,,,
1,221001,Older People Placements - East,OP 65&Over NursingCarePlacemts,Physical/ Sensory Support,4360,Nursing Homes External,Adult Social Care,Third Party Payments,805.05,16-Apr-17,R,Kings Court Care Centre,,,,,,,,,,,,,,,,,,,,,,,,,,,,,,,,,,,,,,
1,221001,Older People Placements - East,OP 65&Over NursingCarePlacemts,Physical/ Sensory Support,4360,Nursing Homes External,Adult Social Care,Third Party Payments,806.25,05-Apr-17,R,BUPA CARE HOMES,,,,,,,,,,,,,,,,,,,,,,,,,,,,,,,,,,,,,,
1,221001,Older People Placements - East,OP 65&Over NursingCarePlacemts,Physical/ Sensory Support,4360,Nursing Homes External,Adult Social Care,Third Party Payments,806.25,05-Apr-17,R,BUPA CARE HOMES,,,,,,,,,,,,,,,,,,,,,,,,,,,,,,,,,,,,,,
1,221001,Older People Placements - East,OP 65&Over NursingCarePlacemts,Physical/ Sensory Support,4360,Nursing Homes External,Adult Social Care,Third Party Payments,806.25,16-Apr-17,R,Kings Court Care Centre,,,,,,,,,,,,,,,,,,,,,,,,,,,,,,,,,,,,,,
1,221001,Older People Placements - East,OP 65&Over NursingCarePlacemts,Physical/ Sensory Support,4360,Nursing Homes External,Adult Social Care,Third Party Payments,806.25,16-Apr-17,R,Kings Court Care Centre,,,,,,,,,,,,,,,,,,,,,,,,,,,,,,,,,,,,,,
1,221001,Older People Placements - East,OP 65&Over NursingCarePlacemts,Physical/ Sensory Support,4350,Residential Homes External,Adult Social Care,Third Party Payments,815,01-Apr-17,R,WOODLANDS,,,,,,,,,,,,,,,,,,,,,,,,,,,,,,,,,,,,,,
1,221001,Older People Placements - East,OP 65&Over NursingCarePlacemts,Physical/ Sensory Support,4350,Residential Homes External,Adult Social Care,Third Party Payments,815,01-Apr-17,R,WOODLANDS,,,,,,,,,,,,,,,,,,,,,,,,,,,,,,,,,,,,,,
1,221001,Older People Placements - East,OP 65&Over NursingCarePlacemts,Physical/ Sensory Support,4350,Residential Homes External,Adult Social Care,Third Party Payments,815,01-Apr-17,R,WOODLANDS,,,,,,,,,,,,,,,,,,,,,,,,,,,,,,,,,,,,,,
1,221001,Older People Placements - East,OP 65&Over NursingCarePlacemts,Physical/ Sensory Support,4350,Residential Homes External,Adult Social Care,Third Party Payments,815,01-Apr-17,R,CARTER HOUSE,,,,,,,,,,,,,,,,,,,,,,,,,,,,,,,,,,,,,,
1,221001,Older People Placements - East,OP 65&Over NursingCarePlacemts,Physical/ Sensory Support,4350,Residential Homes External,Adult Social Care,Third Party Payments,815,01-Apr-17,R,CARTER HOUSE,,,,,,,,,,,,,,,,,,,,,,,,,,,,,,,,,,,,,,
1,221001,Older People Placements - East,OP 65&Over NursingCarePlacemts,Physical/ Sensory Support,4350,Residential Homes External,Adult Social Care,Third Party Payments,815,01-Apr-17,R,CARTER HOUSE,,,,,,,,,,,,,,,,,,,,,,,,,,,,,,,,,,,,,,
1,221001,Older People Placements - East,OP 65&Over NursingCarePlacemts,Physical/ Sensory Support,4350,Residential Homes External,Adult Social Care,Third Party Payments,815,01-Apr-17,R,CARTER HOUSE,,,,,,,,,,,,,,,,,,,,,,,,,,,,,,,,,,,,,,
1,221001,Older People Placements - East,OP 65&Over NursingCarePlacemts,Physical/ Sensory Support,4350,Residential Homes External,Adult Social Care,Third Party Payments,815,01-Apr-17,R,WOODLANDS,,,,,,,,,,,,,,,,,,,,,,,,,,,,,,,,,,,,,,
1,221001,Older People Placements - East,OP 65&Over NursingCarePlacemts,Physical/ Sensory Support,4350,Residential Homes External,Adult Social Care,Third Party Payments,815,01-Apr-17,R,WOODLANDS,,,,,,,,,,,,,,,,,,,,,,,,,,,,,,,,,,,,,,
1,221001,Older People Placements - East,OP 65&Over NursingCarePlacemts,Physical/ Sensory Support,4350,Residential Homes External,Adult Social Care,Third Party Payments,815,01-Apr-17,R,WOODLANDS,,,,,,,,,,,,,,,,,,,,,,,,,,,,,,,,,,,,,,
1,221001,Older People Placements - East,OP 65&Over NursingCarePlacemts,Physical/ Sensory Support,4350,Residential Homes External,Adult Social Care,Third Party Payments,815,01-Apr-17,R,WOODLANDS,,,,,,,,,,,,,,,,,,,,,,,,,,,,,,,,,,,,,,
1,221001,Older People Placements - East,OP 65&Over NursingCarePlacemts,Physical/ Sensory Support,4350,Residential Homes External,Adult Social Care,Third Party Payments,815,01-Apr-17,R,WOODLANDS,,,,,,,,,,,,,,,,,,,,,,,,,,,,,,,,,,,,,,
1,221001,Older People Placements - East,OP 65&Over NursingCarePlacemts,Physical/ Sensory Support,4350,Residential Homes External,Adult Social Care,Third Party Payments,815,01-Apr-17,R,WOODLANDS,,,,,,,,,,,,,,,,,,,,,,,,,,,,,,,,,,,,,,
1,221001,Older People Placements - East,OP 65&Over NursingCarePlacemts,Physical/ Sensory Support,4350,Residential Homes External,Adult Social Care,Third Party Payments,815,01-Apr-17,R,WOODLANDS,,,,,,,,,,,,,,,,,,,,,,,,,,,,,,,,,,,,,,
1,221001,Older People Placements - East,OP 65&Over NursingCarePlacemts,Physical/ Sensory Support,4350,Residential Homes External,Adult Social Care,Third Party Payments,815,01-Apr-17,R,WOODLANDS,,,,,,,,,,,,,,,,,,,,,,,,,,,,,,,,,,,,,,
1,221001,Older People Placements - East,OP 65&Over NursingCarePlacemts,Physical/ Sensory Support,4350,Residential Homes External,Adult Social Care,Third Party Payments,815,01-Apr-17,R,WOODLANDS,,,,,,,,,,,,,,,,,,,,,,,,,,,,,,,,,,,,,,
1,221001,Older People Placements - East,OP 65&Over NursingCarePlacemts,Physical/ Sensory Support,4350,Residential Homes External,Adult Social Care,Third Party Payments,815,01-Apr-17,R,WOODLANDS,,,,,,,,,,,,,,,,,,,,,,,,,,,,,,,,,,,,,,
1,221001,Older People Placements - East,OP 65&Over NursingCarePlacemts,Physical/ Sensory Support,4350,Residential Homes External,Adult Social Care,Third Party Payments,815,01-Apr-17,R,WOODLANDS,,,,,,,,,,,,,,,,,,,,,,,,,,,,,,,,,,,,,,
1,221001,Older People Placements - East,OP 65&Over NursingCarePlacemts,Physical/ Sensory Support,4350,Residential Homes External,Adult Social Care,Third Party Payments,815,01-Apr-17,R,WOODLANDS,,,,,,,,,,,,,,,,,,,,,,,,,,,,,,,,,,,,,,
1,221001,Older People Placements - East,OP 65&Over NursingCarePlacemts,Physical/ Sensory Support,4350,Residential Homes External,Adult Social Care,Third Party Payments,815,01-Apr-17,R,WOODLANDS,,,,,,,,,,,,,,,,,,,,,,,,,,,,,,,,,,,,,,
1,221001,Older People Placements - East,OP 65&Over NursingCarePlacemts,Physical/ Sensory Support,4350,Residential Homes External,Adult Social Care,Third Party Payments,815,01-Apr-17,R,WOODLANDS,,,,,,,,,,,,,,,,,,,,,,,,,,,,,,,,,,,,,,
1,221001,Older People Placements - East,OP 65&Over NursingCarePlacemts,Physical/ Sensory Support,4350,Residential Homes External,Adult Social Care,Third Party Payments,815,01-Apr-17,R,WOODLANDS,,,,,,,,,,,,,,,,,,,,,,,,,,,,,,,,,,,,,,
1,221001,Older People Placements - East,OP 65&Over NursingCarePlacemts,Physical/ Sensory Support,4350,Residential Homes External,Adult Social Care,Third Party Payments,815,01-Apr-17,R,WOODLANDS,,,,,,,,,,,,,,,,,,,,,,,,,,,,,,,,,,,,,,
1,221001,Older People Placements - East,OP 65&Over NursingCarePlacemts,Physical/ Sensory Support,4350,Residential Homes External,Adult Social Care,Third Party Payments,815,01-Apr-17,R,WOODLANDS,,,,,,,,,,,,,,,,,,,,,,,,,,,,,,,,,,,,,,
1,221001,Older People Placements - East,OP 65&Over NursingCarePlacemts,Physical/ Sensory Support,4350,Residential Homes External,Adult Social Care,Third Party Payments,815,01-Apr-17,R,WOODLANDS,,,,,,,,,,,,,,,,,,,,,,,,,,,,,,,,,,,,,,
1,221001,Older People Placements - East,OP 65&Over NursingCarePlacemts,Physical/ Sensory Support,4350,Residential Homes External,Adult Social Care,Third Party Payments,815,01-Apr-17,R,WOODLANDS,,,,,,,,,,,,,,,,,,,,,,,,,,,,,,,,,,,,,,
1,221001,Older People Placements - East,OP 65&Over NursingCarePlacemts,Physical/ Sensory Support,4350,Residential Homes External,Adult Social Care,Third Party Payments,815,01-Apr-17,R,WOODLANDS,,,,,,,,,,,,,,,,,,,,,,,,,,,,,,,,,,,,,,
1,221001,Older People Placements - East,OP 65&Over NursingCarePlacemts,Physical/ Sensory Support,4350,Residential Homes External,Adult Social Care,Third Party Payments,815,01-Apr-17,R,WOODLANDS,,,,,,,,,,,,,,,,,,,,,,,,,,,,,,,,,,,,,,
1,221001,Older People Placements - East,OP 65&Over NursingCarePlacemts,Physical/ Sensory Support,4350,Residential Homes External,Adult Social Care,Third Party Payments,815,01-Apr-17,R,WOODLANDS,,,,,,,,,,,,,,,,,,,,,,,,,,,,,,,,,,,,,,
1,221001,Older People Placements - East,OP 65&Over NursingCarePlacemts,Physical/ Sensory Support,4350,Residential Homes External,Adult Social Care,Third Party Payments,815,01-Apr-17,R,WOODLANDS,,,,,,,,,,,,,,,,,,,,,,,,,,,,,,,,,,,,,,
1,221001,Older People Placements - East,OP 65&Over NursingCarePlacemts,Physical/ Sensory Support,4350,Residential Homes External,Adult Social Care,Third Party Payments,815,01-Apr-17,R,WOODLANDS,,,,,,,,,,,,,,,,,,,,,,,,,,,,,,,,,,,,,,
1,221001,Older People Placements - East,OP 65&Over NursingCarePlacemts,Physical/ Sensory Support,4350,Residential Homes External,Adult Social Care,Third Party Payments,815,01-Apr-17,R,WOODLANDS,,,,,,,,,,,,,,,,,,,,,,,,,,,,,,,,,,,,,,
1,221001,Older People Placements - East,OP 65&Over NursingCarePlacemts,Physical/ Sensory Support,4350,Residential Homes External,Adult Social Care,Third Party Payments,815,01-Apr-17,R,WOODLANDS,,,,,,,,,,,,,,,,,,,,,,,,,,,,,,,,,,,,,,
1,221001,Older People Placements - East,OP 65&Over NursingCarePlacemts,Physical/ Sensory Support,4350,Residential Homes External,Adult Social Care,Third Party Payments,815,01-Apr-17,R,WOODLANDS,,,,,,,,,,,,,,,,,,,,,,,,,,,,,,,,,,,,,,
1,221001,Older People Placements - East,OP 65&Over NursingCarePlacemts,Physical/ Sensory Support,4350,Residential Homes External,Adult Social Care,Third Party Payments,815,01-Apr-17,R,WOODLANDS,,,,,,,,,,,,,,,,,,,,,,,,,,,,,,,,,,,,,,
1,221001,Older People Placements - East,OP 65&Over NursingCarePlacemts,Physical/ Sensory Support,4350,Residential Homes External,Adult Social Care,Third Party Payments,815,01-Apr-17,R,WOODLANDS,,,,,,,,,,,,,,,,,,,,,,,,,,,,,,,,,,,,,,
1,221001,Older People Placements - East,OP 65&Over NursingCarePlacemts,Physical/ Sensory Support,4350,Residential Homes External,Adult Social Care,Third Party Payments,815,01-Apr-17,R,WOODLANDS,,,,,,,,,,,,,,,,,,,,,,,,,,,,,,,,,,,,,,
1,221001,Older People Placements - East,OP 65&Over NursingCarePlacemts,Physical/ Sensory Support,4350,Residential Homes External,Adult Social Care,Third Party Payments,815,01-Apr-17,R,WOODLANDS,,,,,,,,,,,,,,,,,,,,,,,,,,,,,,,,,,,,,,
1,221001,Older People Placements - East,OP 65&Over NursingCarePlacemts,Physical/ Sensory Support,4350,Residential Homes External,Adult Social Care,Third Party Payments,815,01-Apr-17,R,WOODLANDS,,,,,,,,,,,,,,,,,,,,,,,,,,,,,,,,,,,,,,
1,221001,Older People Placements - East,OP 65&Over NursingCarePlacemts,Physical/ Sensory Support,4350,Residential Homes External,Adult Social Care,Third Party Payments,815,01-Apr-17,R,WOODLANDS,,,,,,,,,,,,,,,,,,,,,,,,,,,,,,,,,,,,,,
1,221001,Older People Placements - East,OP 65&Over NursingCarePlacemts,Physical/ Sensory Support,4350,Residential Homes External,Adult Social Care,Third Party Payments,815,01-Apr-17,R,LINK HOUSE,,,,,,,,,,,,,,,,,,,,,,,,,,,,,,,,,,,,,,
1,221001,Older People Placements - East,OP 65&Over NursingCarePlacemts,Physical/ Sensory Support,4350,Residential Homes External,Adult Social Care,Third Party Payments,815,01-Apr-17,R,LINK HOUSE,,,,,,,,,,,,,,,,,,,,,,,,,,,,,,,,,,,,,,
1,221001,Older People Placements - East,OP 65&Over NursingCarePlacemts,Physical/ Sensory Support,4350,Residential Homes External,Adult Social Care,Third Party Payments,815,01-Apr-17,R,LINK HOUSE,,,,,,,,,,,,,,,,,,,,,,,,,,,,,,,,,,,,,,
1,221001,Older People Placements - East,OP 65&Over NursingCarePlacemts,Physical/ Sensory Support,4350,Residential Homes External,Adult Social Care,Third Party Payments,815,01-Apr-17,R,LINK HOUSE,,,,,,,,,,,,,,,,,,,,,,,,,,,,,,,,,,,,,,
1,221001,Older People Placements - East,OP 65&Over NursingCarePlacemts,Physical/ Sensory Support,4350,Residential Homes External,Adult Social Care,Third Party Payments,815,01-Apr-17,R,LINK HOUSE,,,,,,,,,,,,,,,,,,,,,,,,,,,,,,,,,,,,,,
1,221001,Older People Placements - East,OP 65&Over NursingCarePlacemts,Physical/ Sensory Support,4350,Residential Homes External,Adult Social Care,Third Party Payments,815,01-Apr-17,R,LINK HOUSE,,,,,,,,,,,,,,,,,,,,,,,,,,,,,,,,,,,,,,
1,221001,Older People Placements - East,OP 65&Over NursingCarePlacemts,Physical/ Sensory Support,4350,Residential Homes External,Adult Social Care,Third Party Payments,815,01-Apr-17,R,LINK HOUSE,,,,,,,,,,,,,,,,,,,,,,,,,,,,,,,,,,,,,,
1,221001,Older People Placements - East,OP 65&Over NursingCarePlacemts,Physical/ Sensory Support,4350,Residential Homes External,Adult Social Care,Third Party Payments,815,01-Apr-17,R,LINK HOUSE,,,,,,,,,,,,,,,,,,,,,,,,,,,,,,,,,,,,,,
1,221001,Older People Placements - East,OP 65&Over NursingCarePlacemts,Physical/ Sensory Support,4360,Nursing Homes External,Adult Social Care,Third Party Payments,842.01,01-Apr-17,R,JESMUND CARE HOMES LTD,,,,,,,,,,,,,,,,,,,,,,,,,,,,,,,,,,,,,,
1,221001,Older People Placements - East,OP 65&Over NursingCarePlacemts,Physical/ Sensory Support,4360,Nursing Homes External,Adult Social Care,Third Party Payments,842.01,01-Apr-17,R,JESMUND CARE HOMES LTD,,,,,,,,,,,,,,,,,,,,,,,,,,,,,,,,,,,,,,
1,221001,Older People Placements - East,OP 65&Over NursingCarePlacemts,Physical/ Sensory Support,4360,Nursing Homes External,Adult Social Care,Third Party Payments,842.01,01-Apr-17,R,JESMUND CARE HOMES LTD,,,,,,,,,,,,,,,,,,,,,,,,,,,,,,,,,,,,,,
1,221001,Older People Placements - East,OP 65&Over NursingCarePlacemts,Physical/ Sensory Support,4360,Nursing Homes External,Adult Social Care,Third Party Payments,842.01,01-Apr-17,R,JESMUND CARE HOMES LTD,,,,,,,,,,,,,,,,,,,,,,,,,,,,,,,,,,,,,,
1,221001,Older People Placements - East,OP 65&Over NursingCarePlacemts,Physical/ Sensory Support,4360,Nursing Homes External,Adult Social Care,Third Party Payments,842.01,01-Apr-17,R,JESMUND CARE HOMES LTD,,,,,,,,,,,,,,,,,,,,,,,,,,,,,,,,,,,,,,
1,221001,Older People Placements - East,OP 65&Over NursingCarePlacemts,Physical/ Sensory Support,4360,Nursing Homes External,Adult Social Care,Third Party Payments,842.01,01-Apr-17,R,JESMUND CARE HOMES LTD,,,,,,,,,,,,,,,,,,,,,,,,,,,,,,,,,,,,,,
1,221001,Older People Placements - East,OP 65&Over NursingCarePlacemts,Physical/ Sensory Support,4360,Nursing Homes External,Adult Social Care,Third Party Payments,842.01,01-Apr-17,R,JESMUND CARE HOMES LTD,,,,,,,,,,,,,,,,,,,,,,,,,,,,,,,,,,,,,,
1,221001,Older People Placements - East,OP 65&Over NursingCarePlacemts,Physical/ Sensory Support,4360,Nursing Homes External,Adult Social Care,Third Party Payments,842.01,01-Apr-17,R,JESMUND CARE HOMES LTD,,,,,,,,,,,,,,,,,,,,,,,,,,,,,,,,,,,,,,
1,221001,Older People Placements - East,OP 65&Over NursingCarePlacemts,Physical/ Sensory Support,4360,Nursing Homes External,Adult Social Care,Third Party Payments,842.01,01-Apr-17,R,JESMUND CARE HOMES LTD,,,,,,,,,,,,,,,,,,,,,,,,,,,,,,,,,,,,,,
1,221001,Older People Placements - East,OP 65&Over NursingCarePlacemts,Physical/ Sensory Support,4360,Nursing Homes External,Adult Social Care,Third Party Payments,842.01,01-Apr-17,R,JESMUND CARE HOMES LTD,,,,,,,,,,,,,,,,,,,,,,,,,,,,,,,,,,,,,,
1,221001,Older People Placements - East,OP 65&Over NursingCarePlacemts,Physical/ Sensory Support,4360,Nursing Homes External,Adult Social Care,Third Party Payments,842.01,01-Apr-17,R,JESMUND CARE HOMES LTD,,,,,,,,,,,,,,,,,,,,,,,,,,,,,,,,,,,,,,
1,221001,Older People Placements - East,OP 65&Over NursingCarePlacemts,Physical/ Sensory Support,4360,Nursing Homes External,Adult Social Care,Third Party Payments,842.01,01-Apr-17,R,JESMUND CARE HOMES LTD,,,,,,,,,,,,,,,,,,,,,,,,,,,,,,,,,,,,,,
1,221001,Older People Placements - East,OP 65&Over NursingCarePlacemts,Physical/ Sensory Support,4360,Nursing Homes External,Adult Social Care,Third Party Payments,842.01,01-Apr-17,R,JESMUND CARE HOMES LTD,,,,,,,,,,,,,,,,,,,,,,,,,,,,,,,,,,,,,,
1,221001,Older People Placements - East,OP 65&Over NursingCarePlacemts,Physical/ Sensory Support,4360,Nursing Homes External,Adult Social Care,Third Party Payments,842.01,01-Apr-17,R,JESMUND CARE HOMES LTD,,,,,,,,,,,,,,,,,,,,,,,,,,,,,,,,,,,,,,
1,221001,Older People Placements - East,OP 65&Over NursingCarePlacemts,Physical/ Sensory Support,4360,Nursing Homes External,Adult Social Care,Third Party Payments,842.01,01-Apr-17,R,JESMUND CARE HOMES LTD,,,,,,,,,,,,,,,,,,,,,,,,,,,,,,,,,,,,,,
1,221001,Older People Placements - East,OP 65&Over NursingCarePlacemts,Physical/ Sensory Support,4360,Nursing Homes External,Adult Social Care,Third Party Payments,842.01,01-Apr-17,R,JESMUND CARE HOMES LTD,,,,,,,,,,,,,,,,,,,,,,,,,,,,,,,,,,,,,,
1,221001,Older People Placements - East,OP 65&Over NursingCarePlacemts,Physical/ Sensory Support,4360,Nursing Homes External,Adult Social Care,Third Party Payments,842.01,01-Apr-17,R,JESMUND CARE HOMES LTD,,,,,,,,,,,,,,,,,,,,,,,,,,,,,,,,,,,,,,
1,221001,Older People Placements - East,OP 65&Over NursingCarePlacemts,Physical/ Sensory Support,4360,Nursing Homes External,Adult Social Care,Third Party Payments,842.01,01-Apr-17,R,JESMUND CARE HOMES LTD,,,,,,,,,,,,,,,,,,,,,,,,,,,,,,,,,,,,,,
1,221001,Older People Placements - East,OP 65&Over NursingCarePlacemts,Physical/ Sensory Support,4360,Nursing Homes External,Adult Social Care,Third Party Payments,842.01,01-Apr-17,R,JESMUND CARE HOMES LTD,,,,,,,,,,,,,,,,,,,,,,,,,,,,,,,,,,,,,,
1,221001,Older People Placements - East,OP 65&Over NursingCarePlacemts,Physical/ Sensory Support,4360,Nursing Homes External,Adult Social Care,Third Party Payments,842.01,01-Apr-17,R,JESMUND CARE HOMES LTD,,,,,,,,,,,,,,,,,,,,,,,,,,,,,,,,,,,,,,
1,221001,Older People Placements - East,OP 65&Over NursingCarePlacemts,Physical/ Sensory Support,4360,Nursing Homes External,Adult Social Care,Third Party Payments,842.01,01-Apr-17,R,JESMUND CARE HOMES LTD,,,,,,,,,,,,,,,,,,,,,,,,,,,,,,,,,,,,,,
1,221001,Older People Placements - East,OP 65&Over NursingCarePlacemts,Physical/ Sensory Support,4360,Nursing Homes External,Adult Social Care,Third Party Payments,842.01,01-Apr-17,R,JESMUND CARE HOMES LTD,,,,,,,,,,,,,,,,,,,,,,,,,,,,,,,,,,,,,,
1,221001,Older People Placements - East,OP 65&Over NursingCarePlacemts,Physical/ Sensory Support,4360,Nursing Homes External,Adult Social Care,Third Party Payments,842.01,01-Apr-17,R,JESMUND CARE HOMES LTD,,,,,,,,,,,,,,,,,,,,,,,,,,,,,,,,,,,,,,
1,221001,Older People Placements - East,OP 65&Over NursingCarePlacemts,Physical/ Sensory Support,4360,Nursing Homes External,Adult Social Care,Third Party Payments,842.01,01-Apr-17,R,JESMUND CARE HOMES LTD,,,,,,,,,,,,,,,,,,,,,,,,,,,,,,,,,,,,,,
1,221001,Older People Placements - East,OP 65&Over NursingCarePlacemts,Physical/ Sensory Support,4360,Nursing Homes External,Adult Social Care,Third Party Payments,843.8,01-Apr-17,R,LLOYD PARK NURSING HOME,,,,,,,,,,,,,,,,,,,,,,,,,,,,,,,,,,,,,,
1,221001,Older People Placements - East,OP 65&Over NursingCarePlacemts,Physical/ Sensory Support,4360,Nursing Homes External,Adult Social Care,Third Party Payments,845,01-Apr-17,R,LLOYD PARK NURSING HOME,,,,,,,,,,,,,,,,,,,,,,,,,,,,,,,,,,,,,,
1,221001,Older People Placements - East,OP 65&Over NursingCarePlacemts,Physical/ Sensory Support,4360,Nursing Homes External,Adult Social Care,Third Party Payments,845,01-Apr-17,R,LLOYD PARK NURSING HOME,,,,,,,,,,,,,,,,,,,,,,,,,,,,,,,,,,,,,,
1,221001,Older People Placements - East,OP 65&Over NursingCarePlacemts,Physical/ Sensory Support,4360,Nursing Homes External,Adult Social Care,Third Party Payments,845,01-Apr-17,R,LLOYD PARK NURSING HOME,,,,,,,,,,,,,,,,,,,,,,,,,,,,,,,,,,,,,,
1,221001,Older People Placements - East,OP 65&Over NursingCarePlacemts,Physical/ Sensory Support,4360,Nursing Homes External,Adult Social Care,Third Party Payments,848.8,05-Apr-17,R,BUPA CARE HOMES,,,,,,,,,,,,,,,,,,,,,,,,,,,,,,,,,,,,,,
1,221001,Older People Placements - East,OP 65&Over NursingCarePlacemts,Physical/ Sensory Support,4360,Nursing Homes External,Adult Social Care,Third Party Payments,848.8,05-Apr-17,R,BUPA CARE HOMES,,,,,,,,,,,,,,,,,,,,,,,,,,,,,,,,,,,,,,
1,221001,Older People Placements - East,OP 65&Over NursingCarePlacemts,Physical/ Sensory Support,4360,Nursing Homes External,Adult Social Care,Third Party Payments,848.8,05-Apr-17,R,BUPA CARE HOMES,,,,,,,,,,,,,,,,,,,,,,,,,,,,,,,,,,,,,,
1,221001,Older People Placements - East,OP 65&Over NursingCarePlacemts,Physical/ Sensory Support,4360,Nursing Homes External,Adult Social Care,Third Party Payments,848.8,05-Apr-17,R,BUPA CARE HOMES,,,,,,,,,,,,,,,,,,,,,,,,,,,,,,,,,,,,,,
1,221001,Older People Placements - East,OP 65&Over NursingCarePlacemts,Physical/ Sensory Support,4360,Nursing Homes External,Adult Social Care,Third Party Payments,848.8,05-Apr-17,R,BUPA CARE HOMES,,,,,,,,,,,,,,,,,,,,,,,,,,,,,,,,,,,,,,
1,221001,Older People Placements - East,OP 65&Over NursingCarePlacemts,Physical/ Sensory Support,4360,Nursing Homes External,Adult Social Care,Third Party Payments,848.8,05-Apr-17,R,BUPA CARE HOMES,,,,,,,,,,,,,,,,,,,,,,,,,,,,,,,,,,,,,,
1,221001,Older People Placements - East,OP 65&Over NursingCarePlacemts,Physical/ Sensory Support,4360,Nursing Homes External,Adult Social Care,Third Party Payments,848.8,05-Apr-17,R,BUPA CARE HOMES,,,,,,,,,,,,,,,,,,,,,,,,,,,,,,,,,,,,,,
1,221001,Older People Placements - East,OP 65&Over NursingCarePlacemts,Physical/ Sensory Support,4360,Nursing Homes External,Adult Social Care,Third Party Payments,848.8,05-Apr-17,R,BUPA CARE HOMES,,,,,,,,,,,,,,,,,,,,,,,,,,,,,,,,,,,,,,
1,221001,Older People Placements - East,OP 65&Over NursingCarePlacemts,Physical/ Sensory Support,4360,Nursing Homes External,Adult Social Care,Third Party Payments,848.8,05-Apr-17,R,BUPA CARE HOMES,,,,,,,,,,,,,,,,,,,,,,,,,,,,,,,,,,,,,,
1,221001,Older People Placements - East,OP 65&Over NursingCarePlacemts,Physical/ Sensory Support,4360,Nursing Homes External,Adult Social Care,Third Party Payments,848.8,05-Apr-17,R,BUPA CARE HOMES,,,,,,,,,,,,,,,,,,,,,,,,,,,,,,,,,,,,,,
1,221001,Older People Placements - East,OP 65&Over NursingCarePlacemts,Physical/ Sensory Support,4360,Nursing Homes External,Adult Social Care,Third Party Payments,848.8,05-Apr-17,R,BUPA CARE HOMES,,,,,,,,,,,,,,,,,,,,,,,,,,,,,,,,,,,,,,
1,221001,Older People Placements - East,OP 65&Over NursingCarePlacemts,Physical/ Sensory Support,4360,Nursing Homes External,Adult Social Care,Third Party Payments,848.8,05-Apr-17,R,BUPA CARE HOMES,,,,,,,,,,,,,,,,,,,,,,,,,,,,,,,,,,,,,,
1,221001,Older People Placements - East,OP 65&Over NursingCarePlacemts,Physical/ Sensory Support,4360,Nursing Homes External,Adult Social Care,Third Party Payments,850,05-Apr-17,R,BUPA CARE HOMES,,,,,,,,,,,,,,,,,,,,,,,,,,,,,,,,,,,,,,
1,221001,Older People Placements - East,OP 65&Over NursingCarePlacemts,Physical/ Sensory Support,4360,Nursing Homes External,Adult Social Care,Third Party Payments,850,05-Apr-17,R,BUPA CARE HOMES,,,,,,,,,,,,,,,,,,,,,,,,,,,,,,,,,,,,,,
1,221001,Older People Placements - East,OP 65&Over NursingCarePlacemts,Physical/ Sensory Support,4360,Nursing Homes External,Adult Social Care,Third Party Payments,850,05-Apr-17,R,BUPA CARE HOMES,,,,,,,,,,,,,,,,,,,,,,,,,,,,,,,,,,,,,,
1,221001,Older People Placements - East,OP 65&Over NursingCarePlacemts,Physical/ Sensory Support,4360,Nursing Homes External,Adult Social Care,Third Party Payments,850,05-Apr-17,R,BUPA CARE HOMES,,,,,,,,,,,,,,,,,,,,,,,,,,,,,,,,,,,,,,
1,221001,Older People Placements - East,OP 65&Over NursingCarePlacemts,Physical/ Sensory Support,4360,Nursing Homes External,Adult Social Care,Third Party Payments,850,05-Apr-17,R,BUPA CARE HOMES,,,,,,,,,,,,,,,,,,,,,,,,,,,,,,,,,,,,,,
1,221001,Older People Placements - East,OP 65&Over NursingCarePlacemts,Physical/ Sensory Support,4360,Nursing Homes External,Adult Social Care,Third Party Payments,850,05-Apr-17,R,BUPA CARE HOMES,,,,,,,,,,,,,,,,,,,,,,,,,,,,,,,,,,,,,,
1,221001,Older People Placements - East,OP 65&Over NursingCarePlacemts,Physical/ Sensory Support,4360,Nursing Homes External,Adult Social Care,Third Party Payments,850,05-Apr-17,R,BUPA CARE HOMES,,,,,,,,,,,,,,,,,,,,,,,,,,,,,,,,,,,,,,
1,221001,Older People Placements - East,OP 65&Over NursingCarePlacemts,Physical/ Sensory Support,4360,Nursing Homes External,Adult Social Care,Third Party Payments,850,05-Apr-17,R,BUPA CARE HOMES,,,,,,,,,,,,,,,,,,,,,,,,,,,,,,,,,,,,,,
1,221001,Older People Placements - East,OP 65&Over NursingCarePlacemts,Physical/ Sensory Support,4360,Nursing Homes External,Adult Social Care,Third Party Payments,850,05-Apr-17,R,BUPA CARE HOMES,,,,,,,,,,,,,,,,,,,,,,,,,,,,,,,,,,,,,,
1,221001,Older People Placements - East,OP 65&Over NursingCarePlacemts,Physical/ Sensory Support,4360,Nursing Homes External,Adult Social Care,Third Party Payments,850,05-Apr-17,R,BUPA CARE HOMES,,,,,,,,,,,,,,,,,,,,,,,,,,,,,,,,,,,,,,
1,221001,Older People Placements - East,OP 65&Over NursingCarePlacemts,Physical/ Sensory Support,4360,Nursing Homes External,Adult Social Care,Third Party Payments,850,05-Apr-17,R,BUPA CARE HOMES,,,,,,,,,,,,,,,,,,,,,,,,,,,,,,,,,,,,,,
1,221001,Older People Placements - East,OP 65&Over NursingCarePlacemts,Physical/ Sensory Support,4360,Nursing Homes External,Adult Social Care,Third Party Payments,850,05-Apr-17,R,BUPA CARE HOMES,,,,,,,,,,,,,,,,,,,,,,,,,,,,,,,,,,,,,,
1,221001,Older People Placements - East,OP 65&Over NursingCarePlacemts,Physical/ Sensory Support,4360,Nursing Homes External,Adult Social Care,Third Party Payments,868.8,05-Apr-17,R,BUPA CARE HOMES,,,,,,,,,,,,,,,,,,,,,,,,,,,,,,,,,,,,,,
1,221001,Older People Placements - East,OP 65&Over NursingCarePlacemts,Physical/ Sensory Support,4360,Nursing Homes External,Adult Social Care,Third Party Payments,868.8,05-Apr-17,R,BUPA CARE HOMES,,,,,,,,,,,,,,,,,,,,,,,,,,,,,,,,,,,,,,
1,221001,Older People Placements - East,OP 65&Over NursingCarePlacemts,Physical/ Sensory Support,4360,Nursing Homes External,Adult Social Care,Third Party Payments,868.8,05-Apr-17,R,BUPA CARE HOMES,,,,,,,,,,,,,,,,,,,,,,,,,,,,,,,,,,,,,,
1,221001,Older People Placements - East,OP 65&Over NursingCarePlacemts,Physical/ Sensory Support,4360,Nursing Homes External,Adult Social Care,Third Party Payments,868.8,05-Apr-17,R,BUPA CARE HOMES,,,,,,,,,,,,,,,,,,,,,,,,,,,,,,,,,,,,,,
1,221001,Older People Placements - East,OP 65&Over NursingCarePlacemts,Physical/ Sensory Support,4360,Nursing Homes External,Adult Social Care,Third Party Payments,868.8,05-Apr-17,R,BUPA CARE HOMES,,,,,,,,,,,,,,,,,,,,,,,,,,,,,,,,,,,,,,
1,221001,Older People Placements - East,OP 65&Over NursingCarePlacemts,Physical/ Sensory Support,4360,Nursing Homes External,Adult Social Care,Third Party Payments,868.8,05-Apr-17,R,BUPA CARE HOMES,,,,,,,,,,,,,,,,,,,,,,,,,,,,,,,,,,,,,,
1,221001,Older People Placements - East,OP 65&Over NursingCarePlacemts,Physical/ Sensory Support,4360,Nursing Homes External,Adult Social Care,Third Party Payments,868.8,05-Apr-17,R,BUPA CARE HOMES,,,,,,,,,,,,,,,,,,,,,,,,,,,,,,,,,,,,,,
1,221001,Older People Placements - East,OP 65&Over NursingCarePlacemts,Physical/ Sensory Support,4360,Nursing Homes External,Adult Social Care,Third Party Payments,868.8,05-Apr-17,R,BUPA CARE HOMES,,,,,,,,,,,,,,,,,,,,,,,,,,,,,,,,,,,,,,
1,221001,Older People Placements - East,OP 65&Over NursingCarePlacemts,Physical/ Sensory Support,4360,Nursing Homes External,Adult Social Care,Third Party Payments,868.8,01-Apr-17,R,BUPA CARE HOMES,,,,,,,,,,,,,,,,,,,,,,,,,,,,,,,,,,,,,,
1,221001,Older People Placements - East,OP 65&Over NursingCarePlacemts,Physical/ Sensory Support,4360,Nursing Homes External,Adult Social Care,Third Party Payments,868.8,01-Apr-17,R,BUPA CARE HOMES,,,,,,,,,,,,,,,,,,,,,,,,,,,,,,,,,,,,,,
1,221001,Older People Placements - East,OP 65&Over NursingCarePlacemts,Physical/ Sensory Support,4360,Nursing Homes External,Adult Social Care,Third Party Payments,868.8,05-Apr-17,R,BUPA CARE HOMES,,,,,,,,,,,,,,,,,,,,,,,,,,,,,,,,,,,,,,
1,221001,Older People Placements - East,OP 65&Over NursingCarePlacemts,Physical/ Sensory Support,4360,Nursing Homes External,Adult Social Care,Third Party Payments,868.8,05-Apr-17,R,BUPA CARE HOMES,,,,,,,,,,,,,,,,,,,,,,,,,,,,,,,,,,,,,,
1,221001,Older People Placements - East,OP 65&Over NursingCarePlacemts,Physical/ Sensory Support,4360,Nursing Homes External,Adult Social Care,Third Party Payments,868.8,05-Apr-17,R,BUPA CARE HOMES,,,,,,,,,,,,,,,,,,,,,,,,,,,,,,,,,,,,,,
1,221001,Older People Placements - East,OP 65&Over NursingCarePlacemts,Physical/ Sensory Support,4360,Nursing Homes External,Adult Social Care,Third Party Payments,868.8,05-Apr-17,R,BUPA CARE HOMES,,,,,,,,,,,,,,,,,,,,,,,,,,,,,,,,,,,,,,
1,221001,Older People Placements - East,OP 65&Over NursingCarePlacemts,Physical/ Sensory Support,4360,Nursing Homes External,Adult Social Care,Third Party Payments,870,05-Apr-17,R,BUPA CARE HOMES,,,,,,,,,,,,,,,,,,,,,,,,,,,,,,,,,,,,,,
1,221001,Older People Placements - East,OP 65&Over NursingCarePlacemts,Physical/ Sensory Support,4360,Nursing Homes External,Adult Social Care,Third Party Payments,870,05-Apr-17,R,BUPA CARE HOMES,,,,,,,,,,,,,,,,,,,,,,,,,,,,,,,,,,,,,,
1,221001,Older People Placements - East,OP 65&Over NursingCarePlacemts,Physical/ Sensory Support,4360,Nursing Homes External,Adult Social Care,Third Party Payments,870,05-Apr-17,R,BUPA CARE HOMES,,,,,,,,,,,,,,,,,,,,,,,,,,,,,,,,,,,,,,
1,221001,Older People Placements - East,OP 65&Over NursingCarePlacemts,Physical/ Sensory Support,4360,Nursing Homes External,Adult Social Care,Third Party Payments,870,05-Apr-17,R,BUPA CARE HOMES,,,,,,,,,,,,,,,,,,,,,,,,,,,,,,,,,,,,,,
1,221001,Older People Placements - East,OP 65&Over NursingCarePlacemts,Physical/ Sensory Support,4360,Nursing Homes External,Adult Social Care,Third Party Payments,870,05-Apr-17,R,BUPA CARE HOMES,,,,,,,,,,,,,,,,,,,,,,,,,,,,,,,,,,,,,,
1,221001,Older People Placements - East,OP 65&Over NursingCarePlacemts,Physical/ Sensory Support,4360,Nursing Homes External,Adult Social Care,Third Party Payments,870,05-Apr-17,R,BUPA CARE HOMES,,,,,,,,,,,,,,,,,,,,,,,,,,,,,,,,,,,,,,
1,221001,Older People Placements - East,OP 65&Over NursingCarePlacemts,Physical/ Sensory Support,4360,Nursing Homes External,Adult Social Care,Third Party Payments,870,05-Apr-17,R,BUPA CARE HOMES,,,,,,,,,,,,,,,,,,,,,,,,,,,,,,,,,,,,,,
1,221001,Older People Placements - East,OP 65&Over NursingCarePlacemts,Physical/ Sensory Support,4360,Nursing Homes External,Adult Social Care,Third Party Payments,870,05-Apr-17,R,BUPA CARE HOMES,,,,,,,,,,,,,,,,,,,,,,,,,,,,,,,,,,,,,,
1,221001,Older People Placements - East,OP 65&Over NursingCarePlacemts,Physical/ Sensory Support,4360,Nursing Homes External,Adult Social Care,Third Party Payments,870,01-Apr-17,R,BUPA CARE HOMES,,,,,,,,,,,,,,,,,,,,,,,,,,,,,,,,,,,,,,
1,221001,Older People Placements - East,OP 65&Over NursingCarePlacemts,Physical/ Sensory Support,4360,Nursing Homes External,Adult Social Care,Third Party Payments,870,01-Apr-17,R,BUPA CARE HOMES,,,,,,,,,,,,,,,,,,,,,,,,,,,,,,,,,,,,,,
1,221001,Older People Placements - East,OP 65&Over NursingCarePlacemts,Physical/ Sensory Support,4360,Nursing Homes External,Adult Social Care,Third Party Payments,870,05-Apr-17,R,BUPA CARE HOMES,,,,,,,,,,,,,,,,,,,,,,,,,,,,,,,,,,,,,,
1,221001,Older People Placements - East,OP 65&Over NursingCarePlacemts,Physical/ Sensory Support,4360,Nursing Homes External,Adult Social Care,Third Party Payments,870,05-Apr-17,R,BUPA CARE HOMES,,,,,,,,,,,,,,,,,,,,,,,,,,,,,,,,,,,,,,
1,221001,Older People Placements - East,OP 65&Over NursingCarePlacemts,Physical/ Sensory Support,4360,Nursing Homes External,Adult Social Care,Third Party Payments,870,05-Apr-17,R,BUPA CARE HOMES,,,,,,,,,,,,,,,,,,,,,,,,,,,,,,,,,,,,,,
1,221001,Older People Placements - East,OP 65&Over NursingCarePlacemts,Physical/ Sensory Support,4360,Nursing Homes External,Adult Social Care,Third Party Payments,870,05-Apr-17,R,BUPA CARE HOMES,,,,,,,,,,,,,,,,,,,,,,,,,,,,,,,,,,,,,,
1,221001,Older People Placements - East,OP 65&Over NursingCarePlacemts,Physical/ Sensory Support,4360,Nursing Homes External,Adult Social Care,Third Party Payments,895,01-Apr-17,R,LINK HOUSE,,,,,,,,,,,,,,,,,,,,,,,,,,,,,,,,,,,,,,
1,221001,Older People Placements - East,OP 65&Over NursingCarePlacemts,Physical/ Sensory Support,4360,Nursing Homes External,Adult Social Care,Third Party Payments,895,01-Apr-17,R,LINK HOUSE,,,,,,,,,,,,,,,,,,,,,,,,,,,,,,,,,,,,,,
1,221001,Older People Placements - East,OP 65&Over NursingCarePlacemts,Physical/ Sensory Support,4360,Nursing Homes External,Adult Social Care,Third Party Payments,895,01-Apr-17,R,LINK HOUSE,,,,,,,,,,,,,,,,,,,,,,,,,,,,,,,,,,,,,,
1,221001,Older People Placements - East,OP 65&Over NursingCarePlacemts,Physical/ Sensory Support,4360,Nursing Homes External,Adult Social Care,Third Party Payments,895,01-Apr-17,R,LINK HOUSE,,,,,,,,,,,,,,,,,,,,,,,,,,,,,,,,,,,,,,
1,221001,Older People Placements - East,OP 65&Over NursingCarePlacemts,Physical/ Sensory Support,4360,Nursing Homes External,Adult Social Care,Third Party Payments,895,01-Apr-17,R,LINK HOUSE,,,,,,,,,,,,,,,,,,,,,,,,,,,,,,,,,,,,,,
1,221001,Older People Placements - East,OP 65&Over NursingCarePlacemts,Physical/ Sensory Support,4360,Nursing Homes External,Adult Social Care,Third Party Payments,895,01-Apr-17,R,LINK HOUSE,,,,,,,,,,,,,,,,,,,,,,,,,,,,,,,,,,,,,,
1,221001,Older People Placements - East,OP 65&Over NursingCarePlacemts,Physical/ Sensory Support,4360,Nursing Homes External,Adult Social Care,Third Party Payments,895,01-Apr-17,R,LINK HOUSE,,,,,,,,,,,,,,,,,,,,,,,,,,,,,,,,,,,,,,
1,221001,Older People Placements - East,OP 65&Over NursingCarePlacemts,Physical/ Sensory Support,4360,Nursing Homes External,Adult Social Care,Third Party Payments,895,01-Apr-17,R,LINK HOUSE,,,,,,,,,,,,,,,,,,,,,,,,,,,,,,,,,,,,,,
1,221001,Older People Placements - East,OP 65&Over NursingCarePlacemts,Physical/ Sensory Support,4360,Nursing Homes External,Adult Social Care,Third Party Payments,948.8,03-Apr-17,R,LYNTON HALL NURSING HOME,,,,,,,,,,,,,,,,,,,,,,,,,,,,,,,,,,,,,,
1,221001,Older People Placements - East,OP 65&Over NursingCarePlacemts,Physical/ Sensory Support,4360,Nursing Homes External,Adult Social Care,Third Party Payments,948.8,03-Apr-17,R,LYNTON HALL NURSING HOME,,,,,,,,,,,,,,,,,,,,,,,,,,,,,,,,,,,,,,
1,221001,Older People Placements - East,OP 65&Over NursingCarePlacemts,Physical/ Sensory Support,4360,Nursing Homes External,Adult Social Care,Third Party Payments,950,03-Apr-17,R,LYNTON HALL NURSING HOME,,,,,,,,,,,,,,,,,,,,,,,,,,,,,,,,,,,,,,
1,221001,Older People Placements - East,OP 65&Over NursingCarePlacemts,Physical/ Sensory Support,4360,Nursing Homes External,Adult Social Care,Third Party Payments,950,03-Apr-17,R,LYNTON HALL NURSING HOME,,,,,,,,,,,,,,,,,,,,,,,,,,,,,,,,,,,,,,
1,221001,Older People Placements - East,OP 65&Over NursingCarePlacemts,Physical/ Sensory Support,4390,Home Care,Adult Social Care,Third Party Payments,"1,260.00",12-Apr-17,R,CARE UK,,,,,,,,,,,,,,,,,,,,,,,,,,,,,,,,,,,,,,
1,221001,Older People Placements - East,OP 65&Over NursingCarePlacemts,Physical/ Sensory Support,4370,Direct Payments,Adult Social Care,Third Party Payments,"1,606.26",26-Apr-17,R,REDACTED,,,,,,,,,,,,,,,,,,,,,,,,,,,,,,,,,,,,,,
1,221002,Older People Placements - West,OP 65&Over NursingCarePlacemts,Physical/ Sensory Support,4350,Residential Homes External,Adult Social Care,Third Party Payments,500,01-Apr-17,R,ST MARY'S LODGE,,,,,,,,,,,,,,,,,,,,,,,,,,,,,,,,,,,,,,
1,221002,Older People Placements - West,OP 65&Over NursingCarePlacemts,Physical/ Sensory Support,4350,Residential Homes External,Adult Social Care,Third Party Payments,500,01-Apr-17,R,ST MARY'S LODGE,,,,,,,,,,,,,,,,,,,,,,,,,,,,,,,,,,,,,,
1,221002,Older People Placements - West,OP 65&Over NursingCarePlacemts,Physical/ Sensory Support,4350,Residential Homes External,Adult Social Care,Third Party Payments,500,01-Apr-17,R,ST MARY'S LODGE,,,,,,,,,,,,,,,,,,,,,,,,,,,,,,,,,,,,,,
1,221002,Older People Placements - West,OP 65&Over NursingCarePlacemts,Physical/ Sensory Support,4350,Residential Homes External,Adult Social Care,Third Party Payments,500,01-Apr-17,R,ST MARY'S LODGE,,,,,,,,,,,,,,,,,,,,,,,,,,,,,,,,,,,,,,
1,221002,Older People Placements - West,OP 65&Over NursingCarePlacemts,Physical/ Sensory Support,4370,Direct Payments,Adult Social Care,Third Party Payments,502.01,06-Apr-17,R,REDACTED,,,,,,,,,,,,,,,,,,,,,,,,,,,,,,,,,,,,,,
1,221002,Older People Placements - West,OP 65&Over NursingCarePlacemts,Physical/ Sensory Support,4370,Direct Payments,Adult Social Care,Third Party Payments,502.01,06-Apr-17,R,REDACTED,,,,,,,,,,,,,,,,,,,,,,,,,,,,,,,,,,,,,,
1,221002,Older People Placements - West,OP 65&Over NursingCarePlacemts,Physical/ Sensory Support,4370,Direct Payments,Adult Social Care,Third Party Payments,502.01,06-Apr-17,R,REDACTED,,,,,,,,,,,,,,,,,,,,,,,,,,,,,,,,,,,,,,
1,221002,Older People Placements - West,OP 65&Over NursingCarePlacemts,Physical/ Sensory Support,4370,Direct Payments,Adult Social Care,Third Party Payments,502.01,06-Apr-17,R,REDACTED,,,,,,,,,,,,,,,,,,,,,,,,,,,,,,,,,,,,,,
1,221002,Older People Placements - West,OP 65&Over NursingCarePlacemts,Physical/ Sensory Support,4350,Residential Homes External,Adult Social Care,Third Party Payments,540,01-Apr-17,R,ROYAL BANK OF SCOTLAND,,,,,,,,,,,,,,,,,,,,,,,,,,,,,,,,,,,,,,
1,221002,Older People Placements - West,OP 65&Over NursingCarePlacemts,Physical/ Sensory Support,4350,Residential Homes External,Adult Social Care,Third Party Payments,540,01-Apr-17,R,ROYAL BANK OF SCOTLAND,,,,,,,,,,,,,,,,,,,,,,,,,,,,,,,,,,,,,,
1,221002,Older People Placements - West,OP 65&Over NursingCarePlacemts,Physical/ Sensory Support,4350,Residential Homes External,Adult Social Care,Third Party Payments,540,01-Apr-17,R,ROYAL BANK OF SCOTLAND,,,,,,,,,,,,,,,,,,,,,,,,,,,,,,,,,,,,,,
1,221002,Older People Placements - West,OP 65&Over NursingCarePlacemts,Physical/ Sensory Support,4350,Residential Homes External,Adult Social Care,Third Party Payments,540,01-Apr-17,R,ROYAL BANK OF SCOTLAND,,,,,,,,,,,,,,,,,,,,,,,,,,,,,,,,,,,,,,
1,221002,Older People Placements - West,OP 65&Over NursingCarePlacemts,Physical/ Sensory Support,4350,Residential Homes External,Adult Social Care,Third Party Payments,540,07-Apr-17,R,ST ANTONYS CARE HOME,,,,,,,,,,,,,,,,,,,,,,,,,,,,,,,,,,,,,,
1,221002,Older People Placements - West,OP 65&Over NursingCarePlacemts,Physical/ Sensory Support,4350,Residential Homes External,Adult Social Care,Third Party Payments,540,07-Apr-17,R,ST ANTONYS CARE HOME,,,,,,,,,,,,,,,,,,,,,,,,,,,,,,,,,,,,,,
1,221002,Older People Placements - West,OP 65&Over NursingCarePlacemts,Physical/ Sensory Support,4350,Residential Homes External,Adult Social Care,Third Party Payments,540,07-Apr-17,R,ST ANTONYS CARE HOME,,,,,,,,,,,,,,,,,,,,,,,,,,,,,,,,,,,,,,
1,221002,Older People Placements - West,OP 65&Over NursingCarePlacemts,Physical/ Sensory Support,4350,Residential Homes External,Adult Social Care,Third Party Payments,540,07-Apr-17,R,ST ANTONYS CARE HOME,,,,,,,,,,,,,,,,,,,,,,,,,,,,,,,,,,,,,,
1,221002,Older People Placements - West,OP 65&Over NursingCarePlacemts,Physical/ Sensory Support,4350,Residential Homes External,Adult Social Care,Third Party Payments,540,07-Apr-17,R,ST ANTONYS CARE HOME,,,,,,,,,,,,,,,,,,,,,,,,,,,,,,,,,,,,,,
1,221002,Older People Placements - West,OP 65&Over NursingCarePlacemts,Physical/ Sensory Support,4370,Direct Payments,Adult Social Care,Third Party Payments,542.73,06-Apr-17,R,REDACTED,,,,,,,,,,,,,,,,,,,,,,,,,,,,,,,,,,,,,,
1,221002,Older People Placements - West,OP 65&Over NursingCarePlacemts,Physical/ Sensory Support,4370,Direct Payments,Adult Social Care,Third Party Payments,542.73,06-Apr-17,R,REDACTED,,,,,,,,,,,,,,,,,,,,,,,,,,,,,,,,,,,,,,
1,221002,Older People Placements - West,OP 65&Over NursingCarePlacemts,Physical/ Sensory Support,4370,Direct Payments,Adult Social Care,Third Party Payments,542.73,06-Apr-17,R,REDACTED,,,,,,,,,,,,,,,,,,,,,,,,,,,,,,,,,,,,,,
1,221002,Older People Placements - West,OP 65&Over NursingCarePlacemts,Physical/ Sensory Support,4370,Direct Payments,Adult Social Care,Third Party Payments,542.73,06-Apr-17,R,REDACTED,,,,,,,,,,,,,,,,,,,,,,,,,,,,,,,,,,,,,,
1,221002,Older People Placements - West,OP 65&Over NursingCarePlacemts,Physical/ Sensory Support,4350,Residential Homes External,Adult Social Care,Third Party Payments,575,13-Apr-17,R,KEYCHANGE CHARITY,,,,,,,,,,,,,,,,,,,,,,,,,,,,,,,,,,,,,,
1,221002,Older People Placements - West,OP 65&Over NursingCarePlacemts,Physical/ Sensory Support,4350,Residential Homes External,Adult Social Care,Third Party Payments,575,13-Apr-17,R,KEYCHANGE CHARITY,,,,,,,,,,,,,,,,,,,,,,,,,,,,,,,,,,,,,,
1,221002,Older People Placements - West,OP 65&Over NursingCarePlacemts,Physical/ Sensory Support,4350,Residential Homes External,Adult Social Care,Third Party Payments,575,13-Apr-17,R,KEYCHANGE CHARITY,,,,,,,,,,,,,,,,,,,,,,,,,,,,,,,,,,,,,,
1,221002,Older People Placements - West,OP 65&Over NursingCarePlacemts,Physical/ Sensory Support,4350,Residential Homes External,Adult Social Care,Third Party Payments,575,13-Apr-17,R,KEYCHANGE CHARITY,,,,,,,,,,,,,,,,,,,,,,,,,,,,,,,,,,,,,,
1,221002,Older People Placements - West,OP 65&Over NursingCarePlacemts,Physical/ Sensory Support,4350,Residential Homes External,Adult Social Care,Third Party Payments,578,05-Apr-17,R,FREMINGTON MANOR,,,,,,,,,,,,,,,,,,,,,,,,,,,,,,,,,,,,,,
1,221002,Older People Placements - West,OP 65&Over NursingCarePlacemts,Physical/ Sensory Support,4350,Residential Homes External,Adult Social Care,Third Party Payments,578,05-Apr-17,R,FREMINGTON MANOR,,,,,,,,,,,,,,,,,,,,,,,,,,,,,,,,,,,,,,
1,221002,Older People Placements - West,OP 65&Over NursingCarePlacemts,Physical/ Sensory Support,4350,Residential Homes External,Adult Social Care,Third Party Payments,578,05-Apr-17,R,FREMINGTON MANOR,,,,,,,,,,,,,,,,,,,,,,,,,,,,,,,,,,,,,,
1,221002,Older People Placements - West,OP 65&Over NursingCarePlacemts,Physical/ Sensory Support,4350,Residential Homes External,Adult Social Care,Third Party Payments,578,05-Apr-17,R,FREMINGTON MANOR,,,,,,,,,,,,,,,,,,,,,,,,,,,,,,,,,,,,,,
1,221002,Older People Placements - West,OP 65&Over NursingCarePlacemts,Physical/ Sensory Support,4360,Nursing Homes External,Adult Social Care,Third Party Payments,628.51,01-Apr-17,R,REDACTED,,,,,,,,,,,,,,,,,,,,,,,,,,,,,,,,,,,,,,
1,221002,Older People Placements - West,OP 65&Over NursingCarePlacemts,Physical/ Sensory Support,4360,Nursing Homes External,Adult Social Care,Third Party Payments,628.51,01-Apr-17,R,REDACTED,,,,,,,,,,,,,,,,,,,,,,,,,,,,,,,,,,,,,,
1,221002,Older People Placements - West,OP 65&Over NursingCarePlacemts,Physical/ Sensory Support,4360,Nursing Homes External,Adult Social Care,Third Party Payments,629.71,01-Apr-17,R,REDACTED,,,,,,,,,,,,,,,,,,,,,,,,,,,,,,,,,,,,,,
1,221002,Older People Placements - West,OP 65&Over NursingCarePlacemts,Physical/ Sensory Support,4360,Nursing Homes External,Adult Social Care,Third Party Payments,629.71,01-Apr-17,R,REDACTED,,,,,,,,,,,,,,,,,,,,,,,,,,,,,,,,,,,,,,
1,221002,Older People Placements - West,OP 65&Over NursingCarePlacemts,Physical/ Sensory Support,4350,Residential Homes External,Adult Social Care,Third Party Payments,635,07-Apr-17,R,BUPA CARE HOMES,,,,,,,,,,,,,,,,,,,,,,,,,,,,,,,,,,,,,,
1,221002,Older People Placements - West,OP 65&Over NursingCarePlacemts,Physical/ Sensory Support,4350,Residential Homes External,Adult Social Care,Third Party Payments,635,07-Apr-17,R,BUPA CARE HOMES,,,,,,,,,,,,,,,,,,,,,,,,,,,,,,,,,,,,,,
1,221002,Older People Placements - West,OP 65&Over NursingCarePlacemts,Physical/ Sensory Support,4350,Residential Homes External,Adult Social Care,Third Party Payments,635,07-Apr-17,R,BUPA CARE HOMES,,,,,,,,,,,,,,,,,,,,,,,,,,,,,,,,,,,,,,
1,221002,Older People Placements - West,OP 65&Over NursingCarePlacemts,Physical/ Sensory Support,4350,Residential Homes External,Adult Social Care,Third Party Payments,638.22,01-Apr-17,R,ROYAL BANK OF SCOTLAND,,,,,,,,,,,,,,,,,,,,,,,,,,,,,,,,,,,,,,
1,221002,Older People Placements - West,OP 65&Over NursingCarePlacemts,Physical/ Sensory Support,4350,Residential Homes External,Adult Social Care,Third Party Payments,638.22,01-Apr-17,R,ROYAL BANK OF SCOTLAND,,,,,,,,,,,,,,,,,,,,,,,,,,,,,,,,,,,,,,
1,221002,Older People Placements - West,OP 65&Over NursingCarePlacemts,Physical/ Sensory Support,4350,Residential Homes External,Adult Social Care,Third Party Payments,638.22,01-Apr-17,R,ROYAL BANK OF SCOTLAND,,,,,,,,,,,,,,,,,,,,,,,,,,,,,,,,,,,,,,
1,221002,Older People Placements - West,OP 65&Over NursingCarePlacemts,Physical/ Sensory Support,4350,Residential Homes External,Adult Social Care,Third Party Payments,638.22,01-Apr-17,R,ROYAL BANK OF SCOTLAND,,,,,,,,,,,,,,,,,,,,,,,,,,,,,,,,,,,,,,
1,221002,Older People Placements - West,OP 65&Over NursingCarePlacemts,Physical/ Sensory Support,4360,Nursing Homes External,Adult Social Care,Third Party Payments,668.05,28-Apr-17,R,KELSTONE COURT NURSING HOME,,,,,,,,,,,,,,,,,,,,,,,,,,,,,,,,,,,,,,
1,221002,Older People Placements - West,OP 65&Over NursingCarePlacemts,Physical/ Sensory Support,4360,Nursing Homes External,Adult Social Care,Third Party Payments,668.05,28-Apr-17,R,KELSTONE COURT NURSING HOME,,,,,,,,,,,,,,,,,,,,,,,,,,,,,,,,,,,,,,
1,221002,Older People Placements - West,OP 65&Over NursingCarePlacemts,Physical/ Sensory Support,4360,Nursing Homes External,Adult Social Care,Third Party Payments,668.05,28-Apr-17,R,KELSTONE COURT NURSING HOME,,,,,,,,,,,,,,,,,,,,,,,,,,,,,,,,,,,,,,
1,221002,Older People Placements - West,OP 65&Over NursingCarePlacemts,Physical/ Sensory Support,4360,Nursing Homes External,Adult Social Care,Third Party Payments,668.05,28-Apr-17,R,KELSTONE COURT NURSING HOME,,,,,,,,,,,,,,,,,,,,,,,,,,,,,,,,,,,,,,
1,221002,Older People Placements - West,OP 65&Over NursingCarePlacemts,Physical/ Sensory Support,4360,Nursing Homes External,Adult Social Care,Third Party Payments,668.05,28-Apr-17,R,KELSTONE COURT NURSING HOME,,,,,,,,,,,,,,,,,,,,,,,,,,,,,,,,,,,,,,
1,221002,Older People Placements - West,OP 65&Over NursingCarePlacemts,Physical/ Sensory Support,4360,Nursing Homes External,Adult Social Care,Third Party Payments,668.05,28-Apr-17,R,KELSTONE COURT NURSING HOME,,,,,,,,,,,,,,,,,,,,,,,,,,,,,,,,,,,,,,
1,221002,Older People Placements - West,OP 65&Over NursingCarePlacemts,Physical/ Sensory Support,4360,Nursing Homes External,Adult Social Care,Third Party Payments,668.05,28-Apr-17,R,KELSTONE COURT NURSING HOME,,,,,,,,,,,,,,,,,,,,,,,,,,,,,,,,,,,,,,
1,221002,Older People Placements - West,OP 65&Over NursingCarePlacemts,Physical/ Sensory Support,4360,Nursing Homes External,Adult Social Care,Third Party Payments,668.05,28-Apr-17,R,KELSTONE COURT NURSING HOME,,,,,,,,,,,,,,,,,,,,,,,,,,,,,,,,,,,,,,
1,221002,Older People Placements - West,OP 65&Over NursingCarePlacemts,Physical/ Sensory Support,4360,Nursing Homes External,Adult Social Care,Third Party Payments,668.05,24-Apr-17,R,KELSTONE COURT NURSING HOME,,,,,,,,,,,,,,,,,,,,,,,,,,,,,,,,,,,,,,
1,221002,Older People Placements - West,OP 65&Over NursingCarePlacemts,Physical/ Sensory Support,4360,Nursing Homes External,Adult Social Care,Third Party Payments,668.05,24-Apr-17,R,KELSTONE COURT NURSING HOME,,,,,,,,,,,,,,,,,,,,,,,,,,,,,,,,,,,,,,
1,221002,Older People Placements - West,OP 65&Over NursingCarePlacemts,Physical/ Sensory Support,4360,Nursing Homes External,Adult Social Care,Third Party Payments,669.25,24-Apr-17,R,KELSTONE COURT NURSING HOME,,,,,,,,,,,,,,,,,,,,,,,,,,,,,,,,,,,,,,
1,221002,Older People Placements - West,OP 65&Over NursingCarePlacemts,Physical/ Sensory Support,4360,Nursing Homes External,Adult Social Care,Third Party Payments,669.25,24-Apr-17,R,KELSTONE COURT NURSING HOME,,,,,,,,,,,,,,,,,,,,,,,,,,,,,,,,,,,,,,
1,221002,Older People Placements - West,OP 65&Over NursingCarePlacemts,Physical/ Sensory Support,4360,Nursing Homes External,Adult Social Care,Third Party Payments,669.25,24-Apr-17,R,KELSTONE COURT NURSING HOME,,,,,,,,,,,,,,,,,,,,,,,,,,,,,,,,,,,,,,
1,221002,Older People Placements - West,OP 65&Over NursingCarePlacemts,Physical/ Sensory Support,4360,Nursing Homes External,Adult Social Care,Third Party Payments,669.25,24-Apr-17,R,KELSTONE COURT NURSING HOME,,,,,,,,,,,,,,,,,,,,,,,,,,,,,,,,,,,,,,
1,221002,Older People Placements - West,OP 65&Over NursingCarePlacemts,Physical/ Sensory Support,4360,Nursing Homes External,Adult Social Care,Third Party Payments,694.25,01-Apr-17,R,SUTTON COURT CARE CENTRE,,,,,,,,,,,,,,,,,,,,,,,,,,,,,,,,,,,,,,
1,221002,Older People Placements - West,OP 65&Over NursingCarePlacemts,Physical/ Sensory Support,4360,Nursing Homes External,Adult Social Care,Third Party Payments,694.25,01-Apr-17,R,SUTTON COURT CARE CENTRE,,,,,,,,,,,,,,,,,,,,,,,,,,,,,,,,,,,,,,
1,221002,Older People Placements - West,OP 65&Over NursingCarePlacemts,Physical/ Sensory Support,4360,Nursing Homes External,Adult Social Care,Third Party Payments,698.05,24-Apr-17,R,KELSTONE COURT NURSING HOME,,,,,,,,,,,,,,,,,,,,,,,,,,,,,,,,,,,,,,
1,221002,Older People Placements - West,OP 65&Over NursingCarePlacemts,Physical/ Sensory Support,4360,Nursing Homes External,Adult Social Care,Third Party Payments,698.05,24-Apr-17,R,KELSTONE COURT NURSING HOME,,,,,,,,,,,,,,,,,,,,,,,,,,,,,,,,,,,,,,
1,221002,Older People Placements - West,OP 65&Over NursingCarePlacemts,Physical/ Sensory Support,4360,Nursing Homes External,Adult Social Care,Third Party Payments,698.05,01-Apr-17,R,RAJ NURSING HOME,,,,,,,,,,,,,,,,,,,,,,,,,,,,,,,,,,,,,,
1,221002,Older People Placements - West,OP 65&Over NursingCarePlacemts,Physical/ Sensory Support,4360,Nursing Homes External,Adult Social Care,Third Party Payments,698.05,01-Apr-17,R,RAJ NURSING HOME,,,,,,,,,,,,,,,,,,,,,,,,,,,,,,,,,,,,,,
1,221002,Older People Placements - West,OP 65&Over NursingCarePlacemts,Physical/ Sensory Support,4360,Nursing Homes External,Adult Social Care,Third Party Payments,698.05,01-Apr-17,R,RAJ NURSING HOME,,,,,,,,,,,,,,,,,,,,,,,,,,,,,,,,,,,,,,
1,221002,Older People Placements - West,OP 65&Over NursingCarePlacemts,Physical/ Sensory Support,4360,Nursing Homes External,Adult Social Care,Third Party Payments,698.05,01-Apr-17,R,RAJ NURSING HOME,,,,,,,,,,,,,,,,,,,,,,,,,,,,,,,,,,,,,,
1,221002,Older People Placements - West,OP 65&Over NursingCarePlacemts,Physical/ Sensory Support,4360,Nursing Homes External,Adult Social Care,Third Party Payments,699.25,01-Apr-17,R,RAJ NURSING HOME,,,,,,,,,,,,,,,,,,,,,,,,,,,,,,,,,,,,,,
1,221002,Older People Placements - West,OP 65&Over NursingCarePlacemts,Physical/ Sensory Support,4360,Nursing Homes External,Adult Social Care,Third Party Payments,699.25,11-Apr-17,R,RAJ NURSING HOME,,,,,,,,,,,,,,,,,,,,,,,,,,,,,,,,,,,,,,
1,221002,Older People Placements - West,OP 65&Over NursingCarePlacemts,Physical/ Sensory Support,4360,Nursing Homes External,Adult Social Care,Third Party Payments,699.25,11-Apr-17,R,RAJ NURSING HOME,,,,,,,,,,,,,,,,,,,,,,,,,,,,,,,,,,,,,,
1,221002,Older People Placements - West,OP 65&Over NursingCarePlacemts,Physical/ Sensory Support,4360,Nursing Homes External,Adult Social Care,Third Party Payments,699.25,11-Apr-17,R,RAJ NURSING HOME,,,,,,,,,,,,,,,,,,,,,,,,,,,,,,,,,,,,,,
1,221002,Older People Placements - West,OP 65&Over NursingCarePlacemts,Physical/ Sensory Support,4360,Nursing Homes External,Adult Social Care,Third Party Payments,699.25,01-Apr-17,R,RAJ NURSING HOME,,,,,,,,,,,,,,,,,,,,,,,,,,,,,,,,,,,,,,
1,221002,Older People Placements - West,OP 65&Over NursingCarePlacemts,Physical/ Sensory Support,4360,Nursing Homes External,Adult Social Care,Third Party Payments,699.25,01-Apr-17,R,RAJ NURSING HOME,,,,,,,,,,,,,,,,,,,,,,,,,,,,,,,,,,,,,,
1,221002,Older People Placements - West,OP 65&Over NursingCarePlacemts,Physical/ Sensory Support,4360,Nursing Homes External,Adult Social Care,Third Party Payments,699.25,01-Apr-17,R,RAJ NURSING HOME,,,,,,,,,,,,,,,,,,,,,,,,,,,,,,,,,,,,,,
1,221002,Older People Placements - West,OP 65&Over NursingCarePlacemts,Physical/ Sensory Support,4360,Nursing Homes External,Adult Social Care,Third Party Payments,699.25,01-Apr-17,R,RAJ NURSING HOME,,,,,,,,,,,,,,,,,,,,,,,,,,,,,,,,,,,,,,
1,221002,Older People Placements - West,OP 65&Over NursingCarePlacemts,Physical/ Sensory Support,4360,Nursing Homes External,Adult Social Care,Third Party Payments,699.25,01-Apr-17,R,RAJ NURSING HOME,,,,,,,,,,,,,,,,,,,,,,,,,,,,,,,,,,,,,,
1,221002,Older People Placements - West,OP 65&Over NursingCarePlacemts,Physical/ Sensory Support,4360,Nursing Homes External,Adult Social Care,Third Party Payments,699.25,01-Apr-17,R,RAJ NURSING HOME,,,,,,,,,,,,,,,,,,,,,,,,,,,,,,,,,,,,,,
1,221002,Older People Placements - West,OP 65&Over NursingCarePlacemts,Physical/ Sensory Support,4360,Nursing Homes External,Adult Social Care,Third Party Payments,699.25,01-Apr-17,R,RAJ NURSING HOME,,,,,,,,,,,,,,,,,,,,,,,,,,,,,,,,,,,,,,
1,221002,Older People Placements - West,OP 65&Over NursingCarePlacemts,Physical/ Sensory Support,4360,Nursing Homes External,Adult Social Care,Third Party Payments,699.25,01-Apr-17,R,RAJ NURSING HOME,,,,,,,,,,,,,,,,,,,,,,,,,,,,,,,,,,,,,,
1,221002,Older People Placements - West,OP 65&Over NursingCarePlacemts,Physical/ Sensory Support,4360,Nursing Homes External,Adult Social Care,Third Party Payments,699.25,01-Apr-17,R,RAJ NURSING HOME,,,,,,,,,,,,,,,,,,,,,,,,,,,,,,,,,,,,,,
1,221002,Older People Placements - West,OP 65&Over NursingCarePlacemts,Physical/ Sensory Support,4360,Nursing Homes External,Adult Social Care,Third Party Payments,699.25,01-Apr-17,R,RAJ NURSING HOME,,,,,,,,,,,,,,,,,,,,,,,,,,,,,,,,,,,,,,
1,221002,Older People Placements - West,OP 65&Over NursingCarePlacemts,Physical/ Sensory Support,4360,Nursing Homes External,Adult Social Care,Third Party Payments,699.25,01-Apr-17,R,RAJ NURSING HOME,,,,,,,,,,,,,,,,,,,,,,,,,,,,,,,,,,,,,,
1,221002,Older People Placements - West,OP 65&Over NursingCarePlacemts,Physical/ Sensory Support,4360,Nursing Homes External,Adult Social Care,Third Party Payments,699.25,01-Apr-17,R,RAJ NURSING HOME,,,,,,,,,,,,,,,,,,,,,,,,,,,,,,,,,,,,,,
1,221002,Older People Placements - West,OP 65&Over NursingCarePlacemts,Physical/ Sensory Support,4360,Nursing Homes External,Adult Social Care,Third Party Payments,699.25,01-Apr-17,R,RAJ NURSING HOME,,,,,,,,,,,,,,,,,,,,,,,,,,,,,,,,,,,,,,
1,221002,Older People Placements - West,OP 65&Over NursingCarePlacemts,Physical/ Sensory Support,4360,Nursing Homes External,Adult Social Care,Third Party Payments,699.25,01-Apr-17,R,RAJ NURSING HOME,,,,,,,,,,,,,,,,,,,,,,,,,,,,,,,,,,,,,,
1,221002,Older People Placements - West,OP 65&Over NursingCarePlacemts,Physical/ Sensory Support,4360,Nursing Homes External,Adult Social Care,Third Party Payments,699.25,01-Apr-17,R,RAJ NURSING HOME,,,,,,,,,,,,,,,,,,,,,,,,,,,,,,,,,,,,,,
1,221002,Older People Placements - West,OP 65&Over NursingCarePlacemts,Physical/ Sensory Support,4360,Nursing Homes External,Adult Social Care,Third Party Payments,699.25,01-Apr-17,R,RAJ NURSING HOME,,,,,,,,,,,,,,,,,,,,,,,,,,,,,,,,,,,,,,
1,221002,Older People Placements - West,OP 65&Over NursingCarePlacemts,Physical/ Sensory Support,4360,Nursing Homes External,Adult Social Care,Third Party Payments,699.25,01-Apr-17,R,RAJ NURSING HOME,,,,,,,,,,,,,,,,,,,,,,,,,,,,,,,,,,,,,,
1,221002,Older People Placements - West,OP 65&Over NursingCarePlacemts,Physical/ Sensory Support,4350,Residential Homes External,Adult Social Care,Third Party Payments,710,07-Apr-17,R,BUPA CARE HOMES,,,,,,,,,,,,,,,,,,,,,,,,,,,,,,,,,,,,,,
1,221002,Older People Placements - West,OP 65&Over NursingCarePlacemts,Physical/ Sensory Support,4350,Residential Homes External,Adult Social Care,Third Party Payments,710,07-Apr-17,R,BUPA CARE HOMES,,,,,,,,,,,,,,,,,,,,,,,,,,,,,,,,,,,,,,
1,221002,Older People Placements - West,OP 65&Over NursingCarePlacemts,Physical/ Sensory Support,4350,Residential Homes External,Adult Social Care,Third Party Payments,710,07-Apr-17,R,BUPA CARE HOMES,,,,,,,,,,,,,,,,,,,,,,,,,,,,,,,,,,,,,,
1,221002,Older People Placements - West,OP 65&Over NursingCarePlacemts,Physical/ Sensory Support,4350,Residential Homes External,Adult Social Care,Third Party Payments,710,07-Apr-17,R,BUPA CARE HOMES,,,,,,,,,,,,,,,,,,,,,,,,,,,,,,,,,,,,,,
1,221002,Older People Placements - West,OP 65&Over NursingCarePlacemts,Physical/ Sensory Support,4350,Residential Homes External,Adult Social Care,Third Party Payments,710,07-Apr-17,R,BUPA CARE HOMES,,,,,,,,,,,,,,,,,,,,,,,,,,,,,,,,,,,,,,
1,221002,Older People Placements - West,OP 65&Over NursingCarePlacemts,Physical/ Sensory Support,4350,Residential Homes External,Adult Social Care,Third Party Payments,710,07-Apr-17,R,BUPA CARE HOMES,,,,,,,,,,,,,,,,,,,,,,,,,,,,,,,,,,,,,,
1,221002,Older People Placements - West,OP 65&Over NursingCarePlacemts,Physical/ Sensory Support,4350,Residential Homes External,Adult Social Care,Third Party Payments,710,07-Apr-17,R,BUPA CARE HOMES,,,,,,,,,,,,,,,,,,,,,,,,,,,,,,,,,,,,,,
1,221002,Older People Placements - West,OP 65&Over NursingCarePlacemts,Physical/ Sensory Support,4350,Residential Homes External,Adult Social Care,Third Party Payments,710,07-Apr-17,R,BUPA CARE HOMES,,,,,,,,,,,,,,,,,,,,,,,,,,,,,,,,,,,,,,
1,221002,Older People Placements - West,OP 65&Over NursingCarePlacemts,Physical/ Sensory Support,4360,Nursing Homes External,Adult Social Care,Third Party Payments,713.05,01-Apr-17,R,ROYAL BANK OF SCOTLAND,,,,,,,,,,,,,,,,,,,,,,,,,,,,,,,,,,,,,,
1,221002,Older People Placements - West,OP 65&Over NursingCarePlacemts,Physical/ Sensory Support,4360,Nursing Homes External,Adult Social Care,Third Party Payments,713.05,01-Apr-17,R,ROYAL BANK OF SCOTLAND,,,,,,,,,,,,,,,,,,,,,,,,,,,,,,,,,,,,,,
1,221002,Older People Placements - West,OP 65&Over NursingCarePlacemts,Physical/ Sensory Support,4360,Nursing Homes External,Adult Social Care,Third Party Payments,714.25,01-Apr-17,R,ROYAL BANK OF SCOTLAND,,,,,,,,,,,,,,,,,,,,,,,,,,,,,,,,,,,,,,
1,221002,Older People Placements - West,OP 65&Over NursingCarePlacemts,Physical/ Sensory Support,4360,Nursing Homes External,Adult Social Care,Third Party Payments,714.25,01-Apr-17,R,ROYAL BANK OF SCOTLAND,,,,,,,,,,,,,,,,,,,,,,,,,,,,,,,,,,,,,,
1,221002,Older People Placements - West,OP 65&Over NursingCarePlacemts,Physical/ Sensory Support,4350,Residential Homes External,Adult Social Care,Third Party Payments,730.5,04-Apr-17,R,OATLANDS CARE LIMITED,,,,,,,,,,,,,,,,,,,,,,,,,,,,,,,,,,,,,,
1,221002,Older People Placements - West,OP 65&Over NursingCarePlacemts,Physical/ Sensory Support,4350,Residential Homes External,Adult Social Care,Third Party Payments,730.5,04-Apr-17,R,OATLANDS CARE LIMITED,,,,,,,,,,,,,,,,,,,,,,,,,,,,,,,,,,,,,,
1,221002,Older People Placements - West,OP 65&Over NursingCarePlacemts,Physical/ Sensory Support,4350,Residential Homes External,Adult Social Care,Third Party Payments,730.5,04-Apr-17,R,OATLANDS CARE LIMITED,,,,,,,,,,,,,,,,,,,,,,,,,,,,,,,,,,,,,,
1,221002,Older People Placements - West,OP 65&Over NursingCarePlacemts,Physical/ Sensory Support,4350,Residential Homes External,Adult Social Care,Third Party Payments,730.5,04-Apr-17,R,OATLANDS CARE LIMITED,,,,,,,,,,,,,,,,,,,,,,,,,,,,,,,,,,,,,,
1,221002,Older People Placements - West,OP 65&Over NursingCarePlacemts,Physical/ Sensory Support,4360,Nursing Homes External,Adult Social Care,Third Party Payments,748.05,05-Apr-17,R,ST TERESA`S HOME FORTHE ELDER,,,,,,,,,,,,,,,,,,,,,,,,,,,,,,,,,,,,,,
1,221002,Older People Placements - West,OP 65&Over NursingCarePlacemts,Physical/ Sensory Support,4360,Nursing Homes External,Adult Social Care,Third Party Payments,748.05,05-Apr-17,R,ST TERESA`S HOME FORTHE ELDER,,,,,,,,,,,,,,,,,,,,,,,,,,,,,,,,,,,,,,
1,221002,Older People Placements - West,OP 65&Over NursingCarePlacemts,Physical/ Sensory Support,4360,Nursing Homes External,Adult Social Care,Third Party Payments,748.05,05-Apr-17,R,ST TERESA`S HOME FORTHE ELDER,,,,,,,,,,,,,,,,,,,,,,,,,,,,,,,,,,,,,,
1,221002,Older People Placements - West,OP 65&Over NursingCarePlacemts,Physical/ Sensory Support,4360,Nursing Homes External,Adult Social Care,Third Party Payments,748.05,05-Apr-17,R,ST TERESA`S HOME FORTHE ELDER,,,,,,,,,,,,,,,,,,,,,,,,,,,,,,,,,,,,,,
1,221002,Older People Placements - West,OP 65&Over NursingCarePlacemts,Physical/ Sensory Support,4360,Nursing Homes External,Adult Social Care,Third Party Payments,748.05,05-Apr-17,R,ST TERESA`S HOME FORTHE ELDER,,,,,,,,,,,,,,,,,,,,,,,,,,,,,,,,,,,,,,
1,221002,Older People Placements - West,OP 65&Over NursingCarePlacemts,Physical/ Sensory Support,4360,Nursing Homes External,Adult Social Care,Third Party Payments,748.05,05-Apr-17,R,ST TERESA`S HOME FORTHE ELDER,,,,,,,,,,,,,,,,,,,,,,,,,,,,,,,,,,,,,,
1,221002,Older People Placements - West,OP 65&Over NursingCarePlacemts,Physical/ Sensory Support,4360,Nursing Homes External,Adult Social Care,Third Party Payments,748.05,05-Apr-17,R,ST TERESA`S HOME FORTHE ELDER,,,,,,,,,,,,,,,,,,,,,,,,,,,,,,,,,,,,,,
1,221002,Older People Placements - West,OP 65&Over NursingCarePlacemts,Physical/ Sensory Support,4360,Nursing Homes External,Adult Social Care,Third Party Payments,748.05,05-Apr-17,R,ST TERESA`S HOME FORTHE ELDER,,,,,,,,,,,,,,,,,,,,,,,,,,,,,,,,,,,,,,
1,221002,Older People Placements - West,OP 65&Over NursingCarePlacemts,Physical/ Sensory Support,4360,Nursing Homes External,Adult Social Care,Third Party Payments,756.94,01-Apr-17,R,TRINITY COURT NURSING HOME,,,,,,,,,,,,,,,,,,,,,,,,,,,,,,,,,,,,,,
1,221002,Older People Placements - West,OP 65&Over NursingCarePlacemts,Physical/ Sensory Support,4360,Nursing Homes External,Adult Social Care,Third Party Payments,756.94,01-Apr-17,R,TRINITY COURT NURSING HOME,,,,,,,,,,,,,,,,,,,,,,,,,,,,,,,,,,,,,,
1,221002,Older People Placements - West,OP 65&Over NursingCarePlacemts,Physical/ Sensory Support,4360,Nursing Homes External,Adult Social Care,Third Party Payments,756.94,01-Apr-17,R,TRINITY COURT NURSING HOME,,,,,,,,,,,,,,,,,,,,,,,,,,,,,,,,,,,,,,
1,221002,Older People Placements - West,OP 65&Over NursingCarePlacemts,Physical/ Sensory Support,4360,Nursing Homes External,Adult Social Care,Third Party Payments,756.94,01-Apr-17,R,TRINITY COURT NURSING HOME,,,,,,,,,,,,,,,,,,,,,,,,,,,,,,,,,,,,,,
1,221002,Older People Placements - West,OP 65&Over NursingCarePlacemts,Physical/ Sensory Support,4360,Nursing Homes External,Adult Social Care,Third Party Payments,771.43,01-Apr-17,R,THE WHITE HOUSE NURSING HOME,,,,,,,,,,,,,,,,,,,,,,,,,,,,,,,,,,,,,,
1,221002,Older People Placements - West,OP 65&Over NursingCarePlacemts,Physical/ Sensory Support,4360,Nursing Homes External,Adult Social Care,Third Party Payments,771.61,01-Apr-17,R,ROYAL BANK OF SCOTLAND,,,,,,,,,,,,,,,,,,,,,,,,,,,,,,,,,,,,,,
1,221002,Older People Placements - West,OP 65&Over NursingCarePlacemts,Physical/ Sensory Support,4360,Nursing Homes External,Adult Social Care,Third Party Payments,771.61,01-Apr-17,R,ROYAL BANK OF SCOTLAND,,,,,,,,,,,,,,,,,,,,,,,,,,,,,,,,,,,,,,
1,221002,Older People Placements - West,OP 65&Over NursingCarePlacemts,Physical/ Sensory Support,4360,Nursing Homes External,Adult Social Care,Third Party Payments,772.81,01-Apr-17,R,ROYAL BANK OF SCOTLAND,,,,,,,,,,,,,,,,,,,,,,,,,,,,,,,,,,,,,,
1,221002,Older People Placements - West,OP 65&Over NursingCarePlacemts,Physical/ Sensory Support,4360,Nursing Homes External,Adult Social Care,Third Party Payments,772.81,01-Apr-17,R,ROYAL BANK OF SCOTLAND,,,,,,,,,,,,,,,,,,,,,,,,,,,,,,,,,,,,,,
1,221002,Older People Placements - West,OP 65&Over NursingCarePlacemts,Physical/ Sensory Support,4360,Nursing Homes External,Adult Social Care,Third Party Payments,772.81,01-Apr-17,R,ROYAL BANK OF SCOTLAND,,,,,,,,,,,,,,,,,,,,,,,,,,,,,,,,,,,,,,
1,221002,Older People Placements - West,OP 65&Over NursingCarePlacemts,Physical/ Sensory Support,4360,Nursing Homes External,Adult Social Care,Third Party Payments,772.81,01-Apr-17,R,ROYAL BANK OF SCOTLAND,,,,,,,,,,,,,,,,,,,,,,,,,,,,,,,,,,,,,,
1,221002,Older People Placements - West,OP 65&Over NursingCarePlacemts,Physical/ Sensory Support,4360,Nursing Homes External,Adult Social Care,Third Party Payments,772.81,01-Apr-17,R,ROYAL BANK OF SCOTLAND,,,,,,,,,,,,,,,,,,,,,,,,,,,,,,,,,,,,,,
1,221002,Older People Placements - West,OP 65&Over NursingCarePlacemts,Physical/ Sensory Support,4360,Nursing Homes External,Adult Social Care,Third Party Payments,772.81,01-Apr-17,R,ROYAL BANK OF SCOTLAND,,,,,,,,,,,,,,,,,,,,,,,,,,,,,,,,,,,,,,
1,221002,Older People Placements - West,OP 65&Over NursingCarePlacemts,Physical/ Sensory Support,4360,Nursing Homes External,Adult Social Care,Third Party Payments,772.81,01-Apr-17,R,ROYAL BANK OF SCOTLAND,,,,,,,,,,,,,,,,,,,,,,,,,,,,,,,,,,,,,,
1,221002,Older People Placements - West,OP 65&Over NursingCarePlacemts,Physical/ Sensory Support,4360,Nursing Homes External,Adult Social Care,Third Party Payments,772.81,01-Apr-17,R,ROYAL BANK OF SCOTLAND,,,,,,,,,,,,,,,,,,,,,,,,,,,,,,,,,,,,,,
1,221002,Older People Placements - West,OP 65&Over NursingCarePlacemts,Physical/ Sensory Support,4360,Nursing Homes External,Adult Social Care,Third Party Payments,772.81,01-Apr-17,R,ROYAL BANK OF SCOTLAND,,,,,,,,,,,,,,,,,,,,,,,,,,,,,,,,,,,,,,
1,221002,Older People Placements - West,OP 65&Over NursingCarePlacemts,Physical/ Sensory Support,4360,Nursing Homes External,Adult Social Care,Third Party Payments,772.81,01-Apr-17,R,ROYAL BANK OF SCOTLAND,,,,,,,,,,,,,,,,,,,,,,,,,,,,,,,,,,,,,,
1,221002,Older People Placements - West,OP 65&Over NursingCarePlacemts,Physical/ Sensory Support,4360,Nursing Homes External,Adult Social Care,Third Party Payments,772.81,01-Apr-17,R,ROYAL BANK OF SCOTLAND,,,,,,,,,,,,,,,,,,,,,,,,,,,,,,,,,,,,,,
1,221002,Older People Placements - West,OP 65&Over NursingCarePlacemts,Physical/ Sensory Support,4360,Nursing Homes External,Adult Social Care,Third Party Payments,772.81,01-Apr-17,R,ROYAL BANK OF SCOTLAND,,,,,,,,,,,,,,,,,,,,,,,,,,,,,,,,,,,,,,
1,221002,Older People Placements - West,OP 65&Over NursingCarePlacemts,Physical/ Sensory Support,4360,Nursing Homes External,Adult Social Care,Third Party Payments,772.81,01-Apr-17,R,ROYAL BANK OF SCOTLAND,,,,,,,,,,,,,,,,,,,,,,,,,,,,,,,,,,,,,,
1,221002,Older People Placements - West,OP 65&Over NursingCarePlacemts,Physical/ Sensory Support,4360,Nursing Homes External,Adult Social Care,Third Party Payments,772.81,01-Apr-17,R,ROYAL BANK OF SCOTLAND,,,,,,,,,,,,,,,,,,,,,,,,,,,,,,,,,,,,,,
1,221002,Older People Placements - West,OP 65&Over NursingCarePlacemts,Physical/ Sensory Support,4360,Nursing Homes External,Adult Social Care,Third Party Payments,772.81,01-Apr-17,R,ROYAL BANK OF SCOTLAND,,,,,,,,,,,,,,,,,,,,,,,,,,,,,,,,,,,,,,
1,221002,Older People Placements - West,OP 65&Over NursingCarePlacemts,Physical/ Sensory Support,4360,Nursing Homes External,Adult Social Care,Third Party Payments,772.81,01-Apr-17,R,ROYAL BANK OF SCOTLAND,,,,,,,,,,,,,,,,,,,,,,,,,,,,,,,,,,,,,,
1,221002,Older People Placements - West,OP 65&Over NursingCarePlacemts,Physical/ Sensory Support,4360,Nursing Homes External,Adult Social Care,Third Party Payments,772.81,01-Apr-17,R,ROYAL BANK OF SCOTLAND,,,,,,,,,,,,,,,,,,,,,,,,,,,,,,,,,,,,,,
1,221002,Older People Placements - West,OP 65&Over NursingCarePlacemts,Physical/ Sensory Support,4360,Nursing Homes External,Adult Social Care,Third Party Payments,772.81,01-Apr-17,R,ROYAL BANK OF SCOTLAND,,,,,,,,,,,,,,,,,,,,,,,,,,,,,,,,,,,,,,
1,221002,Older People Placements - West,OP 65&Over NursingCarePlacemts,Physical/ Sensory Support,4360,Nursing Homes External,Adult Social Care,Third Party Payments,772.81,01-Apr-17,R,ROYAL BANK OF SCOTLAND,,,,,,,,,,,,,,,,,,,,,,,,,,,,,,,,,,,,,,
1,221002,Older People Placements - West,OP 65&Over NursingCarePlacemts,Physical/ Sensory Support,4350,Residential Homes External,Adult Social Care,Third Party Payments,815,01-Apr-17,R,WOODLANDS,,,,,,,,,,,,,,,,,,,,,,,,,,,,,,,,,,,,,,
1,221002,Older People Placements - West,OP 65&Over NursingCarePlacemts,Physical/ Sensory Support,4350,Residential Homes External,Adult Social Care,Third Party Payments,815,01-Apr-17,R,WOODLANDS,,,,,,,,,,,,,,,,,,,,,,,,,,,,,,,,,,,,,,
1,221002,Older People Placements - West,OP 65&Over NursingCarePlacemts,Physical/ Sensory Support,4350,Residential Homes External,Adult Social Care,Third Party Payments,815,01-Apr-17,R,WOODLANDS,,,,,,,,,,,,,,,,,,,,,,,,,,,,,,,,,,,,,,
1,221002,Older People Placements - West,OP 65&Over NursingCarePlacemts,Physical/ Sensory Support,4350,Residential Homes External,Adult Social Care,Third Party Payments,815,01-Apr-17,R,WOODLANDS,,,,,,,,,,,,,,,,,,,,,,,,,,,,,,,,,,,,,,
1,221002,Older People Placements - West,OP 65&Over NursingCarePlacemts,Physical/ Sensory Support,4350,Residential Homes External,Adult Social Care,Third Party Payments,815,01-Apr-17,R,WOODLANDS,,,,,,,,,,,,,,,,,,,,,,,,,,,,,,,,,,,,,,
1,221002,Older People Placements - West,OP 65&Over NursingCarePlacemts,Physical/ Sensory Support,4350,Residential Homes External,Adult Social Care,Third Party Payments,815,01-Apr-17,R,WOODLANDS,,,,,,,,,,,,,,,,,,,,,,,,,,,,,,,,,,,,,,
1,221002,Older People Placements - West,OP 65&Over NursingCarePlacemts,Physical/ Sensory Support,4350,Residential Homes External,Adult Social Care,Third Party Payments,815,01-Apr-17,R,WOODLANDS,,,,,,,,,,,,,,,,,,,,,,,,,,,,,,,,,,,,,,
1,221002,Older People Placements - West,OP 65&Over NursingCarePlacemts,Physical/ Sensory Support,4350,Residential Homes External,Adult Social Care,Third Party Payments,815,01-Apr-17,R,WOODLANDS,,,,,,,,,,,,,,,,,,,,,,,,,,,,,,,,,,,,,,
1,221002,Older People Placements - West,OP 65&Over NursingCarePlacemts,Physical/ Sensory Support,4350,Residential Homes External,Adult Social Care,Third Party Payments,815,01-Apr-17,R,LINK HOUSE,,,,,,,,,,,,,,,,,,,,,,,,,,,,,,,,,,,,,,
1,221002,Older People Placements - West,OP 65&Over NursingCarePlacemts,Physical/ Sensory Support,4350,Residential Homes External,Adult Social Care,Third Party Payments,815,01-Apr-17,R,CARTER HOUSE,,,,,,,,,,,,,,,,,,,,,,,,,,,,,,,,,,,,,,
